Body Name,Purpose of Expenditure ,Directorate ,Dr/Cr,Gross Amount,Beneficiary,Transaction Date
Nottinghamshire County Council,Provisions,"Children, Families & Cultural Services",Debit,399.24,owen taylor  sons,01/10/2015
Nottinghamshire County Council,Catering Consumables,"Adult Social Care, Health & Public Protection ",Debit,0.80,sainsburys s/mkts,01/10/2015
Nottinghamshire County Council,Activities & Support,"Children, Families & Cultural Services",Debit,16.68,asda stores 4517,01/10/2015
Nottinghamshire County Council,Activities & Support,"Children, Families & Cultural Services",Debit,156.66,wrs group inc,01/10/2015
Nottinghamshire County Council,Other Fee's & Services,Environment & Resources,Debit,36.66,ncs vue citb hse rev,01/10/2015
Nottinghamshire County Council,Office / General Equipment,Environment & Resources,Debit,25.50,keyline ashfield,01/10/2015
Nottinghamshire County Council,Provisions,"Children, Families & Cultural Services",Debit,55.27,sainsburys smkt,01/10/2015
Nottinghamshire County Council,Building Maintenance,Environment & Resources,Debit,42.70,eyre  elliston ltd,01/10/2015
Nottinghamshire County Council,Office / General Equipment,Place ,Debit,17.67,trent bridge inn,01/10/2015
Nottinghamshire County Council,Cleaning & Domestic Equipment,"Children, Families & Cultural Services",Debit,109.65,amazon uk marketplace,01/10/2015
Nottinghamshire County Council,Materials - External,Environment & Resources,Debit,241.32,tubes fittings,01/10/2015
Nottinghamshire County Council,Materials - External,Environment & Resources,Debit,41.18,tubes fittings,01/10/2015
Nottinghamshire County Council,Materials - External,Environment & Resources,Debit,334.36,tubes fittings,01/10/2015
Nottinghamshire County Council,Other Fee's & Services,Environment & Resources,Debit,35.00,www.moneyclaim.gov,01/10/2015
Nottinghamshire County Council,Other Fee's & Services,Environment & Resources,Debit,105.00,www.moneyclaim.gov,01/10/2015
Nottinghamshire County Council,Activities & Support,"Adult Social Care, Health & Public Protection ",Debit,156.75,js online grocery,01/10/2015
Nottinghamshire County Council,Books - General,"Adult Social Care, Health & Public Protection ",Debit,12.29,amazon svcs europesar,01/10/2015
Nottinghamshire County Council,Activities & Support,"Children, Families & Cultural Services",Debit,50.44,b  m retail,01/10/2015
Nottinghamshire County Council,Activities & Support,"Children, Families & Cultural Services",Debit,0.90,tesco stores 2366,01/10/2015
Nottinghamshire County Council,Activities & Support,"Children, Families & Cultural Services",Debit,4.79,farmfoods- worksop,01/10/2015
Nottinghamshire County Council,Training Fees,"Adult Social Care, Health & Public Protection ",Debit,3.00,b  q,01/10/2015
Nottinghamshire County Council,Training Fees,"Adult Social Care, Health & Public Protection ",Debit,16.83,b  q,01/10/2015
Nottinghamshire County Council,Training Fees,"Adult Social Care, Health & Public Protection ",Debit,3.00,b  q,01/10/2015
Nottinghamshire County Council,Training Fees,"Adult Social Care, Health & Public Protection ",Debit,3.00,b  q,01/10/2015
Nottinghamshire County Council,Training Fees,"Adult Social Care, Health & Public Protection ",Debit,3.00,b  q,01/10/2015
Nottinghamshire County Council,Training Fees,"Adult Social Care, Health & Public Protection ",Debit,14.00,b  q,01/10/2015
Nottinghamshire County Council,Training Fees,"Adult Social Care, Health & Public Protection ",Debit,19.28,cda group ltd,01/10/2015
Nottinghamshire County Council,Training Fees,"Adult Social Care, Health & Public Protection ",Debit,118.64,pompadour cashcarry m,01/10/2015
Nottinghamshire County Council,Training Fees,"Adult Social Care, Health & Public Protection ",Debit,65.00,asda store ston in as,01/10/2015
Nottinghamshire County Council,Office / General Equipment,"Policy, Planning & Corporate Services",Debit,38.00,www.66fit.com,01/10/2015
Nottinghamshire County Council,Cleaning Materials,"Adult Social Care, Health & Public Protection ",Debit,186.23,jangro (leicester) ltd,01/10/2015
Nottinghamshire County Council,Teaching Equipment,"Children, Families & Cultural Services",Debit,1.82,amazon uk marketplace,01/10/2015
Nottinghamshire County Council,Activities & Support,"Children, Families & Cultural Services",Debit,24.00,tesco stores 5437,01/10/2015
Nottinghamshire County Council,Building Maintenance,Environment & Resources,Debit,19.00,willbond plumbing centre,01/10/2015
Nottinghamshire County Council,Building Maintenance,Environment & Resources,Debit,7.87,willbond plumbing centre,01/10/2015
Nottinghamshire County Council,Provisions,"Adult Social Care, Health & Public Protection ",Debit,12.58,tesco stores 5379,01/10/2015
Nottinghamshire County Council,Provisions,"Adult Social Care, Health & Public Protection ",Debit,5.99,cc inks,01/10/2015
Nottinghamshire County Council,Refuse Collection / Disposal,"Adult Social Care, Health & Public Protection ",Debit,69.00,www.broxtowe.gov.uk,01/10/2015
Nottinghamshire County Council,Activities & Support,"Children, Families & Cultural Services",Debit,9.95,bm retail ltd,01/10/2015
Nottinghamshire County Council,Activities & Support,"Children, Families & Cultural Services",Debit,6.95,heron foods ltd,01/10/2015
Nottinghamshire County Council,Clients - H & S Equipt,"Children, Families & Cultural Services",Debit,11.00,nottingham city co,01/10/2015
Nottinghamshire County Council,Activities & Support,"Children, Families & Cultural Services",Debit,2.07,aldi,01/10/2015
Nottinghamshire County Council,Activities & Support,"Children, Families & Cultural Services",Debit,20.00,argos ltd,01/10/2015
Nottinghamshire County Council,Pocket Money,"Children, Families & Cultural Services",Debit,30.00,www.footlocker.eu,01/10/2015
Nottinghamshire County Council,Clothing/Shoes/Uniforms,"Children, Families & Cultural Services",Debit,34.99,www.footlocker.eu,01/10/2015
Nottinghamshire County Council,Pocket Money,"Children, Families & Cultural Services",Debit,4.99,www.footasylum.com,01/10/2015
Nottinghamshire County Council,Pocket Money,"Children, Families & Cultural Services",Debit,7.25,amazon uk marketplace,01/10/2015
Nottinghamshire County Council,Pocket Money,"Children, Families & Cultural Services",Debit,9.99,amazon uk marketplace,01/10/2015
Nottinghamshire County Council,Teaching Equipment,"Children, Families & Cultural Services",Debit,24.86,asda superstore 04261,01/10/2015
Nottinghamshire County Council,Materials - External,Environment & Resources,Debit,26.88,eyre  elliston ltd,01/10/2015
Nottinghamshire County Council,Office / General Equipment,Environment & Resources,Debit,92.15,screwfix direct,01/10/2015
Nottinghamshire County Council,Provisions,"Adult Social Care, Health & Public Protection ",Credit,-224.76,www.b-c-training.co.uk,01/10/2015
Nottinghamshire County Council,Provisions,"Adult Social Care, Health & Public Protection ",Debit,226.11,www.b-c-training.co.uk,01/10/2015
Nottinghamshire County Council,Activities & Support,"Children, Families & Cultural Services",Debit,15.15,farmfoods- baldert,01/10/2015
Nottinghamshire County Council,Non-Employees medical fees,Environment & Resources,Debit,47.99,amazon uk marketplace,01/10/2015
Nottinghamshire County Council,Rights Of Way,Environment & Resources,Debit,9.99,the range,01/10/2015
Nottinghamshire County Council,Minor Works,"Children, Families & Cultural Services",Debit,34.99,amazon uk marketplace,01/10/2015
Nottinghamshire County Council,Activities & Support,"Children, Families & Cultural Services",Debit,44.16,argos ltd,01/10/2015
Nottinghamshire County Council,Section 17,"Children, Families & Cultural Services",Debit,52.15,amazon uk retail,01/10/2015
Nottinghamshire County Council,Activities & Support,"Children, Families & Cultural Services",Debit,0.95,aldi,01/10/2015
Nottinghamshire County Council,Stock,"Children, Families & Cultural Services",Credit,-286.35,cookco catering equipmen,01/10/2015
Nottinghamshire County Council,Cleaning Materials,"Children, Families & Cultural Services",Debit,5.00,wilko retail limit,01/10/2015
Nottinghamshire County Council,Provisions,"Adult Social Care, Health & Public Protection ",Debit,66.56,www.viking-direct.co.u,01/10/2015
Nottinghamshire County Council,Provisions,"Adult Social Care, Health & Public Protection ",Debit,59.94,www.viking-direct.co.u,01/10/2015
Nottinghamshire County Council,Activities & Support,"Children, Families & Cultural Services",Debit,49.50,paypal  ,01/10/2015
Nottinghamshire County Council,Other Fee's & Services,"Children, Families & Cultural Services",Debit,11.00,nottingham city co,01/10/2015
Nottinghamshire County Council,Staff Training,"Children, Families & Cultural Services",Debit,20.48,charitychoice.co.uk,01/10/2015
Nottinghamshire County Council,Clients - H & S Equipt,"Children, Families & Cultural Services",Debit,6.25,wilko retail limit,01/10/2015
Nottinghamshire County Council,Aftercare - Equipment,"Children, Families & Cultural Services",Debit,197.99,argos ltd,01/10/2015
Nottinghamshire County Council,Activities & Support,"Children, Families & Cultural Services",Debit,9.50,tesco stores 6735,01/10/2015
Nottinghamshire County Council,Other Fee's & Services,Place,Debit,96.60,[Redacted],01/10/2015
Nottinghamshire County Council,Personal Needs,"Children, Families & Cultural Services",Debit,35.96,amazon uk marketplace,01/10/2015
Nottinghamshire County Council,Personal Needs,"Children, Families & Cultural Services",Debit,5.99,netflix.com,01/10/2015
Nottinghamshire County Council,Activities & Support,"Children, Families & Cultural Services",Debit,6.50,post office counter,01/10/2015
Nottinghamshire County Council,Activities & Support,"Children, Families & Cultural Services",Debit,8.15,wm morrison 067,01/10/2015
Nottinghamshire County Council,Cleaning & Domestic Equipment,"Adult Social Care, Health & Public Protection ",Debit,6.00,w m morrison plc,01/10/2015
Nottinghamshire County Council,Cleaning & Domestic Equipment,"Adult Social Care, Health & Public Protection ",Debit,4.99,aldi,01/10/2015
Nottinghamshire County Council,Cleaning & Domestic Equipment,"Adult Social Care, Health & Public Protection ",Debit,3.00,w boyes  co ltd kirkb,01/10/2015
Nottinghamshire County Council,Activities & Support,"Children, Families & Cultural Services",Debit,7.25,aldi,01/10/2015
Nottinghamshire County Council,Office / General Equipment,"Adult Social Care, Health & Public Protection ",Debit,35.36,amazon uk marketplace,01/10/2015
Nottinghamshire County Council,Activities & Support,"Children, Families & Cultural Services",Debit,16.96,w m morrison plc,01/10/2015
Nottinghamshire County Council,Activities & Support,"Children, Families & Cultural Services",Debit,8.29,farmfoods- kirkby/,01/10/2015
Nottinghamshire County Council,Office / General Equipment,Environment & Resources,Debit,307.90,amazon uk retail,01/10/2015
Nottinghamshire County Council,Office / General Equipment,Environment & Resources,Debit,16.96,amazon uk marketplace,01/10/2015
Nottinghamshire County Council,Provisions,"Adult Social Care, Health & Public Protection ",Debit,190.20,wm morrison food.com,01/10/2015
Nottinghamshire County Council,Activities & Support,"Children, Families & Cultural Services",Debit,2.15,amazon uk marketplace,01/10/2015
Nottinghamshire County Council,Office / General Equipment,"Policy, Planning & Corporate Services",Debit,81.31,hotjar,01/10/2015
Nottinghamshire County Council,Office / General Equipment,"Policy, Planning & Corporate Services",Debit,27.27,fontdeck,01/10/2015
Nottinghamshire County Council,Clients - H & S Equipt,"Children, Families & Cultural Services",Debit,3.30,greggs - s1772,01/10/2015
Nottinghamshire County Council,Clients - H & S Equipt,"Children, Families & Cultural Services",Debit,55.00,tesco stores 5379,01/10/2015
Nottinghamshire County Council,Clients - H & S Equipt,"Children, Families & Cultural Services",Debit,14.99,tesco stores 5379,01/10/2015
Nottinghamshire County Council,Aftercare - Equipment,"Children, Families & Cultural Services",Debit,66.87,b  m retail,01/10/2015
Nottinghamshire County Council,Clients - H & S Equipt,"Children, Families & Cultural Services",Debit,26.31,lidl uk,01/10/2015
Nottinghamshire County Council,Aftercare - Equipment,"Children, Families & Cultural Services",Debit,300.46,currys superstore,01/10/2015
Nottinghamshire County Council,Aftercare - Equipment,"Children, Families & Cultural Services",Debit,200.00,furniture heaven,01/10/2015
Nottinghamshire County Council,Personal Needs,"Children, Families & Cultural Services",Debit,135.89,argos retail group,03/11/2015
Nottinghamshire County Council,Office / General Equipment,"Children, Families & Cultural Services",Debit,39.50,amazon uk marketplace,30/10/2015
Nottinghamshire County Council,Office / General Equipment,"Children, Families & Cultural Services",Debit,39.50,amazon uk marketplace,30/10/2015
Nottinghamshire County Council,Furniture,"Children, Families & Cultural Services",Debit,34.99,amazon uk retail,30/10/2015
Nottinghamshire County Council,Stationery,"Children, Families & Cultural Services",Debit,5.98,amazon uk marketplace,29/10/2015
Nottinghamshire County Council,Stationery,"Children, Families & Cultural Services",Debit,11.49,amazon uk marketplace,29/10/2015
Nottinghamshire County Council,Stationery,"Children, Families & Cultural Services",Debit,3.24,amazon uk marketplace,29/10/2015
Nottinghamshire County Council,Stationery,"Children, Families & Cultural Services",Debit,2.89,amazon uk marketplace,29/10/2015
Nottinghamshire County Council,Laundry & Dry Cleaning,"Children, Families & Cultural Services",Debit,44.62,amazon uk marketplace,28/10/2015
Nottinghamshire County Council,Office / General Equipment,"Children, Families & Cultural Services",Debit,21.24,amazon uk marketplace,24/10/2015
Nottinghamshire County Council,Office / General Equipment,"Children, Families & Cultural Services",Debit,12.54,amazon uk marketplace,23/10/2015
Nottinghamshire County Council,Personal Needs,"Children, Families & Cultural Services",Debit,8.00,amazon uk retail,22/10/2015
Nottinghamshire County Council,Personal Needs,"Children, Families & Cultural Services",Debit,32.80,tickets com,22/10/2015
Nottinghamshire County Council,Furniture,"Children, Families & Cultural Services",Debit,25.95,amz store chester,22/10/2015
Nottinghamshire County Council,Personal Needs,"Children, Families & Cultural Services",Debit,26.69,amz completecare,22/10/2015
Nottinghamshire County Council,Personal Needs,"Children, Families & Cultural Services",Debit,25.00,amazon uk retail,22/10/2015
Nottinghamshire County Council,Laundry & Dry Cleaning,"Children, Families & Cultural Services",Debit,794.87,www.dorset-nursing.co.,16/10/2015
Nottinghamshire County Council,Personal Needs,"Children, Families & Cultural Services",Debit,24.00,amazon uk retail,21/10/2015
Nottinghamshire County Council,Personal Needs,"Children, Families & Cultural Services",Debit,19.99,amazon uk retail,21/10/2015
Nottinghamshire County Council,Cleaning Materials,"Children, Families & Cultural Services",Debit,5.98,amazon uk marketplace,16/10/2015
Nottinghamshire County Council,Personal Needs,"Children, Families & Cultural Services",Debit,10.66,amazon uk retail,16/10/2015
Nottinghamshire County Council,Office / General Equipment,"Children, Families & Cultural Services",Debit,18.94,argos retail group,16/10/2015
Nottinghamshire County Council,Personal Needs,"Children, Families & Cultural Services",Debit,12.99,amazon uk marketplace,15/10/2015
Nottinghamshire County Council,Personal Needs,"Children, Families & Cultural Services",Debit,44.95,amazon uk marketplace,15/10/2015
Nottinghamshire County Council,Personal Needs,"Children, Families & Cultural Services",Debit,41.35,amazon uk marketplace,14/10/2015
Nottinghamshire County Council,Personal Needs,"Children, Families & Cultural Services",Debit,10.99,amazon uk marketplace,13/10/2015
Nottinghamshire County Council,Personal Needs,"Children, Families & Cultural Services",Debit,2.49,amazon uk marketplace,13/10/2015
Nottinghamshire County Council,Personal Needs,"Children, Families & Cultural Services",Debit,5.95,amazon uk marketplace,13/10/2015
Nottinghamshire County Council,Personal Needs,"Children, Families & Cultural Services",Debit,25.95,amazon uk marketplace,12/10/2015
Nottinghamshire County Council,Clothing/Shoes/Uniforms,"Children, Families & Cultural Services",Debit,168.99,next directory,06/10/2015
Nottinghamshire County Council,Catering Consumables,"Adult Social Care, Health & Public Protection ",Debit,45.00,sainsburys smkt,03/11/2015
Nottinghamshire County Council,Catering Consumables,"Adult Social Care, Health & Public Protection ",Debit,14.40,w boyes  co ltd newar,31/10/2015
Nottinghamshire County Council,Catering Consumables,"Adult Social Care, Health & Public Protection ",Debit,20.20,sainsburys smkt,29/10/2015
Nottinghamshire County Council,Catering Consumables,"Adult Social Care, Health & Public Protection ",Debit,50.96,asda superstore,29/10/2015
Nottinghamshire County Council,Catering Consumables,"Adult Social Care, Health & Public Protection ",Debit,15.85,southwell aquatic cent,28/10/2015
Nottinghamshire County Council,Catering Consumables,"Adult Social Care, Health & Public Protection ",Debit,48.00,asda superstore,26/10/2015
Nottinghamshire County Council,Catering Consumables,"Adult Social Care, Health & Public Protection ",Debit,3.40,sainsburys smkt,23/10/2015
Nottinghamshire County Council,Catering Consumables,"Adult Social Care, Health & Public Protection ",Debit,7.21,handi centre bingham,21/10/2015
Nottinghamshire County Council,Catering Consumables,"Adult Social Care, Health & Public Protection ",Debit,20.70,[Redacted],16/10/2015
Nottinghamshire County Council,Catering Consumables,"Adult Social Care, Health & Public Protection ",Debit,63.94,asda superstore,15/10/2015
Nottinghamshire County Council,Catering Consumables,"Adult Social Care, Health & Public Protection ",Debit,10.99,denmans electrical,13/10/2015
Nottinghamshire County Council,Provisions,"Children, Families & Cultural Services",Debit,42.25,tesco stores 3378,27/10/2015
Nottinghamshire County Council,Aids & Appliances,"Adult Social Care, Health & Public Protection ",Debit,32.98,amazon uk retail,30/10/2015
Nottinghamshire County Council,Aids & Appliances,"Adult Social Care, Health & Public Protection ",Debit,49.50,amazon uk retail,15/10/2015
Nottinghamshire County Council,Specialist Equipment,"Adult Social Care, Health & Public Protection ",Debit,33.62,amazon uk retail,09/10/2015
Nottinghamshire County Council,Provisions,"Adult Social Care, Health & Public Protection ",Credit,-1.04,asda home shopping,02/11/2015
Nottinghamshire County Council,Cleaning Materials,"Adult Social Care, Health & Public Protection ",Debit,16.00,asda home shopping,02/11/2015
Nottinghamshire County Council,Provisions,"Adult Social Care, Health & Public Protection ",Debit,157.67,asda home shopping,02/11/2015
Nottinghamshire County Council,Cleaning Materials,"Adult Social Care, Health & Public Protection ",Debit,42.40,asda home shopping,26/10/2015
Nottinghamshire County Council,Provisions,"Adult Social Care, Health & Public Protection ",Debit,173.49,asda home shopping,26/10/2015
Nottinghamshire County Council,Provisions,"Adult Social Care, Health & Public Protection ",Debit,2.38,asda home shopping,26/10/2015
Nottinghamshire County Council,Provisions,"Adult Social Care, Health & Public Protection ",Debit,0.53,asda home shopping,19/10/2015
Nottinghamshire County Council,Provisions,"Adult Social Care, Health & Public Protection ",Debit,158.88,asda home shopping,19/10/2015
Nottinghamshire County Council,Cleaning Materials,"Adult Social Care, Health & Public Protection ",Debit,30.27,amazon uk retail,16/10/2015
Nottinghamshire County Council,Cleaning Materials,"Adult Social Care, Health & Public Protection ",Debit,12.98,amazon uk marketplace,15/10/2015
Nottinghamshire County Council,Cleaning Materials,"Adult Social Care, Health & Public Protection ",Debit,3.42,amazon uk marketplace,15/10/2015
Nottinghamshire County Council,Cleaning Materials,"Adult Social Care, Health & Public Protection ",Debit,56.66,asda home shopping,12/10/2015
Nottinghamshire County Council,Provisions,"Adult Social Care, Health & Public Protection ",Debit,141.14,asda home shopping,12/10/2015
Nottinghamshire County Council,Provisions,"Adult Social Care, Health & Public Protection ",Debit,0.40,asda home shopping,12/10/2015
Nottinghamshire County Council,Cleaning Materials,"Adult Social Care, Health & Public Protection ",Debit,1.71,amazon uk marketplace,06/10/2015
Nottinghamshire County Council,Provisions,"Adult Social Care, Health & Public Protection ",Credit,-1.86,asda home shopping,05/10/2015
Nottinghamshire County Council,Provisions,"Adult Social Care, Health & Public Protection ",Debit,133.71,asda home shopping,05/10/2015
Nottinghamshire County Council,Activities & Support,"Children, Families & Cultural Services",Debit,16.04,aldi,28/10/2015
Nottinghamshire County Council,Activities & Support,"Children, Families & Cultural Services",Debit,2.49,tesco stores 5329,27/10/2015
Nottinghamshire County Council,Activities & Support,"Children, Families & Cultural Services",Debit,1.70,ikea,12/10/2015
Nottinghamshire County Council,Activities & Support,"Children, Families & Cultural Services",Debit,1.90,ikea,12/10/2015
Nottinghamshire County Council,Activities & Support,"Children, Families & Cultural Services",Debit,5.00,xercise 4 less nottingha,08/10/2015
Nottinghamshire County Council,Activities & Support,"Children, Families & Cultural Services",Debit,6.80,clumber plant ctr,07/10/2015
Nottinghamshire County Council,Activities & Support,"Children, Families & Cultural Services",Debit,13.05,tesco pfs 5252,07/10/2015
Nottinghamshire County Council,Activities & Support,"Children, Families & Cultural Services",Debit,3.50,w m morrisons cafe,05/10/2015
Nottinghamshire County Council,Activities & Support,"Children, Families & Cultural Services",Debit,1.39,tesco stores 5329,02/10/2015
Nottinghamshire County Council,Activities & Support,"Children, Families & Cultural Services",Debit,15.54,asda stores 4517,03/11/2015
Nottinghamshire County Council,Activities & Support,"Children, Families & Cultural Services",Debit,8.39,aldi,30/10/2015
Nottinghamshire County Council,Activities & Support,"Children, Families & Cultural Services",Debit,7.00,asda stores 4517,27/10/2015
Nottinghamshire County Council,Activities & Support,"Children, Families & Cultural Services",Debit,10.61,asda stores 4517,26/10/2015
Nottinghamshire County Council,Activities & Support,"Children, Families & Cultural Services",Debit,32.31,tesco store 3439,23/10/2015
Nottinghamshire County Council,Activities & Support,"Children, Families & Cultural Services",Debit,7.50,asda stores 4517,22/10/2015
Nottinghamshire County Council,Activities & Support,"Children, Families & Cultural Services",Debit,1.89,asda stores 4517,20/10/2015
Nottinghamshire County Council,Activities & Support,"Children, Families & Cultural Services",Debit,18.99,wm morrison store,19/10/2015
Nottinghamshire County Council,Activities & Support,"Children, Families & Cultural Services",Debit,4.13,aldi,15/10/2015
Nottinghamshire County Council,Activities & Support,"Children, Families & Cultural Services",Debit,9.11,asda stores 4517,15/10/2015
Nottinghamshire County Council,Activities & Support,"Children, Families & Cultural Services",Debit,39.98,argos ltd,08/10/2015
Nottinghamshire County Council,Activities & Support,"Children, Families & Cultural Services",Debit,15.00,grainger games,08/10/2015
Nottinghamshire County Council,Activities & Support,"Children, Families & Cultural Services",Debit,6.20,poundland ltd 1188,08/10/2015
Nottinghamshire County Council,Activities & Support,"Children, Families & Cultural Services",Debit,44.06,game retail ltd works,08/10/2015
Nottinghamshire County Council,Activities & Support,"Children, Families & Cultural Services",Debit,9.25,asda stores 4517,08/10/2015
Nottinghamshire County Council,Activities & Support,"Children, Families & Cultural Services",Debit,16.99,bm retail ltd,08/10/2015
Nottinghamshire County Council,Activities & Support,"Children, Families & Cultural Services",Debit,5.00,asda stores 4517,06/10/2015
Nottinghamshire County Council,Activities & Support,"Children, Families & Cultural Services",Debit,43.89,baker ross,06/10/2015
Nottinghamshire County Council,Activities & Support,"Children, Families & Cultural Services",Debit,46.90,sportsdirect.com,05/10/2015
Nottinghamshire County Council,Activities & Support,"Children, Families & Cultural Services",Debit,4.84,tesco stores 2995,03/11/2015
Nottinghamshire County Council,Activities & Support,"Children, Families & Cultural Services",Debit,4.58,tesco stores 2995,27/10/2015
Nottinghamshire County Council,Activities & Support,"Children, Families & Cultural Services",Debit,3.07,tesco stores 2995,26/10/2015
Nottinghamshire County Council,Activities & Support,"Children, Families & Cultural Services",Debit,8.00,hobbycraft,21/10/2015
Nottinghamshire County Council,Activities & Support,"Children, Families & Cultural Services",Debit,24.05,the range,21/10/2015
Nottinghamshire County Council,Activities & Support,"Children, Families & Cultural Services",Debit,12.00,poundland ltd 1333,20/10/2015
Nottinghamshire County Council,Activities & Support,"Children, Families & Cultural Services",Debit,0.92,amazon uk marketplace,10/10/2015
Nottinghamshire County Council,Activities & Support,"Children, Families & Cultural Services",Debit,3.48,amazon uk marketplace,09/10/2015
Nottinghamshire County Council,Activities & Support,"Children, Families & Cultural Services",Debit,1.31,amazon uk marketplace,10/10/2015
Nottinghamshire County Council,Activities & Support,"Children, Families & Cultural Services",Debit,1.38,amazon uk marketplace,08/10/2015
Nottinghamshire County Council,Activities & Support,"Children, Families & Cultural Services",Debit,4.99,tesco stores 2995,07/10/2015
Nottinghamshire County Council,Activities & Support,"Children, Families & Cultural Services",Debit,24.50,royal centre moto,09/10/2015
Nottinghamshire County Council,Activities & Support,"Children, Families & Cultural Services",Debit,2.98,aldi,09/10/2015
Nottinghamshire County Council,Activities & Support,"Children, Families & Cultural Services",Debit,4.87,aldi,02/10/2015
Nottinghamshire County Council,Materials - External,Environment & Resources,Debit,6.26,jewson 3664,28/10/2015
Nottinghamshire County Council,Materials - External,Environment & Resources,Debit,12.56,jewson 3664,28/10/2015
Nottinghamshire County Council,Materials - External,Environment & Resources,Debit,4.79,jewson 3664,28/10/2015
Nottinghamshire County Council,Materials - External,Environment & Resources,Debit,6.26,jewson 3664,28/10/2015
Nottinghamshire County Council,Materials - External,Environment & Resources,Debit,5.65,tp newark,29/10/2015
Nottinghamshire County Council,Materials - External,Environment & Resources,Debit,12.65,tp newark,29/10/2015
Nottinghamshire County Council,Materials - External,Environment & Resources,Debit,11.42,tp newark,29/10/2015
Nottinghamshire County Council,Materials - External,Environment & Resources,Debit,15.00,b  q,14/10/2015
Nottinghamshire County Council,Materials - External,Environment & Resources,Debit,0.98,b  q,14/10/2015
Nottinghamshire County Council,Materials - External,Environment & Resources,Debit,0.98,b  q,14/10/2015
Nottinghamshire County Council,Materials - External,Environment & Resources,Debit,5.90,b  q,14/10/2015
Nottinghamshire County Council,Materials - External,Environment & Resources,Debit,0.98,b  q,14/10/2015
Nottinghamshire County Council,Materials - External,Environment & Resources,Debit,0.98,b  q,14/10/2015
Nottinghamshire County Council,Materials - External,Environment & Resources,Debit,0.98,b  q,14/10/2015
Nottinghamshire County Council,Materials - External,Environment & Resources,Debit,0.98,b  q,14/10/2015
Nottinghamshire County Council,Materials - External,Environment & Resources,Debit,39.54,handi centre bingham,29/10/2015
Nottinghamshire County Council,Materials - External,Environment & Resources,Debit,41.79,handi centre bingham,27/10/2015
Nottinghamshire County Council,Materials - External,Environment & Resources,Debit,68.59,b s specialist products,26/10/2015
Nottinghamshire County Council,Materials - External,Environment & Resources,Debit,53.39,gibbs  dandy,22/10/2015
Nottinghamshire County Council,Materials - External,Environment & Resources,Debit,51.96,handi centre bingham,22/10/2015
Nottinghamshire County Council,Materials - External,Environment & Resources,Debit,84.79,gibbs  dandy,22/10/2015
Nottinghamshire County Council,Materials - External,Environment & Resources,Debit,58.80,stapletons lock  safe,19/10/2015
Nottinghamshire County Council,Materials - External,Environment & Resources,Debit,12.53,john a stephens,09/10/2015
Nottinghamshire County Council,Materials - External,Environment & Resources,Debit,91.02,john a stephens,09/10/2015
Nottinghamshire County Council,Materials - External,Environment & Resources,Debit,54.24,jwl architectural iron,07/10/2015
Nottinghamshire County Council,Materials - External,Environment & Resources,Debit,120.73,jwl architectural iron,02/10/2015
Nottinghamshire County Council,Materials - External,Environment & Resources,Debit,33.60,howden joinery arnold,16/10/2015
Nottinghamshire County Council,Materials - External,Environment & Resources,Debit,11.06,howden joinery arnold,16/10/2015
Nottinghamshire County Council,Materials - External,Environment & Resources,Debit,7.20,howden joinery arnold,16/10/2015
Nottinghamshire County Council,Materials - External,Environment & Resources,Debit,15.00,power tools plus l,03/11/2015
Nottinghamshire County Council,Materials - External,Environment & Resources,Debit,193.90,jwl architectural iron,19/10/2015
Nottinghamshire County Council,Materials - External,Environment & Resources,Debit,34.58,power tools plus l,16/10/2015
Nottinghamshire County Council,Materials - External,Environment & Resources,Debit,17.56,jwl architectural iron,05/10/2015
Nottinghamshire County Council,Other Fee's & Services,Environment & Resources,Debit,218.03,http://www.rtitb.co.uk/,03/11/2015
Nottinghamshire County Council,Other Fee's & Services,Environment & Resources,Debit,178.74,www.rtitb.co.uk,30/10/2015
Nottinghamshire County Council,Other Fee's & Services,Environment & Resources,Debit,115.00,dsa,22/10/2015
Nottinghamshire County Council,Other Fee's & Services,Environment & Resources,Credit,-55.00,dsa,22/10/2015
Nottinghamshire County Council,Other Fee's & Services,Environment & Resources,Debit,115.00,dsa,22/10/2015
Nottinghamshire County Council,Other Fee's & Services,Environment & Resources,Debit,115.00,dsa,22/10/2015
Nottinghamshire County Council,Other Fee's & Services,Environment & Resources,Credit,-23.00,dsa theory test,22/10/2015
Nottinghamshire County Council,Other Fee's & Services,Environment & Resources,Debit,49.00,dsa theory test,22/10/2015
Nottinghamshire County Council,Other Fee's & Services,Environment & Resources,Debit,115.00,dsa,19/10/2015
Nottinghamshire County Council,Other Fee's & Services,Environment & Resources,Debit,55.00,dsa,19/10/2015
Nottinghamshire County Council,Other Fee's & Services,Environment & Resources,Debit,198.21,http://www.rtitb.co.uk/,15/10/2015
Nottinghamshire County Council,Other Fee's & Services,Environment & Resources,Debit,178.38,http://www.rtitb.co.uk/,14/10/2015
Nottinghamshire County Council,Other Fee's & Services,Environment & Resources,Debit,198.21,http://www.rtitb.co.uk/,13/10/2015
Nottinghamshire County Council,Office / General Equipment,"Children, Families & Cultural Services",Debit,21.99,amazon uk marketplace,29/10/2015
Nottinghamshire County Council,Teaching Equipment,"Children, Families & Cultural Services",Debit,151.68,wickes,22/10/2015
Nottinghamshire County Council,Minor Works,"Children, Families & Cultural Services",Debit,2.53,w m morrisons,03/11/2015
Nottinghamshire County Council,Minor Works,"Children, Families & Cultural Services",Debit,5.51,tesco pfs 4083,30/10/2015
Nottinghamshire County Council,Minor Works,"Children, Families & Cultural Services",Debit,5.52,tesco pfs 4083,01/11/2015
Nottinghamshire County Council,Minor Works,"Children, Families & Cultural Services",Debit,7.28,tesco stores 2702,29/10/2015
Nottinghamshire County Council,Minor Works,"Children, Families & Cultural Services",Debit,3.63,tesco stores 2702,26/10/2015
Nottinghamshire County Council,Minor Works,"Children, Families & Cultural Services",Debit,5.30,tesco pfs 4083,25/10/2015
Nottinghamshire County Council,Minor Works,"Children, Families & Cultural Services",Debit,4.24,tesco stores 2702,21/10/2015
Nottinghamshire County Council,Minor Works,"Children, Families & Cultural Services",Debit,2.25,w m morrisons,19/10/2015
Nottinghamshire County Council,Minor Works,"Children, Families & Cultural Services",Debit,5.35,tesco pfs 4083,15/10/2015
Nottinghamshire County Council,Minor Works,"Children, Families & Cultural Services",Debit,1.15,w m morrisons,14/10/2015
Nottinghamshire County Council,Minor Works,"Children, Families & Cultural Services",Debit,3.38,w m morrisons,12/10/2015
Nottinghamshire County Council,Minor Works,"Children, Families & Cultural Services",Debit,33.50,frank key (notts) ltd,09/10/2015
Nottinghamshire County Council,Minor Works,"Children, Families & Cultural Services",Debit,4.99,tesco stores 2702,07/10/2015
Nottinghamshire County Council,Minor Works,"Children, Families & Cultural Services",Credit,-74.39,strauss direct ltd,16/10/2015
Nottinghamshire County Council,Minor Works,"Children, Families & Cultural Services",Debit,175.18,strauss direct ltd,07/10/2015
Nottinghamshire County Council,Minor Works,"Children, Families & Cultural Services",Debit,161.98,strauss direct ltd,07/10/2015
Nottinghamshire County Council,Aftercare - Equipment,"Children, Families & Cultural Services",Debit,40.00,asda store ston in as,14/10/2015
Nottinghamshire County Council,Aftercare - Equipment,"Children, Families & Cultural Services",Debit,97.90,wilko retail limit,14/10/2015
Nottinghamshire County Council,Clients - H & S Equipt,"Children, Families & Cultural Services",Debit,9.10,asda store ston in as,14/10/2015
Nottinghamshire County Council,Activities & Support,"Children, Families & Cultural Services",Debit,38.96,trainline,03/11/2015
Nottinghamshire County Council,Activities & Support,"Children, Families & Cultural Services",Debit,5.73,aldi,26/10/2015
Nottinghamshire County Council,Activities & Support,"Children, Families & Cultural Services",Debit,16.09,the range,21/10/2015
Nottinghamshire County Council,Activities & Support,"Children, Families & Cultural Services",Debit,33.93,amazon uk marketplace,22/10/2015
Nottinghamshire County Council,Activities & Support,"Children, Families & Cultural Services",Debit,4.00,amazon uk retail,10/10/2015
Nottinghamshire County Council,Activities & Support,"Children, Families & Cultural Services",Debit,2.60,amazon uk retail,04/10/2015
Nottinghamshire County Council,Activities & Support,"Children, Families & Cultural Services",Debit,7.99,amazon uk retail,02/10/2015
Nottinghamshire County Council,Activities & Support,"Children, Families & Cultural Services",Debit,3.27,wm morrison 048,28/10/2015
Nottinghamshire County Council,Activities & Support,"Children, Families & Cultural Services",Debit,20.73,asda superstore,23/10/2015
Nottinghamshire County Council,Activities & Support,"Children, Families & Cultural Services",Debit,18.00,asda superstore,23/10/2015
Nottinghamshire County Council,Activities & Support,"Children, Families & Cultural Services",Debit,14.48,wm morrison 048,22/10/2015
Nottinghamshire County Council,Activities & Support,"Children, Families & Cultural Services",Debit,27.60,tesco stores 5379,16/10/2015
Nottinghamshire County Council,Activities & Support,"Children, Families & Cultural Services",Debit,2.34,wm morrison 048,16/10/2015
Nottinghamshire County Council,Activities & Support,"Children, Families & Cultural Services",Debit,63.35,wm morrison 048,13/10/2015
Nottinghamshire County Council,Activities & Support,"Children, Families & Cultural Services",Debit,76.73,wm morrison 048,09/10/2015
Nottinghamshire County Council,Activities & Support,"Children, Families & Cultural Services",Debit,95.43,asda superstore 04030,27/10/2015
Nottinghamshire County Council,Activities & Support,"Children, Families & Cultural Services",Debit,55.02,asda superstore 04030,15/10/2015
Nottinghamshire County Council,Activities & Support,"Children, Families & Cultural Services",Debit,4.13,co-op group 065071,13/10/2015
Nottinghamshire County Council,Activities & Support,"Children, Families & Cultural Services",Debit,97.19,asda superstore 04030,06/10/2015
Nottinghamshire County Council,Office / General Equipment,"Children, Families & Cultural Services",Debit,75.00,the mighty creatives,13/10/2015
Nottinghamshire County Council,Materials - External,Environment & Resources,Debit,10.80,keyline ashfield,29/10/2015
Nottinghamshire County Council,Materials - External,Environment & Resources,Debit,94.50,howden joinery arnold,07/10/2015
Nottinghamshire County Council,Activities & Support,"Children, Families & Cultural Services",Debit,417.80,mimeo,21/10/2015
Nottinghamshire County Council,Activities & Support,"Children, Families & Cultural Services",Debit,70.05,amazon uk retail,23/10/2015
Nottinghamshire County Council,Activities & Support,"Children, Families & Cultural Services",Debit,166.00,the imperial hotels lond,20/10/2015
Nottinghamshire County Council,Activities & Support,"Children, Families & Cultural Services",Debit,38.22,amazon uk retail,15/10/2015
Nottinghamshire County Council,Activities & Support,"Children, Families & Cultural Services",Debit,38.22,amazon uk retail,15/10/2015
Nottinghamshire County Council,Activities & Support,"Children, Families & Cultural Services",Debit,209.00,inter contine,13/10/2015
Nottinghamshire County Council,Activities & Support,"Children, Families & Cultural Services",Debit,39.94,amazon uk retail,09/10/2015
Nottinghamshire County Council,Hospitality,"Children, Families & Cultural Services",Debit,0.89,asda store ston in as,03/11/2015
Nottinghamshire County Council,Postages,"Children, Families & Cultural Services",Debit,1.84,post office counter,29/10/2015
Nottinghamshire County Council,Postages,"Children, Families & Cultural Services",Debit,1.84,post office counter,28/10/2015
Nottinghamshire County Council,Hospitality,"Children, Families & Cultural Services",Debit,1.42,wm morrison 023,19/10/2015
Nottinghamshire County Council,Postages,"Children, Families & Cultural Services",Debit,1.84,post office counter,06/10/2015
Nottinghamshire County Council,Provisions,"Children, Families & Cultural Services",Debit,39.70,sainsburys smkt,02/11/2015
Nottinghamshire County Council,Provisions,"Children, Families & Cultural Services",Debit,2.00,sainsburys smkt,02/11/2015
Nottinghamshire County Council,Provisions,"Children, Families & Cultural Services",Debit,19.71,asda superstore,01/11/2015
Nottinghamshire County Council,Provisions,"Children, Families & Cultural Services",Debit,58.46,sainsburys smkt,26/10/2015
Nottinghamshire County Council,Provisions,"Children, Families & Cultural Services",Debit,3.00,asda superstore,24/10/2015
Nottinghamshire County Council,Provisions,"Children, Families & Cultural Services",Debit,23.60,sainsburys smkt,20/10/2015
Nottinghamshire County Council,Provisions,"Children, Families & Cultural Services",Debit,66.05,sainsburys smkt,19/10/2015
Nottinghamshire County Council,Provisions,"Children, Families & Cultural Services",Debit,7.10,sainsburys smkt,13/10/2015
Nottinghamshire County Council,Provisions,"Children, Families & Cultural Services",Debit,63.13,sainsburys smkt,12/10/2015
Nottinghamshire County Council,Provisions,"Children, Families & Cultural Services",Debit,5.25,sainsburys smkt,12/10/2015
Nottinghamshire County Council,Provisions,"Children, Families & Cultural Services",Debit,32.95,sainsburys smkt,05/10/2015
Nottinghamshire County Council,Other Fee's & Services,"Children, Families & Cultural Services",Debit,145.50,tvlicensing.co.uk,02/11/2015
Nottinghamshire County Council,Other Fee's & Services,"Children, Families & Cultural Services",Debit,46.00,post office counter,13/10/2015
Nottinghamshire County Council,Other Fee's & Services,"Children, Families & Cultural Services",Debit,9.75,post office counter,09/10/2015
Nottinghamshire County Council,Office / General Equipment,Environment & Resources,Debit,115.68,york survey supply,13/10/2015
Nottinghamshire County Council,Specialist Equipment,Environment & Resources,Debit,24.96,www.stuff-uk.net,12/10/2015
Nottinghamshire County Council,Books - General,Environment & Resources,Debit,438.00,www.neccontract.com,07/10/2015
Nottinghamshire County Council,Stationery,Environment & Resources,Debit,87.03,amazon uk marketplace,06/10/2015
Nottinghamshire County Council,Clothing/Shoes/Uniforms,"Children, Families & Cultural Services",Debit,18.50,odeon,27/10/2015
Nottinghamshire County Council,Office / General Equipment,"Children, Families & Cultural Services",Debit,7.50,upt blackpool contactles,26/10/2015
Nottinghamshire County Council,Office / General Equipment,"Children, Families & Cultural Services",Debit,12.00,tesco stores 5437,18/10/2015
Nottinghamshire County Council,Office / General Equipment,"Children, Families & Cultural Services",Debit,14.99,tesco stores 5437,18/10/2015
Nottinghamshire County Council,Office / General Equipment,"Children, Families & Cultural Services",Debit,57.98,sportsdirect 292,12/10/2015
Nottinghamshire County Council,Office / General Equipment,"Adult Social Care, Health & Public Protection ",Debit,43.98,screwfix direct,02/11/2015
Nottinghamshire County Council,Provisions,"Adult Social Care, Health & Public Protection ",Debit,24.50,tesco stores-3439,15/10/2015
Nottinghamshire County Council,Building Maintenance,Environment & Resources,Debit,53.06,eyre  elliston ltd,29/10/2015
Nottinghamshire County Council,Building Maintenance,Environment & Resources,Debit,79.55,eyre  elliston ltd,20/10/2015
Nottinghamshire County Council,Office / General Equipment,Place ,Debit,51.49,amazon uk retail,30/10/2015
Nottinghamshire County Council,Office / General Equipment,Place ,Debit,36.00,instit of occptnl safe,30/10/2015
Nottinghamshire County Council,Office / General Equipment,Place ,Debit,19.50,vue ncs citb hse test,29/10/2015
Nottinghamshire County Council,Office / General Equipment,Place ,Debit,183.60,aldercross limited,19/10/2015
Nottinghamshire County Council,Office / General Equipment,Place ,Debit,74.87,arco ltd,14/10/2015
Nottinghamshire County Council,Furniture,"Adult Social Care, Health & Public Protection ",Debit,226.20,healthcare direct ltd,22/10/2015
Nottinghamshire County Council,Cleaning & Domestic Equipment,"Adult Social Care, Health & Public Protection ",Debit,90.23,argos ltd,22/10/2015
Nottinghamshire County Council,First Aid Equipment Purchases,"Adult Social Care, Health & Public Protection ",Debit,54.45,amazon uk marketplace,21/10/2015
Nottinghamshire County Council,Cleaning Materials,"Adult Social Care, Health & Public Protection ",Debit,57.93,bissell direct,08/10/2015
Nottinghamshire County Council,Activities & Support,"Adult Social Care, Health & Public Protection ",Debit,36.00,white post farm centre l,07/10/2015
Nottinghamshire County Council,Holidays,"Children, Families & Cultural Services",Debit,543.00,holiday inns,29/10/2015
Nottinghamshire County Council,Provisions,"Children, Families & Cultural Services",Debit,309.51,owen taylor  sons,12/10/2015
Nottinghamshire County Council,Clothing/Shoes/Uniforms,"Children, Families & Cultural Services",Debit,16.20,amazon uk marketplace,12/10/2015
Nottinghamshire County Council,Clothing/Shoes/Uniforms,"Children, Families & Cultural Services",Debit,1.44,amazon uk marketplace,09/10/2015
Nottinghamshire County Council,Clothing/Shoes/Uniforms,"Children, Families & Cultural Services",Debit,2.65,amazon uk marketplace,08/10/2015
Nottinghamshire County Council,Materials - External,Environment & Resources,Debit,100.33,plumb center tw,27/10/2015
Nottinghamshire County Council,Materials - External,Environment & Resources,Debit,9.67,plumb center tw,27/10/2015
Nottinghamshire County Council,Materials - External,Environment & Resources,Debit,5.99,plumb center tw,27/10/2015
Nottinghamshire County Council,Materials - External,Environment & Resources,Debit,105.34,tubes fittings,23/10/2015
Nottinghamshire County Council,Materials - External,Environment & Resources,Debit,6.00,plumb center tw,21/10/2015
Nottinghamshire County Council,Materials - External,Environment & Resources,Debit,121.06,plumb center tw,21/10/2015
Nottinghamshire County Council,Materials - External,Environment & Resources,Debit,11.99,plumb center tw,21/10/2015
Nottinghamshire County Council,Materials - External,Environment & Resources,Debit,4.24,plumb center tw,21/10/2015
Nottinghamshire County Council,Materials - External,Environment & Resources,Debit,10.38,plumb center tw,21/10/2015
Nottinghamshire County Council,Materials - External,Environment & Resources,Debit,69.89,tubes fittings,12/10/2015
Nottinghamshire County Council,Materials - External,Environment & Resources,Debit,66.40,tubes fittings,09/10/2015
Nottinghamshire County Council,Personal Needs,"Children, Families & Cultural Services",Debit,28.00,odeon,30/10/2015
Nottinghamshire County Council,Provisions,"Children, Families & Cultural Services",Debit,13.55,wm morrisons plc,22/10/2015
Nottinghamshire County Council,Office / General Equipment,Environment & Resources,Debit,175.50,premier inn44521620,01/11/2015
Nottinghamshire County Council,Office / General Equipment,Environment & Resources,Debit,175.50,premier inn44521620,01/11/2015
Nottinghamshire County Council,Office / General Equipment,Environment & Resources,Debit,22.35,shell newark,01/11/2015
Nottinghamshire County Council,Office / General Equipment,Environment & Resources,Debit,41.00,morrisons petrol,15/10/2015
Nottinghamshire County Council,Office / General Equipment,Environment & Resources,Debit,142.46,redwood farm,13/10/2015
Nottinghamshire County Council,Office / General Equipment,Environment & Resources,Debit,19.35,gloucester ga,13/10/2015
Nottinghamshire County Council,Office / General Equipment,Environment & Resources,Debit,16.58,morrisons petrol,12/10/2015
Nottinghamshire County Council,Office / General Equipment,Environment & Resources,Debit,34.59,shell newark,09/10/2015
Nottinghamshire County Council,Office / General Equipment,Environment & Resources,Credit,-124.75,premier inn44521620,06/10/2015
Nottinghamshire County Council,Office / General Equipment,Environment & Resources,Credit,-124.75,premier inn44521620,06/10/2015
Nottinghamshire County Council,Office / General Equipment,Environment & Resources,Debit,68.74,premier inn44521620,07/10/2015
Nottinghamshire County Council,Office / General Equipment,Environment & Resources,Debit,374.25,premier inn44521620,01/10/2015
Nottinghamshire County Council,Office / General Equipment,Environment & Resources,Debit,374.25,premier inn44521620,01/10/2015
Nottinghamshire County Council,Other Fee's & Services,"Children, Families & Cultural Services",Debit,9.25,gro hm passport office,27/10/2015
Nottinghamshire County Council,Other Fee's & Services,"Children, Families & Cultural Services",Debit,9.25,gro hm passport office,14/10/2015
Nottinghamshire County Council,Activities & Support,"Children, Families & Cultural Services",Debit,15.94,amazon uk marketplace,08/10/2015
Nottinghamshire County Council,Other Fee's & Services,Environment & Resources,Debit,25.00,www.moneyclaim.gov,03/11/2015
Nottinghamshire County Council,Other Fee's & Services,Environment & Resources,Debit,60.00,www.moneyclaim.gov,03/11/2015
Nottinghamshire County Council,Other Fee's & Services,Environment & Resources,Debit,70.00,www.moneyclaim.gov,29/10/2015
Nottinghamshire County Council,Other Fee's & Services,Environment & Resources,Debit,70.00,www.moneyclaim.gov,29/10/2015
Nottinghamshire County Council,Other Fee's & Services,Environment & Resources,Debit,70.00,www.moneyclaim.gov,29/10/2015
Nottinghamshire County Council,Other Fee's & Services,Environment & Resources,Debit,70.00,www.moneyclaim.gov,27/10/2015
Nottinghamshire County Council,Other Fee's & Services,Environment & Resources,Debit,10.00,www.gov.uk,23/10/2015
Nottinghamshire County Council,Other Fee's & Services,Environment & Resources,Debit,9.25,gro hm passport office,20/10/2015
Nottinghamshire County Council,Other Fee's & Services,Environment & Resources,Debit,11.00,nottingham city co,20/10/2015
Nottinghamshire County Council,Other Fee's & Services,Environment & Resources,Debit,70.00,www.moneyclaim.gov,20/10/2015
Nottinghamshire County Council,Other Fee's & Services,Environment & Resources,Debit,105.00,www.moneyclaim.gov,19/10/2015
Nottinghamshire County Council,Other Fee's & Services,Environment & Resources,Debit,70.00,www.moneyclaim.gov,19/10/2015
Nottinghamshire County Council,Other Fee's & Services,Environment & Resources,Debit,185.00,www.moneyclaim.gov,16/10/2015
Nottinghamshire County Council,Other Fee's & Services,Environment & Resources,Debit,70.00,www.moneyclaim.gov,16/10/2015
Nottinghamshire County Council,Other Fee's & Services,Environment & Resources,Debit,105.00,www.moneyclaim.gov,16/10/2015
Nottinghamshire County Council,Other Fee's & Services,Environment & Resources,Debit,35.00,www.moneyclaim.gov,16/10/2015
Nottinghamshire County Council,Other Fee's & Services,Environment & Resources,Debit,105.00,www.moneyclaim.gov,15/10/2015
Nottinghamshire County Council,Other Fee's & Services,Environment & Resources,Debit,25.00,www.moneyclaim.gov,15/10/2015
Nottinghamshire County Council,Other Fee's & Services,Environment & Resources,Debit,410.00,www.moneyclaim.gov,14/10/2015
Nottinghamshire County Council,Other Fee's & Services,Environment & Resources,Debit,604.99,www.moneyclaim.gov,13/10/2015
Nottinghamshire County Council,Other Fee's & Services,Environment & Resources,Debit,410.00,www.moneyclaim.gov,02/10/2015
Nottinghamshire County Council,Stationery,"Children, Families & Cultural Services",Debit,8.99,amazon uk retail,02/11/2015
Nottinghamshire County Council,Stationery,"Children, Families & Cultural Services",Debit,110.00,hobbycraft (internet),27/10/2015
Nottinghamshire County Council,Stationery,"Children, Families & Cultural Services",Debit,31.26,amazon uk marketplace,27/10/2015
Nottinghamshire County Council,Stationery,"Children, Families & Cultural Services",Debit,54.89,the range,26/10/2015
Nottinghamshire County Council,Non-Employees medical fees,"Children, Families & Cultural Services",Debit,160.20,royal bolton hospital,15/10/2015
Nottinghamshire County Council,Legal Fees,"Children, Families & Cultural Services",Debit,300.00,bhatia best,15/10/2015
Nottinghamshire County Council,Legal Fees,"Children, Families & Cultural Services",Debit,300.00,jwp solicitors llp,12/10/2015
Nottinghamshire County Council,Legal Fees,"Children, Families & Cultural Services",Debit,300.00,bhatia best,08/10/2015
Nottinghamshire County Council,Stationery,"Children, Families & Cultural Services",Debit,90.86,the range,02/10/2015
Nottinghamshire County Council,Activities & Support,"Adult Social Care, Health & Public Protection ",Debit,139.10,js online grocery,30/10/2015
Nottinghamshire County Council,Activities & Support,"Adult Social Care, Health & Public Protection ",Debit,65.55,js online grocery,26/10/2015
Nottinghamshire County Council,Activities & Support,"Adult Social Care, Health & Public Protection ",Debit,123.32,js online grocery,15/10/2015
Nottinghamshire County Council,Activities & Support,"Adult Social Care, Health & Public Protection ",Debit,132.11,js online grocery,08/10/2015
Nottinghamshire County Council,Activities & Support,"Children, Families & Cultural Services",Debit,21.50,cex retford,29/10/2015
Nottinghamshire County Council,Activities & Support,"Children, Families & Cultural Services",Debit,15.00,cex retford,28/10/2015
Nottinghamshire County Council,Other Fee's & Services,"Adult Social Care, Health & Public Protection ",Debit,10.39,rs components,22/10/2015
Nottinghamshire County Council,Books - General,"Adult Social Care, Health & Public Protection ",Debit,49.99,amazon uk retail,27/10/2015
Nottinghamshire County Council,Other Fee's & Services,"Adult Social Care, Health & Public Protection ",Debit,22.40,boots 0012,22/10/2015
Nottinghamshire County Council,Other Fee's & Services,"Adult Social Care, Health & Public Protection ",Debit,11.50,tfl cc/lez charge,21/10/2015
Nottinghamshire County Council,Activities & Support,"Children, Families & Cultural Services",Debit,5.19,lidl uk,02/11/2015
Nottinghamshire County Council,Activities & Support,"Children, Families & Cultural Services",Debit,3.56,subway,02/10/2015
Nottinghamshire County Council,Cleaning Materials,"Adult Social Care, Health & Public Protection ",Debit,160.34,edmundson electrical,13/10/2015
Nottinghamshire County Council,Cleaning Materials,"Adult Social Care, Health & Public Protection ",Debit,102.24,edmundson electrical,13/10/2015
Nottinghamshire County Council,Cleaning Materials,"Adult Social Care, Health & Public Protection ",Debit,14.97,w boyes  co ltd newar,02/11/2015
Nottinghamshire County Council,Cleaning Materials,"Adult Social Care, Health & Public Protection ",Debit,20.00,the curtain mill,22/10/2015
Nottinghamshire County Council,Cleaning Materials,"Adult Social Care, Health & Public Protection ",Debit,32.00,bon marche,20/10/2015
Nottinghamshire County Council,Cleaning Materials,"Adult Social Care, Health & Public Protection ",Credit,-6.00,daro uv systems,14/10/2015
Nottinghamshire County Council,Cleaning Materials,"Adult Social Care, Health & Public Protection ",Debit,146.46,daro uv systems,02/10/2015
Nottinghamshire County Council,Legal Fees,"Policy, Planning & Corporate Services",Debit,"7,472.00",www.thelawsociety.org,28/10/2015
Nottinghamshire County Council,Legal Fees,"Policy, Planning & Corporate Services",Debit,25.00,www.moneyclaim.gov,28/10/2015
Nottinghamshire County Council,Legal Fees,"Policy, Planning & Corporate Services",Debit,455.00,www.justice.gov.uk,16/10/2015
Nottinghamshire County Council,Legal Fees,"Policy, Planning & Corporate Services",Debit,83.52,gotocitrix.com,15/10/2015
Nottinghamshire County Council,Legal Fees,"Policy, Planning & Corporate Services",Debit,12.28,amazon uk marketplace,13/10/2015
Nottinghamshire County Council,Legal Fees,"Policy, Planning & Corporate Services",Debit,11.00,sheffield city cnc,09/10/2015
Nottinghamshire County Council,Legal Fees,"Policy, Planning & Corporate Services",Debit,455.00,www.justice.gov.uk,08/10/2015
Nottinghamshire County Council,Minor Works,"Children, Families & Cultural Services",Debit,8.00,amazon uk marketplace,03/11/2015
Nottinghamshire County Council,Minor Works,"Children, Families & Cultural Services",Debit,15.41,amazon uk retail,28/10/2015
Nottinghamshire County Council,Minor Works,"Children, Families & Cultural Services",Debit,28.49,amazon uk marketplace,28/10/2015
Nottinghamshire County Council,Minor Works,"Children, Families & Cultural Services",Debit,17.58,amazon uk marketplace,28/10/2015
Nottinghamshire County Council,Minor Works,"Children, Families & Cultural Services",Debit,45.88,amazon uk marketplace,28/10/2015
Nottinghamshire County Council,Minor Works,"Children, Families & Cultural Services",Debit,28.38,amazon uk marketplace,28/10/2015
Nottinghamshire County Council,Minor Works,"Children, Families & Cultural Services",Debit,30.98,amazon uk marketplace,27/10/2015
Nottinghamshire County Council,Minor Works,"Children, Families & Cultural Services",Debit,38.99,amazon uk marketplace,27/10/2015
Nottinghamshire County Council,Minor Works,"Children, Families & Cultural Services",Debit,20.00,amazon uk retail,26/10/2015
Nottinghamshire County Council,Minor Works,"Children, Families & Cultural Services",Debit,20.00,amazon uk retail,26/10/2015
Nottinghamshire County Council,Minor Works,"Children, Families & Cultural Services",Debit,54.00,amazon uk marketplace,26/10/2015
Nottinghamshire County Council,Minor Works,"Children, Families & Cultural Services",Debit,104.13,wm morrison food.com,26/10/2015
Nottinghamshire County Council,Minor Works,"Children, Families & Cultural Services",Debit,60.00,bcu,23/10/2015
Nottinghamshire County Council,Minor Works,"Children, Families & Cultural Services",Debit,14.16,co-op group 017091,17/10/2015
Nottinghamshire County Council,Minor Works,"Children, Families & Cultural Services",Debit,82.95,amazon uk retail,17/10/2015
Nottinghamshire County Council,Minor Works,"Children, Families & Cultural Services",Debit,82.95,amazon uk retail,17/10/2015
Nottinghamshire County Council,Provisions,"Children, Families & Cultural Services",Debit,27.50,paddyfields,16/10/2015
Nottinghamshire County Council,Provisions,"Children, Families & Cultural Services",Debit,113.96,aldi,15/10/2015
Nottinghamshire County Council,Provisions,"Children, Families & Cultural Services",Debit,4.00,sainsburys s/mkts,15/10/2015
Nottinghamshire County Council,Provisions,"Children, Families & Cultural Services",Debit,2.69,bargain booze,13/10/2015
Nottinghamshire County Council,Office / General Equipment,"Children, Families & Cultural Services",Debit,51.00,sainsburys s/mkts,06/10/2015
Nottinghamshire County Council,Provisions,"Children, Families & Cultural Services",Debit,5.89,mcdonalds,06/10/2015
Nottinghamshire County Council,Cleaning Materials,"Children, Families & Cultural Services",Debit,17.00,sainsburys s/mkts,06/10/2015
Nottinghamshire County Council,Provisions,"Children, Families & Cultural Services",Debit,2.64,co-op group 017091,06/10/2015
Nottinghamshire County Council,Clothing/Shoes/Uniforms,"Children, Families & Cultural Services",Debit,20.00,primark,05/10/2015
Nottinghamshire County Council,Provisions,"Children, Families & Cultural Services",Debit,59.43,aldi,06/10/2015
Nottinghamshire County Council,Personal Needs,"Children, Families & Cultural Services",Debit,8.43,savers health  beauty,05/10/2015
Nottinghamshire County Council,Clothing/Shoes/Uniforms,"Children, Families & Cultural Services",Debit,32.99,new look 2015,05/10/2015
Nottinghamshire County Council,Personal Needs,"Children, Families & Cultural Services",Debit,12.36,savers health  beauty,05/10/2015
Nottinghamshire County Council,Provisions,"Children, Families & Cultural Services",Debit,29.89,asda superstore,03/10/2015
Nottinghamshire County Council,Activities & Support,"Children, Families & Cultural Services",Debit,4.00,sainsburys s/mkts,02/11/2015
Nottinghamshire County Council,Activities & Support,"Children, Families & Cultural Services",Debit,3.06,w boyes  co ltd arnol,01/11/2015
Nottinghamshire County Council,Activities & Support,"Children, Families & Cultural Services",Debit,2.00,asda superstore,01/11/2015
Nottinghamshire County Council,Activities & Support,"Children, Families & Cultural Services",Debit,2.00,cancer research ltd,28/10/2015
Nottinghamshire County Council,Activities & Support,"Children, Families & Cultural Services",Debit,20.87,b  m retail,27/10/2015
Nottinghamshire County Council,Activities & Support,"Children, Families & Cultural Services",Debit,4.95,londis,27/10/2015
Nottinghamshire County Council,Activities & Support,"Children, Families & Cultural Services",Debit,15.14,aldi,27/10/2015
Nottinghamshire County Council,Activities & Support,"Children, Families & Cultural Services",Debit,3.84,w boyes  co ltd arnol,26/10/2015
Nottinghamshire County Council,Activities & Support,"Children, Families & Cultural Services",Debit,7.04,wilko retail limit,26/10/2015
Nottinghamshire County Council,Activities & Support,"Children, Families & Cultural Services",Debit,13.25,b  m retail,21/10/2015
Nottinghamshire County Council,Activities & Support,"Children, Families & Cultural Services",Debit,12.00,halfords 0442,17/10/2015
Nottinghamshire County Council,Activities & Support,"Children, Families & Cultural Services",Debit,0.70,asda superstore,17/10/2015
Nottinghamshire County Council,Activities & Support,"Children, Families & Cultural Services",Debit,9.46,co-op group 011261,17/10/2015
Nottinghamshire County Council,Activities & Support,"Children, Families & Cultural Services",Debit,21.25,mcdonalds,18/10/2015
Nottinghamshire County Council,Activities & Support,"Children, Families & Cultural Services",Debit,2.10,central eng coop r,16/10/2015
Nottinghamshire County Council,Activities & Support,"Children, Families & Cultural Services",Debit,25.74,b  m retail,15/10/2015
Nottinghamshire County Council,Activities & Support,"Children, Families & Cultural Services",Debit,7.66,aldi,15/10/2015
Nottinghamshire County Council,Activities & Support,"Children, Families & Cultural Services",Debit,12.94,b  m retail,13/10/2015
Nottinghamshire County Council,Activities & Support,"Children, Families & Cultural Services",Debit,5.49,co-op group 011261,09/10/2015
Nottinghamshire County Council,Activities & Support,"Children, Families & Cultural Services",Debit,5.95,mapperley footwear  spo,07/10/2015
Nottinghamshire County Council,Activities & Support,"Children, Families & Cultural Services",Debit,3.00,wilko retail limit,07/10/2015
Nottinghamshire County Council,Activities & Support,"Children, Families & Cultural Services",Debit,11.97,yeomans outdoor le,07/10/2015
Nottinghamshire County Council,Activities & Support,"Children, Families & Cultural Services",Debit,23.47,yeomans outdoor le,07/10/2015
Nottinghamshire County Council,Activities & Support,"Children, Families & Cultural Services",Debit,71.24,argos ltd,07/10/2015
Nottinghamshire County Council,Activities & Support,"Children, Families & Cultural Services",Debit,2.50,asda superstore,07/10/2015
Nottinghamshire County Council,Activities & Support,"Children, Families & Cultural Services",Debit,2.50,asda superstore,07/10/2015
Nottinghamshire County Council,Catering Equipment,"Adult Social Care, Health & Public Protection ",Debit,19.05,wilko retail limit,31/10/2015
Nottinghamshire County Council,Provisions,"Adult Social Care, Health & Public Protection ",Debit,2.34,tesco store 3439,26/10/2015
Nottinghamshire County Council,Building Maintenance,Environment & Resources,Debit,19.68,john a stephens,02/11/2015
Nottinghamshire County Council,Building Maintenance,Environment & Resources,Debit,115.04,john a stephens,29/10/2015
Nottinghamshire County Council,Building Maintenance,Environment & Resources,Debit,16.80,1st access,22/10/2015
Nottinghamshire County Council,Building Maintenance,Environment & Resources,Debit,46.91,john a stephens,21/10/2015
Nottinghamshire County Council,Building Maintenance,Environment & Resources,Debit,3.72,john a stephens,21/10/2015
Nottinghamshire County Council,Building Maintenance,Environment & Resources,Debit,9.84,john a stephens,19/10/2015
Nottinghamshire County Council,Building Maintenance,Environment & Resources,Debit,26.60,1st access,15/10/2015
Nottinghamshire County Council,Building Maintenance,Environment & Resources,Debit,18.76,jwl architectural iron,15/10/2015
Nottinghamshire County Council,Building Maintenance,Environment & Resources,Debit,39.60,alltools ltd,13/10/2015
Nottinghamshire County Council,Building Maintenance,Environment & Resources,Debit,11.25,john a stephens,13/10/2015
Nottinghamshire County Council,Office / General Equipment,"Policy, Planning & Corporate Services",Debit,9.58,amazon uk marketplace,29/10/2015
Nottinghamshire County Council,Office / General Equipment,"Policy, Planning & Corporate Services",Debit,51.65,amazon uk marketplace,29/10/2015
Nottinghamshire County Council,Office / General Equipment,"Policy, Planning & Corporate Services",Debit,62.24,paypal  ,29/10/2015
Nottinghamshire County Council,Office / General Equipment,"Policy, Planning & Corporate Services",Debit,66.66,www.yellowmoon.org.uk,28/10/2015
Nottinghamshire County Council,Office / General Equipment,"Policy, Planning & Corporate Services",Debit,11.35,amazon uk marketplace,28/10/2015
Nottinghamshire County Council,Office / General Equipment,"Policy, Planning & Corporate Services",Debit,24.09,www.ryman.co.uk,27/10/2015
Nottinghamshire County Council,Office / General Equipment,"Policy, Planning & Corporate Services",Debit,120.00,tcpa web internet,13/10/2015
Nottinghamshire County Council,Office / General Equipment,"Policy, Planning & Corporate Services",Debit,26.39,www.ryman.co.uk,07/10/2015
Nottinghamshire County Council,Office / General Equipment,"Policy, Planning & Corporate Services",Debit,36.89,aspli safety equip,05/10/2015
Nottinghamshire County Council,Activities & Support,"Children, Families & Cultural Services",Debit,14.98,aldi,02/11/2015
Nottinghamshire County Council,Activities & Support,"Children, Families & Cultural Services",Debit,10.55,tesco stores 2381,30/10/2015
Nottinghamshire County Council,Activities & Support,"Children, Families & Cultural Services",Debit,17.19,lidl uk,29/10/2015
Nottinghamshire County Council,Activities & Support,"Children, Families & Cultural Services",Debit,1.65,sainsburys s/mkt,28/10/2015
Nottinghamshire County Council,Activities & Support,"Children, Families & Cultural Services",Debit,36.26,lidl uk,28/10/2015
Nottinghamshire County Council,Activities & Support,"Children, Families & Cultural Services",Debit,25.60,hobbycraft,27/10/2015
Nottinghamshire County Council,Activities & Support,"Children, Families & Cultural Services",Debit,4.14,tesco stores 2366,19/10/2015
Nottinghamshire County Council,Activities & Support,"Children, Families & Cultural Services",Debit,10.99,lidl uk,15/10/2015
Nottinghamshire County Council,Activities & Support,"Children, Families & Cultural Services",Debit,85.34,booker limited nottingha,14/10/2015
Nottinghamshire County Council,Activities & Support,"Children, Families & Cultural Services",Debit,1.20,tesco stores 5329,14/10/2015
Nottinghamshire County Council,Activities & Support,"Children, Families & Cultural Services",Debit,6.98,lidl uk,08/10/2015
Nottinghamshire County Council,Provisions,"Adult Social Care, Health & Public Protection ",Debit,13.15,one stop 2353,22/10/2015
Nottinghamshire County Council,Office / General Equipment,"Children, Families & Cultural Services",Debit,28.00,amazon uk marketplace,20/10/2015
Nottinghamshire County Council,Office / General Equipment,"Children, Families & Cultural Services",Debit,106.00,fellows morton  clayt,16/10/2015
Nottinghamshire County Council,Office / General Equipment,"Children, Families & Cultural Services",Debit,47.00,travelodge website,08/10/2015
Nottinghamshire County Council,Specialist Equipment,Place,Debit,44.13,screwfix direct,23/10/2015
Nottinghamshire County Council,Activities & Support,"Children, Families & Cultural Services",Debit,3.17,t j morris ltd,27/10/2015
Nottinghamshire County Council,Activities & Support,"Children, Families & Cultural Services",Debit,20.20,hobbycraft,27/10/2015
Nottinghamshire County Council,Activities & Support,"Children, Families & Cultural Services",Debit,30.00,shell awsworth,23/10/2015
Nottinghamshire County Council,Activities & Support,"Children, Families & Cultural Services",Debit,1.79,amazon uk marketplace,24/10/2015
Nottinghamshire County Council,Activities & Support,"Children, Families & Cultural Services",Debit,8.77,poundstretcher 349,21/10/2015
Nottinghamshire County Council,Activities & Support,"Children, Families & Cultural Services",Debit,5.02,bm retail ltd,21/10/2015
Nottinghamshire County Council,Activities & Support,"Children, Families & Cultural Services",Debit,6.59,co-op group 070294,17/10/2015
Nottinghamshire County Council,Activities & Support,"Children, Families & Cultural Services",Debit,29.34,mcdonalds,17/10/2015
Nottinghamshire County Council,Activities & Support,"Children, Families & Cultural Services",Debit,19.03,tesco stores 2733,15/10/2015
Nottinghamshire County Council,Activities & Support,"Children, Families & Cultural Services",Debit,14.54,wm morrisons,15/10/2015
Nottinghamshire County Council,Activities & Support,"Children, Families & Cultural Services",Debit,8.99,amazon svcs europesar,08/10/2015
Nottinghamshire County Council,Activities & Support,"Children, Families & Cultural Services",Debit,15.39,amazon uk marketplace,08/10/2015
Nottinghamshire County Council,Activities & Support,"Children, Families & Cultural Services",Debit,19.17,tesco pay at pump 4083,08/10/2015
Nottinghamshire County Council,Activities & Support,"Children, Families & Cultural Services",Debit,2.99,amazon uk marketplace,08/10/2015
Nottinghamshire County Council,Activities & Support,"Children, Families & Cultural Services",Debit,19.95,mansfield superbowl,08/10/2015
Nottinghamshire County Council,Activities & Support,"Children, Families & Cultural Services",Debit,200.00,adventurefarm.co,07/10/2015
Nottinghamshire County Council,Activities & Support,"Children, Families & Cultural Services",Debit,41.96,decathlon,06/10/2015
Nottinghamshire County Council,Activities & Support,"Children, Families & Cultural Services",Debit,16.78,wm morrisons,05/10/2015
Nottinghamshire County Council,Activities & Support,"Children, Families & Cultural Services",Debit,28.94,decathlon,05/10/2015
Nottinghamshire County Council,Activities & Support,"Children, Families & Cultural Services",Debit,6.45,post office counter,02/10/2015
Nottinghamshire County Council,Activities & Support,"Children, Families & Cultural Services",Debit,2.85,wm morrisons,29/10/2015
Nottinghamshire County Council,Activities & Support,"Children, Families & Cultural Services",Debit,45.00,fat boys,20/10/2015
Nottinghamshire County Council,Activities & Support,"Children, Families & Cultural Services",Debit,14.27,mcdonalds,20/10/2015
Nottinghamshire County Council,Activities & Support,"Children, Families & Cultural Services",Debit,25.83,wilko retail limit,16/10/2015
Nottinghamshire County Council,Activities & Support,"Children, Families & Cultural Services",Debit,15.49,tesco stores 2995,15/10/2015
Nottinghamshire County Council,Activities & Support,"Children, Families & Cultural Services",Debit,12.00,tesco stores 5437,05/10/2015
Nottinghamshire County Council,Activities & Support,"Children, Families & Cultural Services",Debit,8.90,lidl uk,29/10/2015
Nottinghamshire County Council,Activities & Support,"Children, Families & Cultural Services",Debit,74.35,booker limited nottingha,22/10/2015
Nottinghamshire County Council,Activities & Support,"Children, Families & Cultural Services",Debit,12.75,cotswold outdoor,15/10/2015
Nottinghamshire County Council,Activities & Support,"Children, Families & Cultural Services",Debit,8.85,sainsburys spmkts,15/10/2015
Nottinghamshire County Council,Activities & Support,"Children, Families & Cultural Services",Debit,14.99,halfords 0855,14/10/2015
Nottinghamshire County Council,Activities & Support,"Children, Families & Cultural Services",Debit,10.37,lidl uk,08/10/2015
Nottinghamshire County Council,Family Financial Assistance,"Children, Families & Cultural Services",Debit,18.00,asda superstore,20/10/2015
Nottinghamshire County Council,Vehicles Repairs & Maintenance,"Children, Families & Cultural Services",Debit,10.00,bassetlaw d.c.,06/10/2015
Nottinghamshire County Council,Personal Needs,"Children, Families & Cultural Services",Debit,183.92,argos retail group,03/11/2015
Nottinghamshire County Council,Personal Needs,"Children, Families & Cultural Services",Debit,118.94,argos retail group,03/11/2015
Nottinghamshire County Council,Personal Needs,"Children, Families & Cultural Services",Debit,159.45,dunelm online order,07/10/2015
Nottinghamshire County Council,Personal Needs,"Children, Families & Cultural Services",Debit,434.43,dunelm online order,07/10/2015
Nottinghamshire County Council,Software Purchases,Resources ,Debit,70.35,pure chat inc,23/10/2015
Nottinghamshire County Council,Software Purchases,Resources ,Debit,96.00,nominet uk,15/10/2015
Nottinghamshire County Council,Software Purchases,Resources ,Debit,100.28,bc.basecamp ,12/10/2015
Nottinghamshire County Council,Software Purchases,Resources ,Debit,6.00,nominet uk,08/10/2015
Nottinghamshire County Council,Provisions,Resources ,Debit,56.97,www.dominos.co.uk,02/10/2015
Nottinghamshire County Council,Provisions,Resources ,Debit,86.95,www.dominos.co.uk,02/10/2015
Nottinghamshire County Council,Activities & Support,"Adult Social Care, Health & Public Protection ",Debit,47.93,ryanair    ,14/10/2015
Nottinghamshire County Council,Office / General Equipment,"Adult Social Care, Health & Public Protection ",Debit,6.74,fast key services,15/10/2015
Nottinghamshire County Council,Other Fee's & Services,"Children, Families & Cultural Services",Debit,18.01,wilko retail limit,23/10/2015
Nottinghamshire County Council,Other Fee's & Services,"Children, Families & Cultural Services",Debit,18.00,haywood  davenport,23/10/2015
Nottinghamshire County Council,Other Fee's & Services,"Children, Families & Cultural Services",Debit,555.57,ema emma email marketing,02/10/2015
Nottinghamshire County Council,Activities & Support,"Children, Families & Cultural Services",Debit,7.65,costa coffee,30/10/2015
Nottinghamshire County Council,Activities & Support,"Children, Families & Cultural Services",Debit,4.39,tesco stores 5437,29/10/2015
Nottinghamshire County Council,Activities & Support,"Children, Families & Cultural Services",Debit,11.70,tesco stores 5437,21/10/2015
Nottinghamshire County Council,Activities & Support,"Children, Families & Cultural Services",Debit,100.00,snowdome ltd,14/10/2015
Nottinghamshire County Council,Activities & Support,"Children, Families & Cultural Services",Debit,5.00,snowdome ltd,14/10/2015
Nottinghamshire County Council,Training Fees,"Adult Social Care, Health & Public Protection ",Debit,145.50,tvlicensing.co.uk,02/11/2015
Nottinghamshire County Council,Training Fees,"Adult Social Care, Health & Public Protection ",Debit,604.80,mansfield,12/10/2015
Nottinghamshire County Council,Clients - H & S Equipt,"Children, Families & Cultural Services",Credit,-164.40,eastmidlandstrains,03/11/2015
Nottinghamshire County Council,Clients - H & S Equipt,"Children, Families & Cultural Services",Debit,20.00,lul ticket machine,03/11/2015
Nottinghamshire County Council,Clients - H & S Equipt,"Children, Families & Cultural Services",Debit,5.10,starbucks,03/11/2015
Nottinghamshire County Council,Clients - H & S Equipt,"Children, Families & Cultural Services",Debit,184.00,ex catalogue furniture,27/10/2015
Nottinghamshire County Council,Clients - H & S Equipt,"Children, Families & Cultural Services",Debit,179.00,ao retail limited,26/10/2015
Nottinghamshire County Council,Clients - H & S Equipt,"Children, Families & Cultural Services",Debit,179.99,currys online,26/10/2015
Nottinghamshire County Council,Clients - H & S Equipt,"Children, Families & Cultural Services",Debit,109.00,ex catalogue furniture,22/10/2015
Nottinghamshire County Council,Clients - H & S Equipt,"Children, Families & Cultural Services",Debit,180.40,eastmidlandstrains,20/10/2015
Nottinghamshire County Council,Clients - H & S Equipt,"Children, Families & Cultural Services",Debit,179.00,currys,19/10/2015
Nottinghamshire County Council,Clients - H & S Equipt,"Children, Families & Cultural Services",Debit,20.00,mansfield european foo,19/10/2015
Nottinghamshire County Council,Clients - H & S Equipt,"Children, Families & Cultural Services",Debit,100.00,tesco stores (5378),16/10/2015
Nottinghamshire County Council,Clients - H & S Equipt,"Children, Families & Cultural Services",Debit,50.00,tesco stores (5378),16/10/2015
Nottinghamshire County Council,Clients - H & S Equipt,"Children, Families & Cultural Services",Debit,100.00,asda superstore,08/10/2015
Nottinghamshire County Council,Clients - H & S Equipt,"Children, Families & Cultural Services",Debit,189.00,ex catalogue furniture,05/10/2015
Nottinghamshire County Council,Clients - H & S Equipt,"Children, Families & Cultural Services",Debit,309.98,currys online,05/10/2015
Nottinghamshire County Council,Office / General Equipment,"Policy, Planning & Corporate Services",Debit,26.00,times newspapers ltd,22/10/2015
Nottinghamshire County Council,Provisions,"Adult Social Care, Health & Public Protection ",Debit,177.66,paypal  ,28/10/2015
Nottinghamshire County Council,Provisions,"Adult Social Care, Health & Public Protection ",Debit,43.97,argos retail group,12/10/2015
Nottinghamshire County Council,Provisions,"Adult Social Care, Health & Public Protection ",Debit,79.76,paypal  ,07/10/2015
Nottinghamshire County Council,Building Maintenance Servicing,Environment & Resources,Debit,75.50,timpson ltd,29/10/2015
Nottinghamshire County Council,Building Maintenance Servicing,Environment & Resources,Debit,9.00,timpson ltd,16/10/2015
Nottinghamshire County Council,Provisions,"Children, Families & Cultural Services",Debit,8.99,tesco stores 5437,29/10/2015
Nottinghamshire County Council,Clothing/Shoes/Uniforms,"Children, Families & Cultural Services",Debit,10.99,sportsdirect 292,28/10/2015
Nottinghamshire County Council,Cleaning & Domestic Equipment,"Children, Families & Cultural Services",Debit,10.00,tesco stores 5437,28/10/2015
Nottinghamshire County Council,Clothing/Shoes/Uniforms,"Children, Families & Cultural Services",Debit,43.00,usc,28/10/2015
Nottinghamshire County Council,Provisions,"Children, Families & Cultural Services",Debit,14.42,aldi,23/10/2015
Nottinghamshire County Council,Provisions,"Children, Families & Cultural Services",Debit,95.01,aldi,19/10/2015
Nottinghamshire County Council,Clothing/Shoes/Uniforms,"Children, Families & Cultural Services",Debit,22.00,primark,07/10/2015
Nottinghamshire County Council,Office / General Equipment,"Children, Families & Cultural Services",Debit,14.20,tesco stores 5437,07/10/2015
Nottinghamshire County Council,Office / General Equipment,"Children, Families & Cultural Services",Debit,7.25,wilko retail limit,06/10/2015
Nottinghamshire County Council,Activities & Support,"Children, Families & Cultural Services",Debit,7.78,misterton foodstre,29/10/2015
Nottinghamshire County Council,Activities & Support,"Children, Families & Cultural Services",Debit,3.35,one stop 2353,28/10/2015
Nottinghamshire County Council,Activities & Support,"Children, Families & Cultural Services",Debit,0.99,misterton foodstre,26/10/2015
Nottinghamshire County Council,Activities & Support,"Children, Families & Cultural Services",Debit,12.63,misterton foodstre,26/10/2015
Nottinghamshire County Council,Activities & Support,"Children, Families & Cultural Services",Debit,3.00,misterton foodstre,22/10/2015
Nottinghamshire County Council,Activities & Support,"Children, Families & Cultural Services",Debit,6.56,misterton foodstre,19/10/2015
Nottinghamshire County Council,Activities & Support,"Children, Families & Cultural Services",Debit,8.77,co-op group 017541,07/10/2015
Nottinghamshire County Council,Cleaning Materials,"Adult Social Care, Health & Public Protection ",Debit,49.68,jangro (leicester) ltd,02/11/2015
Nottinghamshire County Council,Cleaning Materials,"Adult Social Care, Health & Public Protection ",Debit,194.46,jangro (leicester) ltd,19/10/2015
Nottinghamshire County Council,Provisions,"Adult Social Care, Health & Public Protection ",Debit,56.12,jangro (leicester) ltd,19/10/2015
Nottinghamshire County Council,Catering Equipment,"Adult Social Care, Health & Public Protection ",Debit,20.37,www.nisbets.com,09/10/2015
Nottinghamshire County Council,Activities & Support,"Children, Families & Cultural Services",Debit,319.99,argos retail group,08/10/2015
Nottinghamshire County Council,Activities & Support,"Children, Families & Cultural Services",Debit,120.00,paypal  ,02/10/2015
Nottinghamshire County Council,Provisions,"Children, Families & Cultural Services",Debit,1.98,co-op group 017091,02/11/2015
Nottinghamshire County Council,Provisions,"Children, Families & Cultural Services",Debit,3.98,co-op group 017091,25/10/2015
Nottinghamshire County Council,Personal Needs,"Children, Families & Cultural Services",Debit,20.00,giffgaff.com,17/10/2015
Nottinghamshire County Council,Provisions,"Children, Families & Cultural Services",Debit,17.83,co-op group 017091,05/10/2015
Nottinghamshire County Council,Office / General Equipment,Place,Debit,16.09,wheatcroft,20/10/2015
Nottinghamshire County Council,Activities & Support,"Children, Families & Cultural Services",Debit,16.23,asda store ston in as,27/10/2015
Nottinghamshire County Council,Teaching Equipment,"Children, Families & Cultural Services",Debit,26.09,amazon uk retail,30/10/2015
Nottinghamshire County Council,Teaching Equipment,"Children, Families & Cultural Services",Debit,19.96,amazon uk marketplace,30/10/2015
Nottinghamshire County Council,Teaching Equipment,"Children, Families & Cultural Services",Debit,26.09,amazon uk retail,31/10/2015
Nottinghamshire County Council,Teaching Equipment,"Children, Families & Cultural Services",Debit,15.44,amazon uk retail,30/10/2015
Nottinghamshire County Council,Teaching Equipment,"Children, Families & Cultural Services",Debit,7.14,amazon uk marketplace,28/10/2015
Nottinghamshire County Council,Teaching Equipment,"Children, Families & Cultural Services",Debit,200.00,boots 0012,09/10/2015
Nottinghamshire County Council,Teaching Equipment,"Children, Families & Cultural Services",Debit,15.44,amazon uk retail,08/10/2015
Nottinghamshire County Council,Teaching Equipment,"Children, Families & Cultural Services",Debit,18.79,amazon uk marketplace,05/10/2015
Nottinghamshire County Council,Teaching Equipment,"Children, Families & Cultural Services",Debit,23.98,amazon uk retail,04/10/2015
Nottinghamshire County Council,Teaching Equipment,"Children, Families & Cultural Services",Debit,0.99,amazon uk marketplace,02/10/2015
Nottinghamshire County Council,Teaching Equipment,"Children, Families & Cultural Services",Debit,1.50,amazon uk marketplace,02/10/2015
Nottinghamshire County Council,Teaching Equipment,"Children, Families & Cultural Services",Debit,1.04,amazon uk marketplace,03/10/2015
Nottinghamshire County Council,Teaching Equipment,"Children, Families & Cultural Services",Debit,21.99,amazon uk retail,04/10/2015
Nottinghamshire County Council,Teaching Equipment,"Children, Families & Cultural Services",Debit,1.45,amazon uk marketplace,03/10/2015
Nottinghamshire County Council,Teaching Equipment,"Children, Families & Cultural Services",Debit,2.76,amazon uk marketplace,02/10/2015
Nottinghamshire County Council,Teaching Equipment,"Children, Families & Cultural Services",Debit,85.91,amazon uk retail,04/10/2015
Nottinghamshire County Council,Teaching Equipment,"Children, Families & Cultural Services",Debit,1.05,amazon uk marketplace,02/10/2015
Nottinghamshire County Council,MOT Tests,Environment & Resources,Debit,"2,000.00",dvsa,28/10/2015
Nottinghamshire County Council,Staff Training,Environment & Resources,Debit,377.97,premier inn44521620,26/10/2015
Nottinghamshire County Council,Materials - External,Environment & Resources,Debit,204.80,mvs,27/10/2015
Nottinghamshire County Council,Postages,Environment & Resources,Debit,7.97,amazon uk marketplace,26/10/2015
Nottinghamshire County Council,Stationery,Environment & Resources,Debit,28.24,amazon uk retail,24/10/2015
Nottinghamshire County Council,MOT Tests,Environment & Resources,Debit,"3,000.00",dvsa,23/10/2015
Nottinghamshire County Council,MOT Tests,Environment & Resources,Debit,"3,000.00",dvsa,20/10/2015
Nottinghamshire County Council,Office / General Equipment,Environment & Resources,Debit,909.00,novadata tachograph an,16/10/2015
Nottinghamshire County Council,MOT Tests,Environment & Resources,Debit,"2,000.00",dvsa,15/10/2015
Nottinghamshire County Council,Road Tax,Environment & Resources,Debit,227.50,www.dvla.gov.uk,12/10/2015
Nottinghamshire County Council,Road Tax,Environment & Resources,Debit,167.50,www.dvla.gov.uk,12/10/2015
Nottinghamshire County Council,Road Tax,Environment & Resources,Debit,167.50,www.dvla.gov.uk,12/10/2015
Nottinghamshire County Council,Road Tax,Environment & Resources,Debit,132.50,www.dvla.gov.uk,12/10/2015
Nottinghamshire County Council,MOT Tests,Environment & Resources,Debit,"3,000.00",dvsa,12/10/2015
Nottinghamshire County Council,Road Tax,Environment & Resources,Debit,227.50,www.dvla.gov.uk,12/10/2015
Nottinghamshire County Council,Road Tax,Environment & Resources,Debit,167.50,www.dvla.gov.uk,12/10/2015
Nottinghamshire County Council,Car Leasing Scheme,Environment & Resources,Debit,90.00,parking fines,09/10/2015
Nottinghamshire County Council,Road Tax,Environment & Resources,Debit,167.50,www.dvla.gov.uk,07/10/2015
Nottinghamshire County Council,Road Tax,Environment & Resources,Debit,202.50,www.dvla.gov.uk,07/10/2015
Nottinghamshire County Council,Road Tax,Environment & Resources,Debit,167.50,www.dvla.gov.uk,07/10/2015
Nottinghamshire County Council,Road Tax,Environment & Resources,Debit,227.50,www.dvla.gov.uk,07/10/2015
Nottinghamshire County Council,Road Tax,Environment & Resources,Debit,227.50,www.dvla.gov.uk,07/10/2015
Nottinghamshire County Council,Road Tax,Environment & Resources,Debit,167.50,www.dvla.gov.uk,07/10/2015
Nottinghamshire County Council,Road Tax,Environment & Resources,Debit,167.50,www.dvla.gov.uk,07/10/2015
Nottinghamshire County Council,Road Tax,Environment & Resources,Debit,227.50,www.dvla.gov.uk,07/10/2015
Nottinghamshire County Council,Road Tax,Environment & Resources,Debit,292.50,www.dvla.gov.uk,07/10/2015
Nottinghamshire County Council,MOT Tests,Environment & Resources,Debit,"4,000.00",dvsa,07/10/2015
Nottinghamshire County Council,Road Tax,Environment & Resources,Debit,167.50,www.dvla.gov.uk,07/10/2015
Nottinghamshire County Council,Road Tax,Environment & Resources,Debit,202.50,www.dvla.gov.uk,07/10/2015
Nottinghamshire County Council,Road Tax,Environment & Resources,Debit,227.50,www.dvla.gov.uk,07/10/2015
Nottinghamshire County Council,Road Tax,Environment & Resources,Debit,227.50,www.dvla.gov.uk,07/10/2015
Nottinghamshire County Council,Road Tax,Environment & Resources,Debit,652.50,www.dvla.gov.uk,07/10/2015
Nottinghamshire County Council,Road Tax,Environment & Resources,Debit,167.50,www.dvla.gov.uk,07/10/2015
Nottinghamshire County Council,Road Tax,Environment & Resources,Debit,227.50,www.dvla.gov.uk,06/10/2015
Nottinghamshire County Council,Road Tax,Environment & Resources,Debit,132.50,www.dvla.gov.uk,06/10/2015
Nottinghamshire County Council,Road Tax,Environment & Resources,Debit,227.50,www.dvla.gov.uk,06/10/2015
Nottinghamshire County Council,Road Tax,Environment & Resources,Debit,167.50,www.dvla.gov.uk,06/10/2015
Nottinghamshire County Council,Road Tax,Environment & Resources,Debit,227.50,www.dvla.gov.uk,06/10/2015
Nottinghamshire County Council,Road Tax,Environment & Resources,Debit,167.50,www.dvla.gov.uk,06/10/2015
Nottinghamshire County Council,Road Tax,Environment & Resources,Debit,167.50,www.dvla.gov.uk,06/10/2015
Nottinghamshire County Council,Road Tax,Environment & Resources,Debit,167.50,www.dvla.gov.uk,06/10/2015
Nottinghamshire County Council,Road Tax,Environment & Resources,Debit,167.50,www.dvla.gov.uk,06/10/2015
Nottinghamshire County Council,Road Tax,Environment & Resources,Debit,167.50,www.dvla.gov.uk,06/10/2015
Nottinghamshire County Council,Road Tax,Environment & Resources,Debit,167.50,www.dvla.gov.uk,06/10/2015
Nottinghamshire County Council,Road Tax,Environment & Resources,Debit,227.50,www.dvla.gov.uk,06/10/2015
Nottinghamshire County Council,Road Tax,Environment & Resources,Debit,227.50,www.dvla.gov.uk,06/10/2015
Nottinghamshire County Council,Road Tax,Environment & Resources,Debit,167.50,www.dvla.gov.uk,06/10/2015
Nottinghamshire County Council,Road Tax,Environment & Resources,Debit,202.50,www.dvla.gov.uk,05/10/2015
Nottinghamshire County Council,Road Tax,Environment & Resources,Debit,167.50,www.dvla.gov.uk,05/10/2015
Nottinghamshire County Council,Road Tax,Environment & Resources,Debit,202.50,www.dvla.gov.uk,05/10/2015
Nottinghamshire County Council,Road Tax,Environment & Resources,Debit,227.50,www.dvla.gov.uk,05/10/2015
Nottinghamshire County Council,Road Tax,Environment & Resources,Debit,227.50,www.dvla.gov.uk,05/10/2015
Nottinghamshire County Council,Road Tax,Environment & Resources,Debit,167.50,www.dvla.gov.uk,05/10/2015
Nottinghamshire County Council,Activities & Support,"Children, Families & Cultural Services",Debit,50.00,[Redacted],29/10/2015
Nottinghamshire County Council,Activities & Support,"Children, Families & Cultural Services",Debit,30.00,mansfield superbowl,29/10/2015
Nottinghamshire County Council,Activities & Support,"Children, Families & Cultural Services",Debit,69.88,[Redacted],29/10/2015
Nottinghamshire County Council,Activities & Support,"Children, Families & Cultural Services",Debit,14.55,tesco stores 2995,26/10/2015
Nottinghamshire County Council,Activities & Support,"Children, Families & Cultural Services",Debit,44.96,www.dominos.co.uk,30/10/2015
Nottinghamshire County Council,Activities & Support,"Children, Families & Cultural Services",Debit,67.00,national express limited,15/10/2015
Nottinghamshire County Council,Activities & Support,"Children, Families & Cultural Services",Debit,1.77,aldi,15/10/2015
Nottinghamshire County Council,Activities & Support,"Children, Families & Cultural Services",Debit,8.42,aldi,15/10/2015
Nottinghamshire County Council,Activities & Support,"Children, Families & Cultural Services",Debit,587.96,premier inn44011950,14/10/2015
Nottinghamshire County Council,Activities & Support,"Children, Families & Cultural Services",Debit,14.05,sainsburys s/mkts,13/10/2015
Nottinghamshire County Council,Activities & Support,"Children, Families & Cultural Services",Debit,10.34,aldi,08/10/2015
Nottinghamshire County Council,Activities & Support,"Children, Families & Cultural Services",Debit,32.09,tesco stores 6416,03/10/2015
Nottinghamshire County Council,Office / General Equipment,Environment & Resources,Debit,19.85,www.toolstation.com,03/11/2015
Nottinghamshire County Council,Office / General Equipment,Environment & Resources,Debit,34.74,amazon uk marketplace,19/10/2015
Nottinghamshire County Council,Office / General Equipment,Environment & Resources,Debit,23.90,toolstation ltd,06/10/2015
Nottinghamshire County Council,Provisions,Environment & Resources,Debit,234.00,showstoppers ltd,02/11/2015
Nottinghamshire County Council,Provisions,Environment & Resources,Debit,12.98,margin services ltd,30/10/2015
Nottinghamshire County Council,Provisions,Environment & Resources,Debit,16.65,amazon uk retail,24/10/2015
Nottinghamshire County Council,Provisions,Environment & Resources,Debit,15.36,amazon uk marketplace,23/10/2015
Nottinghamshire County Council,Provisions,Environment & Resources,Debit,0.01,nottinghmshire cc,21/10/2015
Nottinghamshire County Council,Provisions,Environment & Resources,Debit,354.40,ikea,21/10/2015
Nottinghamshire County Council,Provisions,Environment & Resources,Debit,167.47,makro self service notti,13/10/2015
Nottinghamshire County Council,Provisions,Environment & Resources,Debit,91.21,makro self service notti,09/10/2015
Nottinghamshire County Council,Provisions,Environment & Resources,Debit,429.02,makro self service notti,07/10/2015
Nottinghamshire County Council,Provisions,Environment & Resources,Debit,95.36,makro self service notti,06/10/2015
Nottinghamshire County Council,Provisions,Environment & Resources,Debit,104.40,www.ambican.com,05/10/2015
Nottinghamshire County Council,Activities & Support,"Adult Social Care, Health & Public Protection ",Debit,45.75,premier inn44016765,22/10/2015
Nottinghamshire County Council,Activities & Support,"Adult Social Care, Health & Public Protection ",Debit,17.50,amazon uk marketplace,15/10/2015
Nottinghamshire County Council,Activities & Support,"Adult Social Care, Health & Public Protection ",Debit,137.54,amazon uk marketplace,15/10/2015
Nottinghamshire County Council,Activities & Support,"Adult Social Care, Health & Public Protection ",Debit,15.18,amazon uk marketplace,14/10/2015
Nottinghamshire County Council,Activities & Support,"Children, Families & Cultural Services",Debit,27.87,asda superstore 04261,03/11/2015
Nottinghamshire County Council,Activities & Support,"Children, Families & Cultural Services",Debit,7.00,wilko retail limit,03/11/2015
Nottinghamshire County Council,Activities & Support,"Children, Families & Cultural Services",Debit,6.00,poundworld retail,02/11/2015
Nottinghamshire County Council,Activities & Support,"Children, Families & Cultural Services",Debit,7.05,tesco stores 5437,30/10/2015
Nottinghamshire County Council,Activities & Support,"Children, Families & Cultural Services",Debit,8.85,tesco stores 5437,29/10/2015
Nottinghamshire County Council,Activities & Support,"Children, Families & Cultural Services",Debit,10.79,heron foods ltd,27/10/2015
Nottinghamshire County Council,Activities & Support,"Children, Families & Cultural Services",Debit,25.10,poundworld retail,27/10/2015
Nottinghamshire County Council,Activities & Support,"Children, Families & Cultural Services",Debit,12.00,heron foods ltd,23/10/2015
Nottinghamshire County Council,Activities & Support,"Children, Families & Cultural Services",Debit,13.00,tesco stores 5437,22/10/2015
Nottinghamshire County Council,Activities & Support,"Children, Families & Cultural Services",Debit,14.55,tesco stores 5437,20/10/2015
Nottinghamshire County Council,Activities & Support,"Children, Families & Cultural Services",Debit,12.95,wilko retail limit,16/10/2015
Nottinghamshire County Council,Activities & Support,"Children, Families & Cultural Services",Debit,24.40,tesco stores 5437,16/10/2015
Nottinghamshire County Council,Activities & Support,"Children, Families & Cultural Services",Debit,16.00,wilko retail limit,15/10/2015
Nottinghamshire County Council,Activities & Support,"Children, Families & Cultural Services",Debit,18.90,tesco stores 5437,13/10/2015
Nottinghamshire County Council,Activities & Support,"Children, Families & Cultural Services",Debit,6.50,tesco stores 5437,09/10/2015
Nottinghamshire County Council,Activities & Support,"Children, Families & Cultural Services",Debit,12.50,tesco stores 5437,08/10/2015
Nottinghamshire County Council,Activities & Support,"Children, Families & Cultural Services",Debit,3.60,wm morrisons plc,06/10/2015
Nottinghamshire County Council,Activities & Support,"Children, Families & Cultural Services",Debit,7.40,primark,05/10/2015
Nottinghamshire County Council,Activities & Support,"Children, Families & Cultural Services",Debit,15.15,tesco stores 5437,06/10/2015
Nottinghamshire County Council,Activities & Support,"Children, Families & Cultural Services",Debit,10.00,sportsdirect 292,02/10/2015
Nottinghamshire County Council,Hardware Maintenance,Environment & Resources,Debit,98.42,arco ltd,28/10/2015
Nottinghamshire County Council,Building Maintenance,Environment & Resources,Debit,13.21,tubes fittings,15/10/2015
Nottinghamshire County Council,Building Maintenance,Environment & Resources,Debit,34.67,dulux decorator centre,14/10/2015
Nottinghamshire County Council,Building Maintenance,Environment & Resources,Debit,2.28,plumb center wu,08/10/2015
Nottinghamshire County Council,Building Maintenance,Environment & Resources,Debit,6.32,plumb center wu,08/10/2015
Nottinghamshire County Council,Building Maintenance,Environment & Resources,Debit,9.58,plumb center wu,08/10/2015
Nottinghamshire County Council,Building Maintenance,Environment & Resources,Debit,6.59,plumb center tp,08/10/2015
Nottinghamshire County Council,Building Maintenance,Environment & Resources,Debit,2.09,plumb center tp,08/10/2015
Nottinghamshire County Council,Building Maintenance,Environment & Resources,Debit,3.68,plumb center tp,08/10/2015
Nottinghamshire County Council,Building Maintenance,Environment & Resources,Debit,25.66,plumb center tp,08/10/2015
Nottinghamshire County Council,Building Maintenance,Environment & Resources,Debit,5.10,plumb center tp,08/10/2015
Nottinghamshire County Council,Building Maintenance,Environment & Resources,Debit,4.94,bss group plc,01/10/2015
Nottinghamshire County Council,Building Maintenance,Environment & Resources,Debit,6.24,bss group plc,01/10/2015
Nottinghamshire County Council,Building Maintenance,Environment & Resources,Debit,139.79,bss group plc,01/10/2015
Nottinghamshire County Council,Building Maintenance,Environment & Resources,Debit,9.17,bss group plc,01/10/2015
Nottinghamshire County Council,Building Maintenance,Environment & Resources,Debit,8.39,bss group plc,01/10/2015
Nottinghamshire County Council,Building Maintenance,Environment & Resources,Debit,133.30,willbond plumbing centre,29/10/2015
Nottinghamshire County Council,Building Maintenance,Environment & Resources,Debit,97.18,willbond plumbing centre,28/10/2015
Nottinghamshire County Council,Building Maintenance,Environment & Resources,Debit,87.29,willbond plumbing centre,28/10/2015
Nottinghamshire County Council,Building Maintenance,Environment & Resources,Debit,27.26,willbond plumbing centre,28/10/2015
Nottinghamshire County Council,Building Maintenance,Environment & Resources,Debit,11.39,protrade ltd,20/10/2015
Nottinghamshire County Council,Building Maintenance,Environment & Resources,Debit,152.32,willbond plumbing centre,16/10/2015
Nottinghamshire County Council,Building Maintenance,Environment & Resources,Debit,32.33,john a stephens,16/10/2015
Nottinghamshire County Council,Building Maintenance,Environment & Resources,Debit,26.84,alltools ltd,14/10/2015
Nottinghamshire County Council,Building Maintenance,Environment & Resources,Debit,8.59,willbond plumbing centre,09/10/2015
Nottinghamshire County Council,Building Maintenance,Environment & Resources,Debit,25.04,willbond plumbing centre,08/10/2015
Nottinghamshire County Council,Building Maintenance,Environment & Resources,Debit,106.88,willbond plumbing centre,08/10/2015
Nottinghamshire County Council,Building Maintenance,Environment & Resources,Debit,25.04,willbond plumbing centre,06/10/2015
Nottinghamshire County Council,Materials - External,Environment & Resources,Debit,7.20,tp bulwell,23/10/2015
Nottinghamshire County Council,Materials - External,Environment & Resources,Debit,13.80,tp bulwell,23/10/2015
Nottinghamshire County Council,Materials - External,Environment & Resources,Debit,25.96,halfords 0493,07/10/2015
Nottinghamshire County Council,Minor Works,"Children, Families & Cultural Services",Debit,208.00,station road,07/10/2015
Nottinghamshire County Council,Provisions,"Children, Families & Cultural Services",Debit,9.57,mcdonalds,29/10/2015
Nottinghamshire County Council,Office / General Equipment,"Children, Families & Cultural Services",Debit,11.04,wilko retail limit,28/10/2015
Nottinghamshire County Council,Office / General Equipment,"Children, Families & Cultural Services",Debit,62.43,amazon uk marketplace,21/10/2015
Nottinghamshire County Council,Office / General Equipment,"Children, Families & Cultural Services",Debit,6.38,amazon uk marketplace,22/10/2015
Nottinghamshire County Council,Provisions,"Children, Families & Cultural Services",Debit,53.49,aldi,20/10/2015
Nottinghamshire County Council,Provisions,"Children, Families & Cultural Services",Debit,6.50,bargain booze,20/10/2015
Nottinghamshire County Council,Personal Needs,"Children, Families & Cultural Services",Debit,8.95,sainsburys s/mkts,20/10/2015
Nottinghamshire County Council,Provisions,"Children, Families & Cultural Services",Debit,2.60,bargain booze,13/10/2015
Nottinghamshire County Council,Provisions,"Children, Families & Cultural Services",Debit,2.77,co-op group 017191,12/10/2015
Nottinghamshire County Council,Provisions,"Children, Families & Cultural Services",Debit,7.00,co-op group 017191,12/10/2015
Nottinghamshire County Council,Personal Needs,"Children, Families & Cultural Services",Debit,3.50,primark,05/10/2015
Nottinghamshire County Council,Clothing/Shoes/Uniforms,"Children, Families & Cultural Services",Debit,20.30,primark,05/10/2015
Nottinghamshire County Council,Clothing/Shoes/Uniforms,"Children, Families & Cultural Services",Debit,29.99,new look 2015,05/10/2015
Nottinghamshire County Council,Clothing/Shoes/Uniforms,"Children, Families & Cultural Services",Debit,5.99,shoe zone,05/10/2015
Nottinghamshire County Council,Provisions,"Children, Families & Cultural Services",Debit,17.13,mcdonalds,02/10/2015
Nottinghamshire County Council,Activities & Support,"Children, Families & Cultural Services",Debit,26.46,w m morrison plc,26/10/2015
Nottinghamshire County Council,Provisions,"Adult Social Care, Health & Public Protection ",Debit,25.53,tesco stores 5379,02/11/2015
Nottinghamshire County Council,Provisions,"Adult Social Care, Health & Public Protection ",Debit,29.05,tesco stores 5379,19/10/2015
Nottinghamshire County Council,Provisions,"Adult Social Care, Health & Public Protection ",Debit,8.67,tesco stores 5379,14/10/2015
Nottinghamshire County Council,Provisions,"Adult Social Care, Health & Public Protection ",Debit,18.67,tesco stores 5379,04/10/2015
Nottinghamshire County Council,Activities & Support,"Children, Families & Cultural Services",Debit,9.18,mcdonalds,13/10/2015
Nottinghamshire County Council,Materials - External,Environment & Resources,Debit,75.19,edmundson electrical,23/10/2015
Nottinghamshire County Council,Materials - External,Environment & Resources,Debit,62.05,edmundson electrical,21/10/2015
Nottinghamshire County Council,Materials - External,Environment & Resources,Debit,57.95,edmundson electrical,13/10/2015
Nottinghamshire County Council,Provisions,"Adult Social Care, Health & Public Protection ",Debit,69.00,serco epc,03/11/2015
Nottinghamshire County Council,Activities & Support,"Children, Families & Cultural Services",Debit,20.18,wm morrison 067,02/11/2015
Nottinghamshire County Council,Activities & Support,"Children, Families & Cultural Services",Debit,16.25,farmfoods- carlton,02/11/2015
Nottinghamshire County Council,Activities & Support,"Children, Families & Cultural Services",Debit,13.00,iceland,30/10/2015
Nottinghamshire County Council,Activities & Support,"Children, Families & Cultural Services",Debit,10.67,b  m retail,28/10/2015
Nottinghamshire County Council,Activities & Support,"Children, Families & Cultural Services",Debit,9.84,sainsburys s/mkts,28/10/2015
Nottinghamshire County Council,Activities & Support,"Children, Families & Cultural Services",Debit,28.04,wm morrison 067,26/10/2015
Nottinghamshire County Council,Activities & Support,"Children, Families & Cultural Services",Debit,15.70,sainsburys s/mkts,23/10/2015
Nottinghamshire County Council,Activities & Support,"Children, Families & Cultural Services",Debit,34.45,farmfoods- carlton,20/10/2015
Nottinghamshire County Council,Activities & Support,"Children, Families & Cultural Services",Debit,10.65,iceland,21/10/2015
Nottinghamshire County Council,Activities & Support,"Children, Families & Cultural Services",Debit,9.75,sainsburys s/mkts,19/10/2015
Nottinghamshire County Council,Activities & Support,"Children, Families & Cultural Services",Debit,22.05,poundworld retail,19/10/2015
Nottinghamshire County Council,Activities & Support,"Children, Families & Cultural Services",Debit,10.30,asda superstore,14/10/2015
Nottinghamshire County Council,Activities & Support,"Children, Families & Cultural Services",Debit,3.00,wm morrison 067,13/10/2015
Nottinghamshire County Council,Activities & Support,"Children, Families & Cultural Services",Debit,6.56,aldi,12/10/2015
Nottinghamshire County Council,Activities & Support,"Children, Families & Cultural Services",Debit,31.84,wm morrison 067,06/10/2015
Nottinghamshire County Council,Activities & Support,"Children, Families & Cultural Services",Debit,16.99,amazon uk marketplace,05/10/2015
Nottinghamshire County Council,Activities & Support,"Children, Families & Cultural Services",Debit,10.50,farmfoods- carlton,05/10/2015
Nottinghamshire County Council,Catering Consumables,"Adult Social Care, Health & Public Protection ",Credit,-45.97,amazon uk marketplace,23/10/2015
Nottinghamshire County Council,Catering Consumables,"Adult Social Care, Health & Public Protection ",Debit,124.97,amazon uk marketplace,22/10/2015
Nottinghamshire County Council,Catering Consumables,"Adult Social Care, Health & Public Protection ",Debit,93.32,amazon uk marketplace,22/10/2015
Nottinghamshire County Council,Catering Consumables,"Adult Social Care, Health & Public Protection ",Debit,89.99,amazon uk marketplace,22/10/2015
Nottinghamshire County Council,Catering Consumables,"Adult Social Care, Health & Public Protection ",Debit,16.93,amazon uk marketplace,22/10/2015
Nottinghamshire County Council,Catering Consumables,"Adult Social Care, Health & Public Protection ",Debit,49.99,amazon svcs europesar,22/10/2015
Nottinghamshire County Council,Catering Consumables,"Adult Social Care, Health & Public Protection ",Debit,26.95,amazon uk marketplace,21/10/2015
Nottinghamshire County Council,Catering Consumables,"Adult Social Care, Health & Public Protection ",Debit,19.92,amazon uk marketplace,21/10/2015
Nottinghamshire County Council,Catering Consumables,"Adult Social Care, Health & Public Protection ",Debit,4.98,amazon uk marketplace,22/10/2015
Nottinghamshire County Council,Catering Consumables,"Adult Social Care, Health & Public Protection ",Debit,48.67,amazon uk marketplace,21/10/2015
Nottinghamshire County Council,Catering Consumables,"Adult Social Care, Health & Public Protection ",Debit,36.99,amazon svcs europesar,20/10/2015
Nottinghamshire County Council,Catering Consumables,"Adult Social Care, Health & Public Protection ",Debit,17.94,amazon svcs europesar,20/10/2015
Nottinghamshire County Council,Catering Consumables,"Adult Social Care, Health & Public Protection ",Debit,19.97,amazon uk marketplace,20/10/2015
Nottinghamshire County Council,Catering Consumables,"Adult Social Care, Health & Public Protection ",Debit,25.50,amazon uk marketplace,20/10/2015
Nottinghamshire County Council,Catering Consumables,"Adult Social Care, Health & Public Protection ",Debit,45.97,amazon uk marketplace,20/10/2015
Nottinghamshire County Council,Catering Consumables,"Adult Social Care, Health & Public Protection ",Debit,49.99,amazon uk retail,20/10/2015
Nottinghamshire County Council,Catering Consumables,"Adult Social Care, Health & Public Protection ",Debit,23.98,amazon svcs europesar,20/10/2015
Nottinghamshire County Council,Catering Consumables,"Adult Social Care, Health & Public Protection ",Debit,26.02,amazon uk marketplace,20/10/2015
Nottinghamshire County Council,Catering Consumables,"Adult Social Care, Health & Public Protection ",Debit,7.20,amazon uk marketplace,20/10/2015
Nottinghamshire County Council,Catering Consumables,"Adult Social Care, Health & Public Protection ",Debit,21.78,amazon uk marketplace,20/10/2015
Nottinghamshire County Council,Catering Consumables,"Adult Social Care, Health & Public Protection ",Debit,30.83,b  m retail,08/10/2015
Nottinghamshire County Council,Catering Consumables,"Adult Social Care, Health & Public Protection ",Debit,30.31,b  m retail,08/10/2015
Nottinghamshire County Council,Personal Needs,"Adult Social Care, Health & Public Protection ",Debit,13.49,savers health  beauty,03/11/2015
Nottinghamshire County Council,Personal Needs,"Adult Social Care, Health & Public Protection ",Debit,7.03,w boyes  co ltd eastw,26/10/2015
Nottinghamshire County Council,Personal Needs,"Adult Social Care, Health & Public Protection ",Debit,17.16,w boyes  co ltd eastw,22/10/2015
Nottinghamshire County Council,Stationery,"Adult Social Care, Health & Public Protection ",Debit,0.00,w boyes  co ltd eastw,22/10/2015
Nottinghamshire County Council,Health & Safety,"Adult Social Care, Health & Public Protection ",Debit,29.94,w boyes  co ltd eastw,08/10/2015
Nottinghamshire County Council,Fuel - Petrol,"Adult Social Care, Health & Public Protection ",Debit,35.00,morrisons petrol,08/10/2015
Nottinghamshire County Council,Personal Needs,"Adult Social Care, Health & Public Protection ",Debit,14.62,savers health  beauty,02/10/2015
Nottinghamshire County Council,Provisions,"Adult Social Care, Health & Public Protection ",Debit,32.46,tesco stores 5379,23/10/2015
Nottinghamshire County Council,Provisions,"Adult Social Care, Health & Public Protection ",Debit,25.51,tesco stores 5379,09/10/2015
Nottinghamshire County Council,Office / General Equipment,"Children, Families & Cultural Services",Debit,61.44,trent hire centre,14/10/2015
Nottinghamshire County Council,Activities & Support,"Children, Families & Cultural Services",Debit,2.69,tesco stores 5437,30/10/2015
Nottinghamshire County Council,Activities & Support,"Children, Families & Cultural Services",Debit,36.00,subway,29/10/2015
Nottinghamshire County Council,Activities & Support,"Children, Families & Cultural Services",Debit,26.15,tesco stores 5437,29/10/2015
Nottinghamshire County Council,Activities & Support,"Children, Families & Cultural Services",Debit,3.50,tesco stores 5437,29/10/2015
Nottinghamshire County Council,Activities & Support,"Children, Families & Cultural Services",Debit,10.17,tesco stores 5329,27/10/2015
Nottinghamshire County Council,Activities & Support,"Children, Families & Cultural Services",Debit,36.00,subway,27/10/2015
Nottinghamshire County Council,Activities & Support,"Children, Families & Cultural Services",Debit,3.84,co-op group 310059,24/10/2015
Nottinghamshire County Council,Activities & Support,"Children, Families & Cultural Services",Debit,8.85,tesco stores 5329,24/10/2015
Nottinghamshire County Council,Activities & Support,"Children, Families & Cultural Services",Debit,29.62,tesco stores 5329,24/10/2015
Nottinghamshire County Council,Activities & Support,"Children, Families & Cultural Services",Debit,25.50,tesco stores 2702,21/10/2015
Nottinghamshire County Council,Activities & Support,"Children, Families & Cultural Services",Debit,9.29,co-op group 310059,17/10/2015
Nottinghamshire County Council,Activities & Support,"Children, Families & Cultural Services",Debit,15.18,tesco stores 5329,17/10/2015
Nottinghamshire County Council,Activities & Support,"Children, Families & Cultural Services",Debit,10.50,wilko retail limit,13/10/2015
Nottinghamshire County Council,Activities & Support,"Children, Families & Cultural Services",Debit,3.98,mcdonalds,11/10/2015
Nottinghamshire County Council,Activities & Support,"Children, Families & Cultural Services",Debit,17.55,mcdonalds,11/10/2015
Nottinghamshire County Council,Activities & Support,"Children, Families & Cultural Services",Debit,31.45,dominos pizza 27560,06/10/2015
Nottinghamshire County Council,Activities & Support,"Children, Families & Cultural Services",Debit,19.28,dominos pizza,07/10/2015
Nottinghamshire County Council,Personal Needs,"Children, Families & Cultural Services",Debit,13.96,harry ramsdens,28/10/2015
Nottinghamshire County Council,Personal Needs,"Children, Families & Cultural Services",Debit,15.50,cosmetix limited,28/10/2015
Nottinghamshire County Council,Personal Needs,"Children, Families & Cultural Services",Debit,2.99,cosmetix limited,28/10/2015
Nottinghamshire County Council,Fixtures & Fittings,"Children, Families & Cultural Services",Debit,101.63,argos ltd,27/10/2015
Nottinghamshire County Council,Personal Needs,"Children, Families & Cultural Services",Debit,87.18,hewlett packard,19/10/2015
Nottinghamshire County Council,Personal Needs,"Children, Families & Cultural Services",Debit,18.99,argos ltd,12/10/2015
Nottinghamshire County Council,Fixtures & Fittings,"Children, Families & Cultural Services",Credit,-19.99,the range,11/10/2015
Nottinghamshire County Council,Personal Needs,"Children, Families & Cultural Services",Debit,14.99,tesco stores 5379,09/10/2015
Nottinghamshire County Council,Materials - External,Environment & Resources,Debit,4.93,b  q,14/10/2015
Nottinghamshire County Council,Materials - External,Environment & Resources,Debit,4.93,b  q,14/10/2015
Nottinghamshire County Council,Materials - External,Environment & Resources,Debit,4.93,b  q,14/10/2015
Nottinghamshire County Council,Materials - External,Environment & Resources,Debit,7.58,jewson 3664,02/11/2015
Nottinghamshire County Council,Materials - External,Environment & Resources,Debit,6.20,jewson 3664,02/11/2015
Nottinghamshire County Council,Materials - External,Environment & Resources,Debit,7.80,jewson 3664,02/11/2015
Nottinghamshire County Council,Materials - External,Environment & Resources,Debit,7.80,jewson 3664,02/11/2015
Nottinghamshire County Council,Materials - External,Environment & Resources,Debit,39.02,jewson 3664,02/11/2015
Nottinghamshire County Council,Materials - External,Environment & Resources,Debit,39.42,buildbase newark,30/10/2015
Nottinghamshire County Council,Materials - External,Environment & Resources,Debit,0.01,buildbase newark,30/10/2015
Nottinghamshire County Council,Materials - External,Environment & Resources,Debit,9.24,buildbase newark,30/10/2015
Nottinghamshire County Council,Materials - External,Environment & Resources,Debit,41.47,buildbase newark,30/10/2015
Nottinghamshire County Council,Materials - External,Environment & Resources,Debit,8.93,buildbase newark,30/10/2015
Nottinghamshire County Council,Materials - External,Environment & Resources,Debit,6.36,buildbase newark,30/10/2015
Nottinghamshire County Council,Materials - External,Environment & Resources,Debit,5.83,b  q,14/10/2015
Nottinghamshire County Council,Materials - External,Environment & Resources,Debit,17.09,tp mansfield,12/10/2015
Nottinghamshire County Council,Materials - External,Environment & Resources,Debit,59.70,jewson 3664,05/10/2015
Nottinghamshire County Council,Materials - External,Environment & Resources,Debit,10.18,jewson 3664,05/10/2015
Nottinghamshire County Council,Materials - External,Environment & Resources,Debit,10.36,jewson 3664,05/10/2015
Nottinghamshire County Council,Materials - External,Environment & Resources,Debit,11.76,jewson 3664,05/10/2015
Nottinghamshire County Council,Materials - External,Environment & Resources,Debit,13.16,jewson 3664,05/10/2015
Nottinghamshire County Council,Materials - External,Environment & Resources,Debit,41.35,frank key (notts) ltd,30/10/2015
Nottinghamshire County Council,Materials - External,Environment & Resources,Debit,6.70,gibbs  dandy,28/10/2015
Nottinghamshire County Council,Materials - External,Environment & Resources,Debit,38.65,gibbs  dandy,27/10/2015
Nottinghamshire County Council,Materials - External,Environment & Resources,Debit,70.44,jwl architectural iron,24/10/2015
Nottinghamshire County Council,Materials - External,Environment & Resources,Debit,38.38,arco ltd,20/10/2015
Nottinghamshire County Council,Materials - External,Environment & Resources,Debit,7.20,robert m sansom plant lt,20/10/2015
Nottinghamshire County Council,Materials - External,Environment & Resources,Debit,27.83,arco ltd,20/10/2015
Nottinghamshire County Council,Materials - External,Environment & Resources,Debit,31.08,gibbs  dandy,16/10/2015
Nottinghamshire County Council,Materials - External,Environment & Resources,Debit,27.07,gibbs  dandy,16/10/2015
Nottinghamshire County Council,Materials - External,Environment & Resources,Debit,16.54,jwl architectural iron,09/10/2015
Nottinghamshire County Council,Materials - External,Environment & Resources,Debit,304.70,gibbs  dandy,08/10/2015
Nottinghamshire County Council,Materials - External,Environment & Resources,Debit,375.42,gibbs  dandy,06/10/2015
Nottinghamshire County Council,Materials - External,Environment & Resources,Debit,13.50,1st access,02/10/2015
Nottinghamshire County Council,Materials - External,Environment & Resources,Debit,15.00,robert m sansom plant lt,02/10/2015
Nottinghamshire County Council,Stationery,"Adult Social Care, Health & Public Protection ",Debit,94.78,dri xmind 6,29/10/2015
Nottinghamshire County Council,Stationery,"Adult Social Care, Health & Public Protection ",Debit,14.60,east midlands trains l,20/10/2015
Nottinghamshire County Council,Materials - External,Place,Debit,49.25,city electrical fa,30/10/2015
Nottinghamshire County Council,Materials - External,Place,Debit,7.80,city electrical fa,30/10/2015
Nottinghamshire County Council,Materials - External,Place,Debit,11.33,city electrical fa,30/10/2015
Nottinghamshire County Council,Materials - External,Place,Debit,4.58,city electrical fa,30/10/2015
Nottinghamshire County Council,Materials - External,Place,Debit,23.69,city electrical fa,30/10/2015
Nottinghamshire County Council,Materials - External,Place,Debit,0.14,city electrical fa,30/10/2015
Nottinghamshire County Council,Materials - External,Place,Debit,20.70,city electrical fa,30/10/2015
Nottinghamshire County Council,Materials - External,Place,Debit,0.06,city electrical fa,30/10/2015
Nottinghamshire County Council,Materials - External,Place,Debit,1.94,city electrical fa,30/10/2015
Nottinghamshire County Council,Materials - External,Place,Debit,163.88,city electrical fa,30/10/2015
Nottinghamshire County Council,Materials - External,Place,Debit,0.24,city electrical fa,30/10/2015
Nottinghamshire County Council,Materials - External,Place,Debit,6.56,city electrical fa,29/10/2015
Nottinghamshire County Council,Materials - External,Place,Debit,31.70,city electrical fa,29/10/2015
Nottinghamshire County Council,Materials - External,Place,Debit,10.09,city electrical fa,29/10/2015
Nottinghamshire County Council,Materials - External,Place,Debit,2.11,city electrical fa,29/10/2015
Nottinghamshire County Council,Materials - External,Place,Debit,75.67,city electrical fa,29/10/2015
Nottinghamshire County Council,Materials - External,Place,Debit,61.32,city electrical fa,29/10/2015
Nottinghamshire County Council,Materials - External,Place,Debit,26.80,city electrical fa,29/10/2015
Nottinghamshire County Council,Materials - External,Place,Debit,6.61,city electrical fa,29/10/2015
Nottinghamshire County Council,Materials - External,Place,Debit,22.74,city electrical fa,29/10/2015
Nottinghamshire County Council,Materials - External,Place,Debit,12.61,city electrical fa,29/10/2015
Nottinghamshire County Council,Materials - External,Place,Debit,13.03,city electrical fa,29/10/2015
Nottinghamshire County Council,Materials - External,Place,Debit,6.30,city electrical fa,29/10/2015
Nottinghamshire County Council,Materials - External,Place,Debit,56.45,city electrical fa,29/10/2015
Nottinghamshire County Council,Materials - External,Place,Debit,7.18,city electrical fa,29/10/2015
Nottinghamshire County Council,Materials - External,Place,Debit,2.10,city electrical fa,29/10/2015
Nottinghamshire County Council,Materials - External,Place,Debit,9.64,city electrical fa,29/10/2015
Nottinghamshire County Council,Materials - External,Place,Debit,1.20,city electrical fa,29/10/2015
Nottinghamshire County Council,Materials - External,Place,Debit,3.29,city electrical fa,29/10/2015
Nottinghamshire County Council,Materials - External,Place,Debit,14.44,city electrical fa,29/10/2015
Nottinghamshire County Council,Materials - External,Place,Debit,70.20,city electrical fa,29/10/2015
Nottinghamshire County Council,Materials - External,Place,Debit,3.79,city electrical fa,29/10/2015
Nottinghamshire County Council,Materials - External,Place,Debit,1.44,city electrical fa,29/10/2015
Nottinghamshire County Council,Materials - External,Place,Debit,97.09,city electrical fa,29/10/2015
Nottinghamshire County Council,Materials - External,Place,Debit,74.40,city electrical fa,02/10/2015
Nottinghamshire County Council,Other Fee's & Services,"Children, Families & Cultural Services",Debit,9.25,gro hm passport office,02/11/2015
Nottinghamshire County Council,Activities & Support,"Children, Families & Cultural Services",Debit,19.50,vue ncs citb hse test,05/10/2015
Nottinghamshire County Council,Legal Fees,Resources ,Debit,455.00,county court,22/10/2015
Nottinghamshire County Council,Legal Fees,Resources ,Debit,455.00,www.justice.gov.uk,21/10/2015
Nottinghamshire County Council,Legal Fees,Resources ,Debit,39.80,amazon uk marketplace,16/10/2015
Nottinghamshire County Council,Legal Fees,Resources ,Debit,4.00,companies house,12/10/2015
Nottinghamshire County Council,Legal Fees,Resources ,Debit,"2,055.00",www.justice.gov.uk,09/10/2015
Nottinghamshire County Council,Legal Fees,Resources ,Debit,"2,055.00",www.justice.gov.uk,09/10/2015
Nottinghamshire County Council,Legal Fees,Resources ,Debit,393.00,www.justice.gov.uk,09/10/2015
Nottinghamshire County Council,Legal Fees,Resources ,Debit,"2,055.00",www.justice.gov.uk,09/10/2015
Nottinghamshire County Council,Legal Fees,Resources ,Debit,215.00,www.justice.gov.uk,09/10/2015
Nottinghamshire County Council,Legal Fees,Resources ,Debit,"2,055.00",www.justice.gov.uk,09/10/2015
Nottinghamshire County Council,Legal Fees,Resources ,Debit,"2,055.00",www.justice.gov.uk,09/10/2015
Nottinghamshire County Council,Legal Fees,Resources ,Debit,"2,055.00",www.justice.gov.uk,09/10/2015
Nottinghamshire County Council,Legal Fees,Resources ,Debit,"1,662.00",www.justice.gov.uk,09/10/2015
Nottinghamshire County Council,Legal Fees,Resources ,Debit,"2,055.00",www.justice.gov.uk,09/10/2015
Nottinghamshire County Council,Legal Fees,Resources ,Debit,"2,055.00",www.justice.gov.uk,09/10/2015
Nottinghamshire County Council,Legal Fees,Resources ,Debit,215.00,www.justice.gov.uk,09/10/2015
Nottinghamshire County Council,Legal Fees,Resources ,Debit,"1,365.00",county court,08/10/2015
Nottinghamshire County Council,Activities & Support,"Children, Families & Cultural Services",Debit,26.81,tesco stores 5437,29/10/2015
Nottinghamshire County Council,Activities & Support,"Children, Families & Cultural Services",Debit,9.50,central england co,28/10/2015
Nottinghamshire County Council,Activities & Support,"Children, Families & Cultural Services",Debit,15.97,bm retail ltd,22/10/2015
Nottinghamshire County Council,Activities & Support,"Children, Families & Cultural Services",Debit,89.80,wildnightsfancydre,24/10/2015
Nottinghamshire County Council,Activities & Support,"Children, Families & Cultural Services",Debit,16.88,the range,21/10/2015
Nottinghamshire County Council,Activities & Support,"Children, Families & Cultural Services",Debit,9.93,bm retail ltd,21/10/2015
Nottinghamshire County Council,Activities & Support,"Children, Families & Cultural Services",Debit,36.81,yeomans outdoor le,17/10/2015
Nottinghamshire County Council,Activities & Support,"Children, Families & Cultural Services",Debit,23.90,bm retail ltd,17/10/2015
Nottinghamshire County Council,Activities & Support,"Children, Families & Cultural Services",Debit,13.48,heron foods ltd,15/10/2015
Nottinghamshire County Council,Activities & Support,"Children, Families & Cultural Services",Debit,9.72,heron foods ltd,09/10/2015
Nottinghamshire County Council,Activities & Support,"Children, Families & Cultural Services",Debit,38.44,screwfix direct,10/10/2015
Nottinghamshire County Council,Activities & Support,"Children, Families & Cultural Services",Debit,17.00,tesco stores 5437,09/10/2015
Nottinghamshire County Council,Activities & Support,"Children, Families & Cultural Services",Debit,9.43,tesco stores 5437,08/10/2015
Nottinghamshire County Council,Activities & Support,"Children, Families & Cultural Services",Debit,45.60,fcc electrical whs ltd,08/10/2015
Nottinghamshire County Council,Activities & Support,"Children, Families & Cultural Services",Debit,10.00,sportsdirect 292,08/10/2015
Nottinghamshire County Council,Aftercare Lodging/Hostel,"Children, Families & Cultural Services",Debit,64.96,ashfield district,30/10/2015
Nottinghamshire County Council,Aftercare - Equipment,"Children, Families & Cultural Services",Debit,29.99,aldi,29/10/2015
Nottinghamshire County Council,Aftercare - Equipment,"Children, Families & Cultural Services",Debit,4.00,wilko retail limit,29/10/2015
Nottinghamshire County Council,Aftercare - Equipment,"Children, Families & Cultural Services",Debit,145.50,tvlicensing.co.uk,26/10/2015
Nottinghamshire County Council,Clients - H & S Equipt,"Children, Families & Cultural Services",Debit,103.68,newark storage company,26/10/2015
Nottinghamshire County Council,Clients - H & S Equipt,"Children, Families & Cultural Services",Debit,31.26,asda home shopping,20/10/2015
Nottinghamshire County Council,Clients - H & S Equipt,"Children, Families & Cultural Services",Debit,0.40,asda home shopping,20/10/2015
Nottinghamshire County Council,Clients - H & S Equipt,"Children, Families & Cultural Services",Debit,16.80,tesco stores 5379,16/10/2015
Nottinghamshire County Council,Clients - H & S Equipt,"Children, Families & Cultural Services",Debit,40.00,old prince of orange,12/10/2015
Nottinghamshire County Council,Clients - H & S Equipt,"Children, Families & Cultural Services",Debit,13.15,tesco stores 6436,12/10/2015
Nottinghamshire County Council,Aftercare - Equipment,"Children, Families & Cultural Services",Credit,-19.08,churchill insurance.,12/10/2015
Nottinghamshire County Council,Aftercare - Equipment,"Children, Families & Cultural Services",Debit,177.74,wilko retail limit,09/10/2015
Nottinghamshire County Council,Aftercare - Equipment,"Children, Families & Cultural Services",Debit,139.00,tesco stores 5379,08/10/2015
Nottinghamshire County Council,Teaching Equipment,"Children, Families & Cultural Services",Debit,23.97,amazon uk marketplace,03/11/2015
Nottinghamshire County Council,Teaching Equipment,"Children, Families & Cultural Services",Debit,12.00,amazon uk marketplace,02/11/2015
Nottinghamshire County Council,Office / General Equipment,"Children, Families & Cultural Services",Debit,93.95,amazon uk marketplace,26/10/2015
Nottinghamshire County Council,Teaching Equipment,"Children, Families & Cultural Services",Debit,63.75,amazon uk retail,20/10/2015
Nottinghamshire County Council,Office / General Equipment,"Children, Families & Cultural Services",Debit,51.90,amazon uk marketplace,15/10/2015
Nottinghamshire County Council,Office / General Equipment,"Children, Families & Cultural Services",Debit,155.26,wickes glossop,14/10/2015
Nottinghamshire County Council,Office / General Equipment,"Children, Families & Cultural Services",Debit,8.50,youth hostel assoc,07/10/2015
Nottinghamshire County Council,Teaching Equipment,"Children, Families & Cultural Services",Debit,3.47,amazon uk marketplace,07/10/2015
Nottinghamshire County Council,Office / General Equipment,"Children, Families & Cultural Services",Debit,2.23,amazon uk retail,07/10/2015
Nottinghamshire County Council,Office / General Equipment,"Children, Families & Cultural Services",Debit,16.91,amazon svcs europesar,06/10/2015
Nottinghamshire County Council,Minor Works,"Children, Families & Cultural Services",Debit,37.24,wm eyre and sons,06/10/2015
Nottinghamshire County Council,Office / General Equipment,"Children, Families & Cultural Services",Debit,14.50,amazon uk retail,06/10/2015
Nottinghamshire County Council,Teaching Equipment,"Children, Families & Cultural Services",Debit,8.57,amazon uk retail,06/10/2015
Nottinghamshire County Council,Activities & Support,"Children, Families & Cultural Services",Debit,6.10,aldi,03/11/2015
Nottinghamshire County Council,Activities & Support,"Children, Families & Cultural Services",Debit,11.43,tesco stores 5437,30/10/2015
Nottinghamshire County Council,Activities & Support,"Children, Families & Cultural Services",Debit,3.69,central eng coop,30/10/2015
Nottinghamshire County Council,Activities & Support,"Children, Families & Cultural Services",Debit,2.00,wm morrison 023,29/10/2015
Nottinghamshire County Council,Activities & Support,"Children, Families & Cultural Services",Debit,8.00,poundworld retail,29/10/2015
Nottinghamshire County Council,Activities & Support,"Children, Families & Cultural Services",Debit,5.43,aldi,29/10/2015
Nottinghamshire County Council,Activities & Support,"Children, Families & Cultural Services",Debit,4.97,co-op group 070325,28/10/2015
Nottinghamshire County Council,Activities & Support,"Children, Families & Cultural Services",Debit,12.74,aldi,27/10/2015
Nottinghamshire County Council,Activities & Support,"Children, Families & Cultural Services",Debit,3.99,the range,27/10/2015
Nottinghamshire County Council,Activities & Support,"Children, Families & Cultural Services",Debit,4.01,aldi,23/10/2015
Nottinghamshire County Council,Activities & Support,"Children, Families & Cultural Services",Debit,2.69,central eng coop,23/10/2015
Nottinghamshire County Council,Activities & Support,"Children, Families & Cultural Services",Debit,5.56,aldi,22/10/2015
Nottinghamshire County Council,Activities & Support,"Children, Families & Cultural Services",Debit,7.46,heron foods ltd,21/10/2015
Nottinghamshire County Council,Activities & Support,"Children, Families & Cultural Services",Debit,4.00,poundworld retail,21/10/2015
Nottinghamshire County Council,Activities & Support,"Children, Families & Cultural Services",Debit,7.70,aldi,20/10/2015
Nottinghamshire County Council,Activities & Support,"Children, Families & Cultural Services",Debit,10.73,asda petrol 5080,18/10/2015
Nottinghamshire County Council,Activities & Support,"Children, Families & Cultural Services",Debit,8.50,asda store ston in as,17/10/2015
Nottinghamshire County Council,Activities & Support,"Children, Families & Cultural Services",Debit,3.77,bm retail ltd,17/10/2015
Nottinghamshire County Council,Activities & Support,"Children, Families & Cultural Services",Debit,4.28,central eng coop,16/10/2015
Nottinghamshire County Council,Activities & Support,"Children, Families & Cultural Services",Debit,62.81,sportsdirect 437,15/10/2015
Nottinghamshire County Council,Activities & Support,"Children, Families & Cultural Services",Debit,12.27,aldi,14/10/2015
Nottinghamshire County Council,Activities & Support,"Children, Families & Cultural Services",Debit,5.66,lidl uk,13/10/2015
Nottinghamshire County Council,Activities & Support,"Children, Families & Cultural Services",Debit,16.00,poundworld retail,13/10/2015
Nottinghamshire County Council,Activities & Support,"Children, Families & Cultural Services",Debit,6.00,poundworld retail,13/10/2015
Nottinghamshire County Council,Activities & Support,"Children, Families & Cultural Services",Debit,7.53,aldi,09/10/2015
Nottinghamshire County Council,Activities & Support,"Children, Families & Cultural Services",Debit,5.15,aldi,08/10/2015
Nottinghamshire County Council,Activities & Support,"Children, Families & Cultural Services",Debit,3.40,co-op group 070325,08/10/2015
Nottinghamshire County Council,Activities & Support,"Children, Families & Cultural Services",Debit,10.26,aldi,07/10/2015
Nottinghamshire County Council,Activities & Support,"Children, Families & Cultural Services",Debit,19.00,poundworld retail,07/10/2015
Nottinghamshire County Council,Activities & Support,"Children, Families & Cultural Services",Debit,7.29,co-op group 070325,06/10/2015
Nottinghamshire County Council,Activities & Support,"Children, Families & Cultural Services",Debit,2.00,central eng coop,02/10/2015
Nottinghamshire County Council,Activities & Support,"Children, Families & Cultural Services",Debit,5.40,arden news,02/10/2015
Nottinghamshire County Council,Materials - External,Place ,Debit,84.60,blake and beeley (kirk,28/10/2015
Nottinghamshire County Council,Materials - External,Place ,Debit,480.00,acorn signs  engraving,22/10/2015
Nottinghamshire County Council,Stationery,Environment & Resources,Debit,810.00,the bike shop,03/11/2015
Nottinghamshire County Council,Stationery,Environment & Resources,Debit,"1,478.95",bikeability materials,29/10/2015
Nottinghamshire County Council,Stationery,Environment & Resources,Debit,"1,478.95",bikeability materials,29/10/2015
Nottinghamshire County Council,Stationery,Environment & Resources,Debit,"1,478.95",bikeability materials,29/10/2015
Nottinghamshire County Council,Stationery,Environment & Resources,Debit,127.60,[Redacted],29/10/2015
Nottinghamshire County Council,Stationery,Environment & Resources,Debit,11.97,the bike shop,23/10/2015
Nottinghamshire County Council,Stationery,Environment & Resources,Debit,75.96,www.o-millslinens.co.uk,22/10/2015
Nottinghamshire County Council,Stationery,Environment & Resources,Debit,186.78,amazon uk marketplace,12/10/2015
Nottinghamshire County Council,Stationery,Environment & Resources,Debit,79.00,amazon prime,11/10/2015
Nottinghamshire County Council,Office / General Equipment,"Children, Families & Cultural Services",Credit,-398.50,paypal  ,15/10/2015
Nottinghamshire County Council,Office / General Equipment,"Children, Families & Cultural Services",Debit,398.50,paypal  ,09/10/2015
Nottinghamshire County Council,Materials - External,Place ,Debit,9.61,keyline nottingham,30/10/2015
Nottinghamshire County Council,Materials - External,Place ,Debit,12.01,keyline nottingham,30/10/2015
Nottinghamshire County Council,Materials - External,Place ,Debit,132.00,burdens,20/10/2015
Nottinghamshire County Council,Materials - External,Place ,Debit,11.12,keyline nottingham,06/10/2015
Nottinghamshire County Council,Materials - External,Place ,Debit,23.98,keyline nottingham,06/10/2015
Nottinghamshire County Council,Materials - External,Place ,Debit,127.19,intellipower ltd,02/11/2015
Nottinghamshire County Council,Office / General Equipment,Place ,Debit,204.46,johnstones dec centre,22/10/2015
Nottinghamshire County Council,Office / General Equipment,Place ,Debit,250.00,fast graphics ltd,07/10/2015
Nottinghamshire County Council,Clients - H & S Equipt,"Children, Families & Cultural Services",Debit,145.50,tvlicensing.co.uk,02/11/2015
Nottinghamshire County Council,Clients - H & S Equipt,"Children, Families & Cultural Services",Debit,4.00,upt - emt nottingham rai,29/10/2015
Nottinghamshire County Council,Clients - H & S Equipt,"Children, Families & Cultural Services",Debit,1.80,glasshouse parking,29/10/2015
Nottinghamshire County Council,Clients - H & S Equipt,"Children, Families & Cultural Services",Debit,4.00,upt - emt nottingham rai,27/10/2015
Nottinghamshire County Council,Aftercare - Equipment,"Children, Families & Cultural Services",Debit,129.00,tesco direct,28/10/2015
Nottinghamshire County Council,Clients - H & S Equipt,"Children, Families & Cultural Services",Debit,19.19,bm retail ltd,27/10/2015
Nottinghamshire County Council,Clients - H & S Equipt,"Children, Families & Cultural Services",Debit,75.50,hm passport office,27/10/2015
Nottinghamshire County Council,Aftercare - Equipment,"Children, Families & Cultural Services",Debit,76.98,bm retail ltd,27/10/2015
Nottinghamshire County Council,Aftercare - Equipment,"Children, Families & Cultural Services",Debit,160.00,furniture heaven,27/10/2015
Nottinghamshire County Council,Clients - H & S Equipt,"Children, Families & Cultural Services",Debit,6.98,b  m retail,22/10/2015
Nottinghamshire County Council,Clients - H & S Equipt,"Children, Families & Cultural Services",Debit,474.00,montrose glass ltd,21/10/2015
Nottinghamshire County Council,Aftercare - Equipment,"Children, Families & Cultural Services",Debit,39.48,argos retail group,20/10/2015
Nottinghamshire County Council,Clients - H & S Equipt,"Children, Families & Cultural Services",Debit,4.42,wilko retail limit,20/10/2015
Nottinghamshire County Council,Aftercare - Equipment,"Children, Families & Cultural Services",Debit,62.94,wilko retail limit,20/10/2015
Nottinghamshire County Council,Aftercare - Equipment,"Children, Families & Cultural Services",Debit,39.99,argos ltd,20/10/2015
Nottinghamshire County Council,Aftercare Lodging/Hostel,"Children, Families & Cultural Services",Debit,"1,190.00",my pad accommodation lim,15/10/2015
Nottinghamshire County Council,Clothing/Shoes/Uniforms,"Children, Families & Cultural Services",Credit,-2.95,asda 4387,08/10/2015
Nottinghamshire County Council,Clothing/Shoes/Uniforms,"Children, Families & Cultural Services",Debit,11.95,tesco clothing uk,05/10/2015
Nottinghamshire County Council,Clothing/Shoes/Uniforms,"Children, Families & Cultural Services",Debit,26.95,asda 4387,05/10/2015
Nottinghamshire County Council,Other Fee's & Services,Resources ,Debit,11.00,nottingham city co,23/10/2015
Nottinghamshire County Council,Other Fee's & Services,Resources ,Debit,10.00,www.gov.uk,23/10/2015
Nottinghamshire County Council,Advertising Staff - Recruitment,Resources ,Debit,142.80,www/reed.co.uk,14/10/2015
Nottinghamshire County Council,Specialist Equipment,Place ,Debit,23.95,tp newark,27/10/2015
Nottinghamshire County Council,Specialist Equipment,Place ,Debit,13.68,keyline ashfield,27/10/2015
Nottinghamshire County Council,Specialist Equipment,Place ,Debit,7.75,keyline ashfield,27/10/2015
Nottinghamshire County Council,Specialist Equipment,Place ,Debit,3.00,keyline ashfield,27/10/2015
Nottinghamshire County Council,Specialist Equipment,Place ,Debit,15.00,keyline ashfield,27/10/2015
Nottinghamshire County Council,Specialist Equipment,Place ,Debit,12.52,keyline ashfield,27/10/2015
Nottinghamshire County Council,Specialist Equipment,Place ,Debit,56.47,keyline ashfield,27/10/2015
Nottinghamshire County Council,Specialist Equipment,Place ,Debit,26.53,keyline ashfield,27/10/2015
Nottinghamshire County Council,Specialist Equipment,Place ,Debit,48.36,tp newark,21/10/2015
Nottinghamshire County Council,Specialist Equipment,Place ,Debit,42.29,keyline nottingham,20/10/2015
Nottinghamshire County Council,Specialist Equipment,Place ,Debit,19.52,tp newark,14/10/2015
Nottinghamshire County Council,Specialist Equipment,Place ,Debit,28.04,keyline ashfield,14/10/2015
Nottinghamshire County Council,Specialist Equipment,Place ,Debit,92.66,keyline ashfield,14/10/2015
Nottinghamshire County Council,Specialist Equipment,Place ,Debit,38.04,keyline ashfield,14/10/2015
Nottinghamshire County Council,Specialist Equipment,Place ,Debit,144.73,amazon uk marketplace,26/10/2015
Nottinghamshire County Council,Activities & Support,"Children, Families & Cultural Services",Debit,27.29,pizza hut online web,21/10/2015
Nottinghamshire County Council,Activities & Support,"Children, Families & Cultural Services",Debit,6.20,costa coffee mansfield,20/10/2015
Nottinghamshire County Council,Activities & Support,"Children, Families & Cultural Services",Debit,75.15,the london eye,14/10/2015
Nottinghamshire County Council,Activities & Support,"Children, Families & Cultural Services",Debit,12.05,sainsburys s/mkts,13/10/2015
Nottinghamshire County Council,Activities & Support,"Children, Families & Cultural Services",Debit,15.73,aldi,05/10/2015
Nottinghamshire County Council,Computer Equipment,"Children, Families & Cultural Services",Debit,11.60,amazon uk marketplace,03/11/2015
Nottinghamshire County Council,Computer Equipment,"Children, Families & Cultural Services",Debit,6.05,paypal  ,02/11/2015
Nottinghamshire County Council,Pocket Money,"Children, Families & Cultural Services",Credit,-53.98,www.mandmdirect.com,28/10/2015
Nottinghamshire County Council,Activities & Support,"Children, Families & Cultural Services",Debit,7.99,lovefilm by post,28/10/2015
Nottinghamshire County Council,Activities & Support,"Children, Families & Cultural Services",Debit,31.36,amazon uk marketplace,27/10/2015
Nottinghamshire County Council,Minor Works,"Children, Families & Cultural Services",Debit,52.93,screwfix direct,27/10/2015
Nottinghamshire County Council,Software Purchases,"Children, Families & Cultural Services",Debit,306.00,oak telecom ltd,26/10/2015
Nottinghamshire County Council,Medical Equipment,"Children, Families & Cultural Services",Debit,"1,011.60",www.sunflowermedical.c,26/10/2015
Nottinghamshire County Council,Activities & Support,"Children, Families & Cultural Services",Debit,33.94,amazon uk marketplace,26/10/2015
Nottinghamshire County Council,Minor Works,"Children, Families & Cultural Services",Debit,77.45,screwfix direct,23/10/2015
Nottinghamshire County Council,Phone and Network (Land Lines),"Children, Families & Cultural Services",Debit,24.00,textmagic,23/10/2015
Nottinghamshire County Council,Minor Works,"Children, Families & Cultural Services",Debit,79.99,screwfix direct,16/10/2015
Nottinghamshire County Council,Computer Equipment,"Children, Families & Cultural Services",Debit,33.95,amazon uk marketplace,16/10/2015
Nottinghamshire County Council,Activities & Support,"Children, Families & Cultural Services",Debit,4.28,amazon uk marketplace,17/10/2015
Nottinghamshire County Council,Activities & Support,"Children, Families & Cultural Services",Debit,5.00,amazon uk marketplace,16/10/2015
Nottinghamshire County Council,Activities & Support,"Children, Families & Cultural Services",Debit,27.00,amazon uk retail,17/10/2015
Nottinghamshire County Council,Activities & Support,"Children, Families & Cultural Services",Debit,7.30,amazon uk marketplace,17/10/2015
Nottinghamshire County Council,Activities & Support,"Children, Families & Cultural Services",Debit,2.38,amazon uk marketplace,16/10/2015
Nottinghamshire County Council,Activities & Support,"Children, Families & Cultural Services",Debit,3.58,amazon svcs europesar,17/10/2015
Nottinghamshire County Council,Fixtures & Fittings,"Children, Families & Cultural Services",Debit,"2,387.76",gliderobes ltd,15/10/2015
Nottinghamshire County Council,Activities & Support,"Children, Families & Cultural Services",Debit,32.46,amazon uk retail,14/10/2015
Nottinghamshire County Council,Minor Works,"Children, Families & Cultural Services",Debit,112.91,screwfix direct,07/10/2015
Nottinghamshire County Council,Teaching Equipment,"Children, Families & Cultural Services",Debit,5.00,dri nuance,06/10/2015
Nottinghamshire County Council,Teaching Equipment,"Children, Families & Cultural Services",Debit,139.99,dri nuance,06/10/2015
Nottinghamshire County Council,Furniture,"Children, Families & Cultural Services",Debit,189.60,www.officefurnitureonl,07/10/2015
Nottinghamshire County Council,Teaching Equipment,"Children, Families & Cultural Services",Debit,31.99,amazon uk marketplace,06/10/2015
Nottinghamshire County Council,Teaching Equipment,"Children, Families & Cultural Services",Debit,65.00,thinkbuzan,06/10/2015
Nottinghamshire County Council,Teaching Equipment,"Children, Families & Cultural Services",Debit,93.10,[Redacted],06/10/2015
Nottinghamshire County Council,Teaching Equipment,"Children, Families & Cultural Services",Debit,546.60,pc world online,05/10/2015
Nottinghamshire County Council,Activities & Support,"Children, Families & Cultural Services",Debit,14.98,amazon uk marketplace,02/10/2015
Nottinghamshire County Council,Phone and Network (Land Lines),"Children, Families & Cultural Services",Debit,24.00,textmagic,02/10/2015
Nottinghamshire County Council,Activities & Support,"Children, Families & Cultural Services",Debit,9.90,amazon uk marketplace,02/10/2015
Nottinghamshire County Council,Pocket Money,"Children, Families & Cultural Services",Debit,12.19,amazon uk retail,02/10/2015
Nottinghamshire County Council,Activities & Support,"Children, Families & Cultural Services",Debit,41.58,amazon uk marketplace,04/10/2015
Nottinghamshire County Council,Furniture,"Children, Families & Cultural Services",Debit,396.00,www.officefurnitureonl,02/10/2015
Nottinghamshire County Council,Other Fee's & Services,Environment & Resources,Debit,30.00,sainsburys petrol,14/10/2015
Nottinghamshire County Council,Other Fee's & Services,Environment & Resources,Debit,630.00,nct travel centre,02/11/2015
Nottinghamshire County Council,Other Fee's & Services,Environment & Resources,Debit,630.00,nct travel centre,02/10/2015
Nottinghamshire County Council,Other Fee's & Services,Environment & Resources,Debit,315.00,nct travel centre,02/10/2015
Nottinghamshire County Council,Clients - H & S Equipt,"Children, Families & Cultural Services",Debit,24.00,asda  stores 4201,15/10/2015
Nottinghamshire County Council,Clients - H & S Equipt,"Children, Families & Cultural Services",Debit,12.05,tesco stores 2995,12/10/2015
Nottinghamshire County Council,Activities & Support,"Children, Families & Cultural Services",Debit,21.90,the horse  groom,04/10/2015
Nottinghamshire County Council,Office / General Equipment,Environment & Resources,Debit,10.00,asda  stores 4201,02/11/2015
Nottinghamshire County Council,Office / General Equipment,Environment & Resources,Debit,7.75,asda  stores 4201,13/10/2015
Nottinghamshire County Council,Personal Needs,"Children, Families & Cultural Services",Debit,14.89,amazon uk marketplace,03/11/2015
Nottinghamshire County Council,Personal Needs,"Children, Families & Cultural Services",Debit,28.49,amazon uk marketplace,03/11/2015
Nottinghamshire County Council,Personal Needs,"Children, Families & Cultural Services",Debit,42.76,amazon uk marketplace,02/11/2015
Nottinghamshire County Council,Office / General Equipment,"Children, Families & Cultural Services",Debit,3.99,amazon uk marketplace,28/10/2015
Nottinghamshire County Council,Protective Clothing,"Children, Families & Cultural Services",Debit,56.95,amazon uk marketplace,28/10/2015
Nottinghamshire County Council,Protective Clothing,"Children, Families & Cultural Services",Debit,79.99,amazon uk marketplace,28/10/2015
Nottinghamshire County Council,Personal Needs,"Children, Families & Cultural Services",Credit,-4.98,amazon uk marketplace,26/10/2015
Nottinghamshire County Council,Personal Needs,"Children, Families & Cultural Services",Debit,76.26,amazon uk marketplace,26/10/2015
Nottinghamshire County Council,Personal Needs,"Children, Families & Cultural Services",Debit,42.64,amazon uk marketplace,25/10/2015
Nottinghamshire County Council,Personal Needs,"Children, Families & Cultural Services",Debit,34.99,amazon uk marketplace,22/10/2015
Nottinghamshire County Council,Personal Needs,"Children, Families & Cultural Services",Debit,64.29,amazon uk marketplace,21/10/2015
Nottinghamshire County Council,Personal Needs,"Children, Families & Cultural Services",Debit,29.99,amazon uk retail,21/10/2015
Nottinghamshire County Council,Personal Needs,"Children, Families & Cultural Services",Debit,6.97,amazon uk marketplace,19/10/2015
Nottinghamshire County Council,Personal Needs,"Children, Families & Cultural Services",Debit,69.95,amazon uk retail,16/10/2015
Nottinghamshire County Council,Personal Needs,"Children, Families & Cultural Services",Debit,31.95,amazon uk marketplace,13/10/2015
Nottinghamshire County Council,Personal Needs,"Children, Families & Cultural Services",Debit,19.35,the london eye,09/10/2015
Nottinghamshire County Council,Activities & Support,"Children, Families & Cultural Services",Debit,11.07,wm morrisons,03/11/2015
Nottinghamshire County Council,Activities & Support,"Children, Families & Cultural Services",Debit,4.65,wm morrisons,28/10/2015
Nottinghamshire County Council,Activities & Support,"Children, Families & Cultural Services",Debit,78.81,booker limited nottingha,21/10/2015
Nottinghamshire County Council,Activities & Support,"Children, Families & Cultural Services",Debit,7.34,wm morrisons,20/10/2015
Nottinghamshire County Council,Activities & Support,"Children, Families & Cultural Services",Debit,7.41,wm morrisons,16/10/2015
Nottinghamshire County Council,Activities & Support,"Children, Families & Cultural Services",Debit,10.94,wm morrisons,13/10/2015
Nottinghamshire County Council,Activities & Support,"Children, Families & Cultural Services",Debit,37.98,argos ltd,09/10/2015
Nottinghamshire County Council,Activities & Support,"Children, Families & Cultural Services",Debit,16.63,wm morrisons,09/10/2015
Nottinghamshire County Council,Activities & Support,"Children, Families & Cultural Services",Debit,14.03,wm morrisons,06/10/2015
Nottinghamshire County Council,Other Fee's & Services,"Children, Families & Cultural Services",Debit,8.38,123-reg.co.uk,21/10/2015
Nottinghamshire County Council,Training Fees,"Children, Families & Cultural Services",Debit,150.00,www.besbic.eu.com,26/10/2015
Nottinghamshire County Council,Teaching Equipment,"Children, Families & Cultural Services",Debit,40.35,tesco stores 5437,03/11/2015
Nottinghamshire County Council,Teaching Equipment,"Children, Families & Cultural Services",Debit,21.05,aldi,31/10/2015
Nottinghamshire County Council,Teaching Equipment,"Children, Families & Cultural Services",Debit,57.03,asda superstore 04261,31/10/2015
Nottinghamshire County Council,Teaching Equipment,"Children, Families & Cultural Services",Debit,15.26,asda superstore 04261,21/10/2015
Nottinghamshire County Council,Teaching Equipment,"Children, Families & Cultural Services",Debit,25.30,asda superstore 04261,16/10/2015
Nottinghamshire County Council,Teaching Equipment,"Children, Families & Cultural Services",Debit,38.74,aldi,18/10/2015
Nottinghamshire County Council,Teaching Equipment,"Children, Families & Cultural Services",Debit,36.47,tesco stores 5379,11/10/2015
Nottinghamshire County Council,Teaching Equipment,"Children, Families & Cultural Services",Debit,27.00,tesco stores 5437,06/10/2015
Nottinghamshire County Council,Teaching Equipment,"Children, Families & Cultural Services",Debit,39.05,booker limited mansfield,04/10/2015
Nottinghamshire County Council,Teaching Equipment,"Children, Families & Cultural Services",Debit,24.19,asda superstore 04261,03/10/2015
Nottinghamshire County Council,Materials - External,Environment & Resources,Debit,90.00,edmundson electrical,03/11/2015
Nottinghamshire County Council,Materials - External,Environment & Resources,Debit,39.04,edmundson electrical,03/11/2015
Nottinghamshire County Council,Materials - External,Environment & Resources,Debit,14.98,halfords 0855,03/11/2015
Nottinghamshire County Council,Materials - External,Environment & Resources,Debit,69.53,frank key (notts) ltd,15/10/2015
Nottinghamshire County Council,Materials - External,Environment & Resources,Debit,2.78,enterprise securit,12/10/2015
Nottinghamshire County Council,Materials - External,Environment & Resources,Debit,417.89,erf electrical wh,09/10/2015
Nottinghamshire County Council,Materials - External,Environment & Resources,Debit,116.78,erf electrical wh,09/10/2015
Nottinghamshire County Council,Materials - External,Environment & Resources,Debit,454.69,erf electrical wh,09/10/2015
Nottinghamshire County Council,Materials - External,Environment & Resources,Debit,210.47,erf electrical wh,09/10/2015
Nottinghamshire County Council,Provisions,"Children, Families & Cultural Services",Debit,68.31,js online grocery,22/10/2015
Nottinghamshire County Council,Provisions,"Children, Families & Cultural Services",Debit,56.86,makro self service notti,21/10/2015
Nottinghamshire County Council,Provisions,"Children, Families & Cultural Services",Debit,174.10,makro self service notti,14/10/2015
Nottinghamshire County Council,Provisions,"Children, Families & Cultural Services",Debit,52.18,tesco store 2964,09/10/2015
Nottinghamshire County Council,Provisions,"Children, Families & Cultural Services",Debit,114.91,makro self service notti,05/10/2015
Nottinghamshire County Council,Provisions,"Children, Families & Cultural Services",Debit,27.07,tesco store 2964,02/10/2015
Nottinghamshire County Council,Activities & Support,"Children, Families & Cultural Services",Debit,132.00,paypal  ,03/11/2015
Nottinghamshire County Council,Residence Order Allowance,"Children, Families & Cultural Services",Debit,215.00,www.justice.gov.uk,03/11/2015
Nottinghamshire County Council,Family Financial Assistance,"Children, Families & Cultural Services",Debit,27.00,tesco direct,16/10/2015
Nottinghamshire County Council,Residence Order Allowance,"Children, Families & Cultural Services",Debit,215.00,www.justice.gov.uk,13/10/2015
Nottinghamshire County Council,Other Public Transport,"Children, Families & Cultural Services",Debit,35.65,trainline,03/11/2015
Nottinghamshire County Council,Learning Resources Non ICT,"Children, Families & Cultural Services",Debit,258.00,www.westminster-briefi,23/10/2015
Nottinghamshire County Council,Car Parking Charges,"Children, Families & Cultural Services",Debit,7.00,upt - emt nottingham rai,06/10/2015
Nottinghamshire County Council,Activities & Support,"Children, Families & Cultural Services",Debit,28.45,tesco store 3439,03/11/2015
Nottinghamshire County Council,Activities & Support,"Children, Families & Cultural Services",Debit,28.30,tesco store 3439,02/11/2015
Nottinghamshire County Council,Activities & Support,"Children, Families & Cultural Services",Debit,22.61,aldi,02/11/2015
Nottinghamshire County Council,Activities & Support,"Children, Families & Cultural Services",Debit,6.95,wilko retail limit,29/10/2015
Nottinghamshire County Council,Activities & Support,"Children, Families & Cultural Services",Debit,3.75,tesco stores-3439,28/10/2015
Nottinghamshire County Council,Activities & Support,"Children, Families & Cultural Services",Debit,16.63,tesco store 3439,26/10/2015
Nottinghamshire County Council,Activities & Support,"Children, Families & Cultural Services",Debit,26.00,wilko retail limit,23/10/2015
Nottinghamshire County Council,Activities & Support,"Children, Families & Cultural Services",Debit,43.71,tesco store 3439,22/10/2015
Nottinghamshire County Council,Activities & Support,"Children, Families & Cultural Services",Debit,5.99,currys-worksop 2369,20/10/2015
Nottinghamshire County Council,Activities & Support,"Children, Families & Cultural Services",Debit,9.99,currys-worksop 2369,20/10/2015
Nottinghamshire County Council,Activities & Support,"Children, Families & Cultural Services",Debit,34.04,tesco store 3439,19/10/2015
Nottinghamshire County Council,Activities & Support,"Children, Families & Cultural Services",Debit,4.67,asda stores 4476,15/10/2015
Nottinghamshire County Council,Activities & Support,"Children, Families & Cultural Services",Debit,7.58,tesco store 3439,14/10/2015
Nottinghamshire County Council,Activities & Support,"Children, Families & Cultural Services",Debit,9.58,tesco stores-3439,12/10/2015
Nottinghamshire County Council,Activities & Support,"Children, Families & Cultural Services",Debit,72.00,blacks,09/10/2015
Nottinghamshire County Council,Activities & Support,"Children, Families & Cultural Services",Debit,6.68,tesco store 3439,08/10/2015
Nottinghamshire County Council,Activities & Support,"Children, Families & Cultural Services",Debit,13.53,bm retail ltd,07/10/2015
Nottinghamshire County Council,Activities & Support,"Children, Families & Cultural Services",Debit,2.00,poundworld retail,07/10/2015
Nottinghamshire County Council,Activities & Support,"Children, Families & Cultural Services",Debit,5.00,stapletons lock  safe,07/10/2015
Nottinghamshire County Council,Activities & Support,"Children, Families & Cultural Services",Debit,32.78,tesco store 3439,07/10/2015
Nottinghamshire County Council,Activities & Support,"Children, Families & Cultural Services",Debit,4.00,tesco stores-3439,05/10/2015
Nottinghamshire County Council,Other Fee's & Services,"Children, Families & Cultural Services",Debit,17.00,notts county council,29/10/2015
Nottinghamshire County Council,Office / General Equipment,"Children, Families & Cultural Services",Debit,149.99,halfords on line,27/10/2015
Nottinghamshire County Council,Vehicles Repairs & Maintenance,"Children, Families & Cultural Services",Debit,10.00,bassetlaw d.c.,26/10/2015
Nottinghamshire County Council,Refuse Collection / Disposal,"Children, Families & Cultural Services",Debit,114.00,kcm metals  skip hire,19/10/2015
Nottinghamshire County Council,Other Fee's & Services,"Children, Families & Cultural Services",Debit,18.50,gro hm passport office,12/10/2015
Nottinghamshire County Council,Activities & Support,"Children, Families & Cultural Services",Debit,72.00,wm morrisons dry c,31/10/2015
Nottinghamshire County Council,Activities & Support,"Children, Families & Cultural Services",Debit,82.87,tesco stores 5329,27/10/2015
Nottinghamshire County Council,Office / General Equipment,"Children, Families & Cultural Services",Debit,149.00,eb advising with conv,15/10/2015
Nottinghamshire County Council,Provisions,"Adult Social Care, Health & Public Protection ",Debit,139.60,cross country,09/10/2015
Nottinghamshire County Council,Materials - External,Environment & Resources,Debit,14.47,edmundson electrical,02/11/2015
Nottinghamshire County Council,Materials - External,Environment & Resources,Debit,37.42,edmundson electrical,30/10/2015
Nottinghamshire County Council,Materials - External,Environment & Resources,Debit,156.28,eyre  elliston ltd,29/10/2015
Nottinghamshire County Council,Materials - External,Environment & Resources,Debit,4.75,arco ltd,03/11/2015
Nottinghamshire County Council,Materials - External,Environment & Resources,Debit,213.70,kirkby components,21/10/2015
Nottinghamshire County Council,Personal Needs,"Children, Families & Cultural Services",Debit,7.27,home bargains doncaste,22/10/2015
Nottinghamshire County Council,Office / General Equipment,"Children, Families & Cultural Services",Debit,55.00,sportsdirect 292,05/10/2015
Nottinghamshire County Council,Office / General Equipment,"Children, Families & Cultural Services",Debit,17.80,odeon,04/10/2015
Nottinghamshire County Council,Office / General Equipment,Environment & Resources,Debit,270.00,gbw tool hire,30/10/2015
Nottinghamshire County Council,Office / General Equipment,Environment & Resources,Debit,191.36,www.extensive.co.uk,30/10/2015
Nottinghamshire County Council,Office / General Equipment,Environment & Resources,Debit,284.83,johnstones dec centre,20/10/2015
Nottinghamshire County Council,Office / General Equipment,Environment & Resources,Debit,8.49,halfords 0493,15/10/2015
Nottinghamshire County Council,Office / General Equipment,Environment & Resources,Debit,100.98,halfords 0493,15/10/2015
Nottinghamshire County Council,Office / General Equipment,Environment & Resources,Debit,51.97,screwfix direct,13/10/2015
Nottinghamshire County Council,Office / General Equipment,Environment & Resources,Debit,99.00,bassetlaw district cou,12/10/2015
Nottinghamshire County Council,Office / General Equipment,Environment & Resources,Debit,374.40,mobile mini uk ltd,13/10/2015
Nottinghamshire County Council,Office / General Equipment,Environment & Resources,Debit,20.00,vodafone limited,05/10/2015
Nottinghamshire County Council,Office / General Equipment,Environment & Resources,Debit,20.00,vodafone limited,05/10/2015
Nottinghamshire County Council,Office / General Equipment,Environment & Resources,Debit,19.99,motosave ltd,03/10/2015
Nottinghamshire County Council,Provisions,"Children, Families & Cultural Services",Debit,30.10,paddyfields,31/10/2015
Nottinghamshire County Council,Cleaning Materials,"Children, Families & Cultural Services",Debit,32.22,asda superstore 04261,27/10/2015
Nottinghamshire County Council,Personal Needs,"Children, Families & Cultural Services",Debit,30.00,asda superstore 04261,27/10/2015
Nottinghamshire County Council,Personal Needs,"Children, Families & Cultural Services",Debit,9.49,bargain booze,26/10/2015
Nottinghamshire County Council,Provisions,"Children, Families & Cultural Services",Debit,69.96,aldi,26/10/2015
Nottinghamshire County Council,Provisions,"Children, Families & Cultural Services",Debit,6.76,co-op group 017091,24/10/2015
Nottinghamshire County Council,Personal Needs,"Children, Families & Cultural Services",Debit,10.00,superdrug stores plc,17/10/2015
Nottinghamshire County Council,Provisions,"Children, Families & Cultural Services",Debit,3.00,tesco stores 2995,18/10/2015
Nottinghamshire County Council,Personal Needs,"Children, Families & Cultural Services",Debit,16.00,tesco stores 2995,18/10/2015
Nottinghamshire County Council,Materials - External,Environment & Resources,Debit,24.01,edmundson electrical,28/10/2015
Nottinghamshire County Council,Materials - External,Environment & Resources,Debit,203.11,edmundson electrical,16/10/2015
Nottinghamshire County Council,Materials - External,Environment & Resources,Debit,16.98,edmundson electrical,14/10/2015
Nottinghamshire County Council,Materials - External,Environment & Resources,Debit,7.99,edmundson electrical,07/10/2015
Nottinghamshire County Council,Materials - External,Environment & Resources,Debit,80.04,edmundson electrical,07/10/2015
Nottinghamshire County Council,Materials - External,Environment & Resources,Debit,48.37,edmundson electrical,02/10/2015
Nottinghamshire County Council,Materials - External,Environment & Resources,Debit,265.13,city electrical fa,20/10/2015
Nottinghamshire County Council,Building Maintenance,"Children, Families & Cultural Services",Debit,34.98,amazon uk marketplace,27/10/2015
Nottinghamshire County Council,First Aid Equipment Purchases,"Children, Families & Cultural Services",Debit,12.52,amazon uk marketplace,24/10/2015
Nottinghamshire County Council,First Aid Equipment Purchases,"Children, Families & Cultural Services",Debit,13.98,amazon uk marketplace,22/10/2015
Nottinghamshire County Council,Cleaning & Domestic Equipment,"Children, Families & Cultural Services",Debit,53.90,amazon uk marketplace,08/10/2015
Nottinghamshire County Council,Building Maintenance,"Children, Families & Cultural Services",Debit,99.99,screwfix direct,02/10/2015
Nottinghamshire County Council,Office / General Equipment,"Children, Families & Cultural Services",Debit,2.00,upt - nottinghamcity cou,15/10/2015
Nottinghamshire County Council,Office / General Equipment,"Children, Families & Cultural Services",Debit,30.50,tesco stores 2702,14/10/2015
Nottinghamshire County Council,Office / General Equipment,"Children, Families & Cultural Services",Debit,6.00,tesco pfs 4083,14/10/2015
Nottinghamshire County Council,Office / General Equipment,"Children, Families & Cultural Services",Debit,49.99,staples uk,05/10/2015
Nottinghamshire County Council,Activities & Support,"Children, Families & Cultural Services",Debit,18.61,tesco stores 2995,08/10/2015
Nottinghamshire County Council,Activities & Support,"Children, Families & Cultural Services",Debit,10.00,w m morrisons,06/10/2015
Nottinghamshire County Council,Rail / Tube Fares,"Children, Families & Cultural Services",Credit,-135.00,trainline,27/10/2015
Nottinghamshire County Council,Rail / Tube Fares,"Children, Families & Cultural Services",Debit,353.43,trainline,27/10/2015
Nottinghamshire County Council,Clothing/Shoes/Uniforms,"Children, Families & Cultural Services",Debit,12.00,primark,01/11/2015
Nottinghamshire County Council,Provisions,"Children, Families & Cultural Services",Debit,4.69,mcdonalds,01/11/2015
Nottinghamshire County Council,Holidays,"Children, Families & Cultural Services",Debit,17.90,galleries of justice m,31/10/2015
Nottinghamshire County Council,Personal Needs,"Children, Families & Cultural Services",Debit,11.98,wh smith,01/11/2015
Nottinghamshire County Council,Personal Needs,"Children, Families & Cultural Services",Debit,12.72,sainsburys s/mkts,06/10/2015
Nottinghamshire County Council,Fixtures & Fittings,"Children, Families & Cultural Services",Debit,23.33,sainsburys s/mkts,06/10/2015
Nottinghamshire County Council,Fixtures & Fittings,"Children, Families & Cultural Services",Credit,-16.00,sainsburys s/mkts,06/10/2015
Nottinghamshire County Council,Building Maintenance,Environment & Resources,Debit,17.98,wilko retail limit,22/10/2015
Nottinghamshire County Council,Postages,"Children, Families & Cultural Services",Debit,3.10,sainsburys s/mkts,26/10/2015
Nottinghamshire County Council,Postages,"Children, Families & Cultural Services",Debit,3.05,sacat marks  spencer,26/10/2015
Nottinghamshire County Council,Training Fees,Environment & Resources,Debit,82.00,amazon svcs europesar,19/10/2015
Nottinghamshire County Council,Training Fees,Environment & Resources,Debit,45.99,amazon uk retail,17/10/2015
Nottinghamshire County Council,Other Fee's & Services,"Children, Families & Cultural Services",Debit,8.00,w boyes  co ltd kirkb,06/10/2015
Nottinghamshire County Council,Activities & Support,"Children, Families & Cultural Services",Debit,16.00,wilko retail limit,13/10/2015
Nottinghamshire County Council,Activities & Support,"Children, Families & Cultural Services",Debit,145.58,sportsdirect 292,13/10/2015
Nottinghamshire County Council,Activities & Support,"Children, Families & Cultural Services",Debit,85.94,superdrug stores plc,13/10/2015
Nottinghamshire County Council,Activities & Support,"Children, Families & Cultural Services",Debit,32.95,yeomans outdoor le,12/10/2015
Nottinghamshire County Council,Activities & Support,"Children, Families & Cultural Services",Debit,389.30,jtf wholesale ltd,09/10/2015
Nottinghamshire County Council,Provisions,"Children, Families & Cultural Services",Debit,51.42,aldi,01/11/2015
Nottinghamshire County Council,Clothing/Shoes/Uniforms,"Children, Families & Cultural Services",Debit,15.23,select,30/10/2015
Nottinghamshire County Council,Provisions,"Children, Families & Cultural Services",Debit,5.00,wm morrisons plc,01/11/2015
Nottinghamshire County Council,Personal Needs,"Children, Families & Cultural Services",Debit,8.33,superdrug stores plc,30/10/2015
Nottinghamshire County Council,Clothing/Shoes/Uniforms,"Children, Families & Cultural Services",Debit,12.74,select,30/10/2015
Nottinghamshire County Council,Clothing/Shoes/Uniforms,"Children, Families & Cultural Services",Debit,22.99,garage shoes,30/10/2015
Nottinghamshire County Council,Clothing/Shoes/Uniforms,"Children, Families & Cultural Services",Debit,5.99,select,30/10/2015
Nottinghamshire County Council,Provisions,"Children, Families & Cultural Services",Debit,24.94,mcdonalds,27/10/2015
Nottinghamshire County Council,Personal Needs,"Children, Families & Cultural Services",Debit,15.45,sheeps green,27/10/2015
Nottinghamshire County Council,Section 17,"Children, Families & Cultural Services",Debit,50.00,eb nnecl conference 2,31/10/2015
Nottinghamshire County Council,Section 17,"Children, Families & Cultural Services",Debit,1.59,mcdonalds,29/10/2015
Nottinghamshire County Council,Section 17,"Children, Families & Cultural Services",Debit,200.00,john lewis,29/10/2015
Nottinghamshire County Council,Section 17,"Children, Families & Cultural Services",Debit,489.95,john lewis,07/10/2015
Nottinghamshire County Council,Other Fee's & Services,"Policy, Planning & Corporate Services",Debit,35.00,www.ico.gov.uk,03/11/2015
Nottinghamshire County Council,Members Conference Fees,"Policy, Planning & Corporate Services",Credit,-115.00,donnington manor hotel,19/10/2015
Nottinghamshire County Council,Office / General Equipment,"Policy, Planning & Corporate Services",Debit,2.25,amazon uk marketplace,19/10/2015
Nottinghamshire County Council,Other Fee's & Services,"Policy, Planning & Corporate Services",Debit,35.00,www.ico.gov.uk,15/10/2015
Nottinghamshire County Council,Members Conference Fees,"Policy, Planning & Corporate Services",Debit,"1,401.00",donnington manor hotel,13/10/2015
Nottinghamshire County Council,Office / General Equipment,"Policy, Planning & Corporate Services",Debit,280.00,hemming group ltd,13/10/2015
Nottinghamshire County Council,Other Fee's & Services,"Policy, Planning & Corporate Services",Debit,35.00,www.ico.gov.uk,12/10/2015
Nottinghamshire County Council,Aftercare - Equipment,"Children, Families & Cultural Services",Credit,-149.99,currys,14/10/2015
Nottinghamshire County Council,Aftercare - Equipment,"Children, Families & Cultural Services",Debit,149.99,currys,08/10/2015
Nottinghamshire County Council,Activities & Support,"Children, Families & Cultural Services",Debit,8.50,asda stores 4474,22/10/2015
Nottinghamshire County Council,Activities & Support,"Children, Families & Cultural Services",Debit,46.50,farmfoods- baldert,21/10/2015
Nottinghamshire County Council,Activities & Support,"Children, Families & Cultural Services",Debit,3.96,one stop 2353,20/10/2015
Nottinghamshire County Council,Activities & Support,"Children, Families & Cultural Services",Debit,28.32,farmfoods- baldert,15/10/2015
Nottinghamshire County Council,Activities & Support,"Children, Families & Cultural Services",Debit,10.27,sainsburys spmrkts,16/10/2015
Nottinghamshire County Council,Activities & Support,"Children, Families & Cultural Services",Debit,3.45,tesco stores 2995,17/10/2015
Nottinghamshire County Council,Activities & Support,"Children, Families & Cultural Services",Debit,16.33,heron foods ltd,17/10/2015
Nottinghamshire County Council,Activities & Support,"Children, Families & Cultural Services",Debit,13.36,home bargains newark,15/10/2015
Nottinghamshire County Council,Activities & Support,"Children, Families & Cultural Services",Debit,9.36,poundstretcher 569,15/10/2015
Nottinghamshire County Council,Activities & Support,"Children, Families & Cultural Services",Debit,5.40,one stop 2353,13/10/2015
Nottinghamshire County Council,Activities & Support,"Children, Families & Cultural Services",Debit,13.31,home bargains (retford,10/10/2015
Nottinghamshire County Council,Activities & Support,"Children, Families & Cultural Services",Debit,65.46,tesco stores 2995,09/10/2015
Nottinghamshire County Council,Activities & Support,"Children, Families & Cultural Services",Debit,15.98,fat boys,09/10/2015
Nottinghamshire County Council,Activities & Support,"Children, Families & Cultural Services",Debit,17.00,heron foods ltd,09/10/2015
Nottinghamshire County Council,Activities & Support,"Children, Families & Cultural Services",Debit,7.59,argos ltd,10/10/2015
Nottinghamshire County Council,Activities & Support,"Children, Families & Cultural Services",Debit,19.05,farmfoods- baldert,07/10/2015
Nottinghamshire County Council,Activities & Support,"Children, Families & Cultural Services",Debit,10.73,bm retail,07/10/2015
Nottinghamshire County Council,Activities & Support,"Children, Families & Cultural Services",Debit,58.72,iceland,07/10/2015
Nottinghamshire County Council,Activities & Support,"Children, Families & Cultural Services",Debit,8.00,heron foods ltd,06/10/2015
Nottinghamshire County Council,Activities & Support,"Children, Families & Cultural Services",Debit,17.98,w boyes  co ltd,06/10/2015
Nottinghamshire County Council,Activities & Support,"Children, Families & Cultural Services",Debit,23.97,fat boys,06/10/2015
Nottinghamshire County Council,Activities & Support,"Children, Families & Cultural Services",Debit,17.00,asda stores 4474,06/10/2015
Nottinghamshire County Council,Activities & Support,"Children, Families & Cultural Services",Debit,56.64,heron foods ltd,06/10/2015
Nottinghamshire County Council,Materials - External,Environment & Resources,Debit,65.52,midland fixings ltd,22/10/2015
Nottinghamshire County Council,Materials - External,Environment & Resources,Debit,39.94,arco ltd,22/10/2015
Nottinghamshire County Council,Fixtures & Fittings,"Children, Families & Cultural Services",Debit,6.47,b  q,15/10/2015
Nottinghamshire County Council,Fixtures & Fittings,"Children, Families & Cultural Services",Debit,15.63,b  q,14/10/2015
Nottinghamshire County Council,Fixtures & Fittings,"Children, Families & Cultural Services",Debit,10.00,b  q,14/10/2015
Nottinghamshire County Council,Fixtures & Fittings,"Children, Families & Cultural Services",Debit,10.00,b  q,14/10/2015
Nottinghamshire County Council,Fixtures & Fittings,"Children, Families & Cultural Services",Debit,20.00,b  q,14/10/2015
Nottinghamshire County Council,Fixtures & Fittings,"Children, Families & Cultural Services",Debit,10.00,b  q,14/10/2015
Nottinghamshire County Council,Fixtures & Fittings,"Children, Families & Cultural Services",Debit,10.00,b  q,14/10/2015
Nottinghamshire County Council,Personal Needs,"Children, Families & Cultural Services",Debit,6.95,amazon uk marketplace,29/10/2015
Nottinghamshire County Council,Personal Needs,"Children, Families & Cultural Services",Debit,5.01,amazon uk marketplace,28/10/2015
Nottinghamshire County Council,Personal Needs,"Children, Families & Cultural Services",Debit,7.98,amazon uk marketplace,28/10/2015
Nottinghamshire County Council,Fixtures & Fittings,"Children, Families & Cultural Services",Debit,8.00,asda superstore 04261,27/10/2015
Nottinghamshire County Council,Fixtures & Fittings,"Children, Families & Cultural Services",Debit,17.55,asda superstore 04261,27/10/2015
Nottinghamshire County Council,Fixtures & Fittings,"Children, Families & Cultural Services",Debit,15.00,tesco stores 5437,25/10/2015
Nottinghamshire County Council,Fixtures & Fittings,"Children, Families & Cultural Services",Debit,17.80,bq direct,02/10/2015
Nottinghamshire County Council,Aftercare - Equipment,"Children, Families & Cultural Services",Debit,149.99,currys t/sales,22/10/2015
Nottinghamshire County Council,Other Fee's & Services,"Children, Families & Cultural Services",Debit,16.50,peterborough direct,07/10/2015
Nottinghamshire County Council,Other Fee's & Services,"Children, Families & Cultural Services",Debit,27.50,peterborough direct,07/10/2015
Nottinghamshire County Council,Office / General Equipment,"Children, Families & Cultural Services",Debit,47.78,specialist theatre servi,03/11/2015
Nottinghamshire County Council,Office / General Equipment,"Children, Families & Cultural Services",Debit,32.04,tesco stores 2995,31/10/2015
Nottinghamshire County Council,Office / General Equipment,"Children, Families & Cultural Services",Debit,34.99,amazon uk marketplace,28/10/2015
Nottinghamshire County Council,Office / General Equipment,"Children, Families & Cultural Services",Debit,17.18,amazon uk marketplace,26/10/2015
Nottinghamshire County Council,Office / General Equipment,"Children, Families & Cultural Services",Debit,54.00,post office counter,02/10/2015
Nottinghamshire County Council,Other Fee's & Services,"Adult Social Care, Health & Public Protection ",Debit,9.25,gro hm passport office,09/10/2015
Nottinghamshire County Council,Materials - External,Environment & Resources,Debit,86.26,keyline ashfield,02/11/2015
Nottinghamshire County Council,Materials - External,Environment & Resources,Debit,58.01,keyline ashfield,27/10/2015
Nottinghamshire County Council,Materials - External,Environment & Resources,Debit,58.01,keyline ashfield,27/10/2015
Nottinghamshire County Council,Materials - External,Environment & Resources,Debit,54.00,keyline ashfield,27/10/2015
Nottinghamshire County Council,Materials - External,Environment & Resources,Debit,40.80,keyline ashfield,27/10/2015
Nottinghamshire County Council,Non-Employees medical fees,Environment & Resources,Credit,-47.99,amazon uk marketplace,03/11/2015
Nottinghamshire County Council,Non-Employees medical fees,Environment & Resources,Debit,21.36,amazon uk marketplace,23/10/2015
Nottinghamshire County Council,Non-Employees medical fees,Environment & Resources,Debit,172.96,amazon uk marketplace,23/10/2015
Nottinghamshire County Council,Non-Employees medical fees,Environment & Resources,Debit,9.49,amazon uk marketplace,21/10/2015
Nottinghamshire County Council,Activities & Support,"Children, Families & Cultural Services",Debit,9.00,b  q,28/10/2015
Nottinghamshire County Council,Activities & Support,"Children, Families & Cultural Services",Debit,6.00,b  q,28/10/2015
Nottinghamshire County Council,Activities & Support,"Children, Families & Cultural Services",Debit,2.00,b  q,28/10/2015
Nottinghamshire County Council,Activities & Support,"Children, Families & Cultural Services",Debit,9.00,b  q,28/10/2015
Nottinghamshire County Council,Activities & Support,"Children, Families & Cultural Services",Debit,9.00,b  q,28/10/2015
Nottinghamshire County Council,Activities & Support,"Children, Families & Cultural Services",Debit,2.00,b  q,28/10/2015
Nottinghamshire County Council,Activities & Support,"Children, Families & Cultural Services",Debit,9.00,b  q,28/10/2015
Nottinghamshire County Council,Activities & Support,"Children, Families & Cultural Services",Debit,2.00,b  q,28/10/2015
Nottinghamshire County Council,Activities & Support,"Children, Families & Cultural Services",Debit,4.95,tesco stores 5437,03/11/2015
Nottinghamshire County Council,Activities & Support,"Children, Families & Cultural Services",Debit,21.83,tesco stores 5437,30/10/2015
Nottinghamshire County Council,Activities & Support,"Children, Families & Cultural Services",Debit,3.54,lilys cards ltd,27/10/2015
Nottinghamshire County Council,Activities & Support,"Children, Families & Cultural Services",Debit,19.97,asda superstore 04261,28/10/2015
Nottinghamshire County Council,Activities & Support,"Children, Families & Cultural Services",Debit,3.19,local 4 u,27/10/2015
Nottinghamshire County Council,Activities & Support,"Children, Families & Cultural Services",Debit,18.39,asda store ston in as,23/10/2015
Nottinghamshire County Council,Activities & Support,"Children, Families & Cultural Services",Debit,4.00,asda superstore 04261,22/10/2015
Nottinghamshire County Council,Activities & Support,"Children, Families & Cultural Services",Debit,42.00,asda superstore 04261,22/10/2015
Nottinghamshire County Council,Activities & Support,"Children, Families & Cultural Services",Debit,4.15,tesco stores 5379,20/10/2015
Nottinghamshire County Council,Activities & Support,"Children, Families & Cultural Services",Debit,28.72,asda store ston in as,16/10/2015
Nottinghamshire County Council,Activities & Support,"Children, Families & Cultural Services",Debit,13.00,poundworld retail,17/10/2015
Nottinghamshire County Council,Activities & Support,"Children, Families & Cultural Services",Debit,17.02,bm retail ltd,17/10/2015
Nottinghamshire County Council,Activities & Support,"Children, Families & Cultural Services",Debit,2.56,tesco stores 5281,15/10/2015
Nottinghamshire County Council,Activities & Support,"Children, Families & Cultural Services",Debit,5.63,local 4 u,13/10/2015
Nottinghamshire County Council,Activities & Support,"Children, Families & Cultural Services",Debit,10.45,sportsdirect 437,09/10/2015
Nottinghamshire County Council,Activities & Support,"Children, Families & Cultural Services",Debit,5.96,local 4 u,09/10/2015
Nottinghamshire County Council,Activities & Support,"Children, Families & Cultural Services",Debit,1.80,thandi supermarket 80966,09/10/2015
Nottinghamshire County Council,Activities & Support,"Children, Families & Cultural Services",Debit,10.00,poundland ltd 1333,09/10/2015
Nottinghamshire County Council,Activities & Support,"Children, Families & Cultural Services",Debit,15.25,asda store ston in as,08/10/2015
Nottinghamshire County Council,Activities & Support,"Children, Families & Cultural Services",Debit,19.12,asda superstore 04261,02/10/2015
Nottinghamshire County Council,Staff Training,"Children, Families & Cultural Services",Debit,82.80,www.aelp.org.uk,02/11/2015
Nottinghamshire County Council,Teaching Equipment,"Children, Families & Cultural Services",Debit,61.59,amazon uk marketplace,20/10/2015
Nottinghamshire County Council,Activities & Support,"Children, Families & Cultural Services",Debit,204.00,amazon uk marketplace,20/10/2015
Nottinghamshire County Council,Office / General Equipment,"Children, Families & Cultural Services",Debit,10.44,amazon uk marketplace,20/10/2015
Nottinghamshire County Council,Materials - External,"Children, Families & Cultural Services",Debit,55.00,iz  computer lab,02/10/2015
Nottinghamshire County Council,Clothing/Shoes/Uniforms,"Children, Families & Cultural Services",Debit,23.99,paypal  ,29/10/2015
Nottinghamshire County Council,Clothing/Shoes/Uniforms,"Children, Families & Cultural Services",Debit,33.99,paypal  ,29/10/2015
Nottinghamshire County Council,Activities & Support,"Children, Families & Cultural Services",Debit,28.95,amazon uk marketplace,29/10/2015
Nottinghamshire County Council,Activities & Support,"Children, Families & Cultural Services",Debit,53.89,argos retail group,29/10/2015
Nottinghamshire County Council,Pocket Money,"Children, Families & Cultural Services",Debit,10.99,amazon uk marketplace,29/10/2015
Nottinghamshire County Council,Activities & Support,"Children, Families & Cultural Services",Debit,22.22,amazon uk retail,28/10/2015
Nottinghamshire County Council,Books - General,"Children, Families & Cultural Services",Debit,50.02,co-op group 012211,28/10/2015
Nottinghamshire County Council,Personal Needs,"Children, Families & Cultural Services",Debit,98.44,tesco stores 3297,28/10/2015
Nottinghamshire County Council,Activities & Support,"Children, Families & Cultural Services",Debit,3.90,amazon uk marketplace,28/10/2015
Nottinghamshire County Council,Pocket Money,"Children, Families & Cultural Services",Debit,48.98,www.mandmdirect.com,28/10/2015
Nottinghamshire County Council,Building Maintenance,"Children, Families & Cultural Services",Debit,57.18,cooper and berry ltd,26/10/2015
Nottinghamshire County Council,Rail / Tube Fares,"Children, Families & Cultural Services",Debit,189.72,trainline,26/10/2015
Nottinghamshire County Council,Clothing/Shoes/Uniforms,"Children, Families & Cultural Services",Debit,40.81,sportsdirect.com,23/10/2015
Nottinghamshire County Council,Pocket Money,"Children, Families & Cultural Services",Debit,4.17,sportsdirect.com,23/10/2015
Nottinghamshire County Council,Furniture,"Children, Families & Cultural Services",Debit,59.96,argos retail group,20/10/2015
Nottinghamshire County Council,Furniture,"Children, Families & Cultural Services",Debit,17.97,argos retail group,20/10/2015
Nottinghamshire County Council,Activities & Support,"Children, Families & Cultural Services",Debit,15.49,paypal  ,22/10/2015
Nottinghamshire County Council,Clothing/Shoes/Uniforms,"Children, Families & Cultural Services",Debit,34.00,amazon uk marketplace,22/10/2015
Nottinghamshire County Council,Clothing/Shoes/Uniforms,"Children, Families & Cultural Services",Debit,41.10,tesco stores 3297,21/10/2015
Nottinghamshire County Council,Clothing/Shoes/Uniforms,"Children, Families & Cultural Services",Debit,47.95,asda 4387,21/10/2015
Nottinghamshire County Council,Rail / Tube Fares,"Children, Families & Cultural Services",Debit,133.62,trainline,21/10/2015
Nottinghamshire County Council,Clothing/Shoes/Uniforms,"Children, Families & Cultural Services",Debit,111.92,new look internet,21/10/2015
Nottinghamshire County Council,Personal Needs,"Children, Families & Cultural Services",Debit,9.49,amazon uk marketplace,20/10/2015
Nottinghamshire County Council,Building Maintenance,"Children, Families & Cultural Services",Debit,406.79,cooper and berry ltd,20/10/2015
Nottinghamshire County Council,Specialist Equipment,"Children, Families & Cultural Services",Debit,28.79,screwfix,20/10/2015
Nottinghamshire County Council,Personal Needs,"Children, Families & Cultural Services",Debit,6.25,amazon uk marketplace,20/10/2015
Nottinghamshire County Council,Activities & Support,"Children, Families & Cultural Services",Debit,119.19,www.yellowmoon.org.uk,19/10/2015
Nottinghamshire County Council,Catering Equipment,"Children, Families & Cultural Services",Debit,15.98,amazon uk marketplace,19/10/2015
Nottinghamshire County Council,Personal Needs,"Children, Families & Cultural Services",Debit,18.96,amazon uk marketplace,16/10/2015
Nottinghamshire County Council,Furniture,"Children, Families & Cultural Services",Debit,17.94,argos retail group,16/10/2015
Nottinghamshire County Council,General Employee Exps,"Children, Families & Cultural Services",Debit,46.98,www.bunches.co.uk,15/10/2015
Nottinghamshire County Council,Activities & Support,"Children, Families & Cultural Services",Debit,9.00,amazon uk marketplace,15/10/2015
Nottinghamshire County Council,Teaching Equipment,"Children, Families & Cultural Services",Debit,16.27,amazon uk retail,15/10/2015
Nottinghamshire County Council,Books - General,"Children, Families & Cultural Services",Credit,-3.29,paypal  ,13/10/2015
Nottinghamshire County Council,Teaching Equipment,"Children, Families & Cultural Services",Debit,19.98,amazon uk retail,14/10/2015
Nottinghamshire County Council,Teaching Equipment,"Children, Families & Cultural Services",Debit,14.95,amazon uk retail,14/10/2015
Nottinghamshire County Council,Books - General,"Children, Families & Cultural Services",Debit,1.94,amazon svcs europesar,13/10/2015
Nottinghamshire County Council,Activities & Support,"Children, Families & Cultural Services",Debit,1.98,amazon uk marketplace,13/10/2015
Nottinghamshire County Council,Activities & Support,"Children, Families & Cultural Services",Debit,7.41,amazon uk marketplace,13/10/2015
Nottinghamshire County Council,Activities & Support,"Children, Families & Cultural Services",Debit,1.90,amazon uk marketplace,13/10/2015
Nottinghamshire County Council,Activities & Support,"Children, Families & Cultural Services",Debit,14.99,amazon uk marketplace,13/10/2015
Nottinghamshire County Council,Cleaning & Domestic Equipment,"Children, Families & Cultural Services",Debit,26.22,amazon uk marketplace,13/10/2015
Nottinghamshire County Council,Activities & Support,"Children, Families & Cultural Services",Debit,438.73,crafty croc,13/10/2015
Nottinghamshire County Council,Activities & Support,"Children, Families & Cultural Services",Debit,14.01,amazon uk marketplace,13/10/2015
Nottinghamshire County Council,Teaching Equipment,"Children, Families & Cultural Services",Debit,43.91,argos retail group,13/10/2015
Nottinghamshire County Council,Activities & Support,"Children, Families & Cultural Services",Debit,26.25,amazon uk retail,13/10/2015
Nottinghamshire County Council,Rail / Tube Fares,"Children, Families & Cultural Services",Debit,140.56,trainline,12/10/2015
Nottinghamshire County Council,Medical Equipment,"Children, Families & Cultural Services",Debit,70.00,burrows opthalmic opti,12/10/2015
Nottinghamshire County Council,Furniture,"Children, Families & Cultural Services",Debit,10.47,amazon uk marketplace,12/10/2015
Nottinghamshire County Council,Activities & Support,"Children, Families & Cultural Services",Debit,2.99,amazon uk marketplace,12/10/2015
Nottinghamshire County Council,Activities & Support,"Children, Families & Cultural Services",Debit,38.89,amazon uk marketplace,12/10/2015
Nottinghamshire County Council,Furniture,"Children, Families & Cultural Services",Debit,5.39,amazon uk marketplace,11/10/2015
Nottinghamshire County Council,Clothing/Shoes/Uniforms,"Children, Families & Cultural Services",Debit,3.69,amazon uk marketplace,11/10/2015
Nottinghamshire County Council,Activities & Support,"Children, Families & Cultural Services",Debit,130.71,amazon uk marketplace,11/10/2015
Nottinghamshire County Council,Protective Clothing,"Children, Families & Cultural Services",Debit,179.92,www.powertooldirec,09/10/2015
Nottinghamshire County Council,Personal Needs,"Children, Families & Cultural Services",Debit,1.96,amazon uk marketplace,09/10/2015
Nottinghamshire County Council,Activities & Support,"Children, Families & Cultural Services",Debit,14.97,paypal  ,11/10/2015
Nottinghamshire County Council,Activities & Support,"Children, Families & Cultural Services",Debit,48.65,paypal  ,11/10/2015
Nottinghamshire County Council,Pocket Money,"Children, Families & Cultural Services",Debit,19.99,amazon uk retail,09/10/2015
Nottinghamshire County Council,Stationery,"Children, Families & Cultural Services",Debit,2.49,amazon uk marketplace,09/10/2015
Nottinghamshire County Council,Activities & Support,"Children, Families & Cultural Services",Debit,1.99,paypal  ,08/10/2015
Nottinghamshire County Council,Books - General,"Children, Families & Cultural Services",Debit,2.93,paypal  ,08/10/2015
Nottinghamshire County Council,Activities & Support,"Children, Families & Cultural Services",Debit,5.20,paypal  ,08/10/2015
Nottinghamshire County Council,Activities & Support,"Children, Families & Cultural Services",Debit,15.05,paypal  ,08/10/2015
Nottinghamshire County Council,Pocket Money,"Children, Families & Cultural Services",Debit,16.00,amazon uk retail,08/10/2015
Nottinghamshire County Council,Activities & Support,"Children, Families & Cultural Services",Debit,14.95,amazon uk marketplace,08/10/2015
Nottinghamshire County Council,Activities & Support,"Children, Families & Cultural Services",Debit,11.94,paypal  ,08/10/2015
Nottinghamshire County Council,Activities & Support,"Children, Families & Cultural Services",Debit,42.00,amazon uk retail,08/10/2015
Nottinghamshire County Council,Activities & Support,"Children, Families & Cultural Services",Debit,4.17,paypal  ,08/10/2015
Nottinghamshire County Council,Activities & Support,"Children, Families & Cultural Services",Debit,1.79,paypal  ,08/10/2015
Nottinghamshire County Council,Activities & Support,"Children, Families & Cultural Services",Debit,5.98,paypal  ,08/10/2015
Nottinghamshire County Council,Activities & Support,"Children, Families & Cultural Services",Debit,1.99,paypal  ,08/10/2015
Nottinghamshire County Council,Activities & Support,"Children, Families & Cultural Services",Debit,15.76,factory direct craft,08/10/2015
Nottinghamshire County Council,Clothing/Shoes/Uniforms,"Children, Families & Cultural Services",Debit,47.99,sportsdirect.com,08/10/2015
Nottinghamshire County Council,Activities & Support,"Children, Families & Cultural Services",Debit,10.14,paypal  ,08/10/2015
Nottinghamshire County Council,Medical Equipment,"Children, Families & Cultural Services",Debit,70.00,burrows opthalmic opti,08/10/2015
Nottinghamshire County Council,Activities & Support,"Children, Families & Cultural Services",Debit,1.99,paypal  ,08/10/2015
Nottinghamshire County Council,Activities & Support,"Children, Families & Cultural Services",Debit,46.95,pro-direct sport,07/10/2015
Nottinghamshire County Council,Medical Equipment,"Children, Families & Cultural Services",Debit,29.65,amazon uk marketplace,07/10/2015
Nottinghamshire County Council,Personal Needs,"Children, Families & Cultural Services",Debit,20.00,bargain buys,06/10/2015
Nottinghamshire County Council,Protective Clothing,"Children, Families & Cultural Services",Debit,99.98,www.dickiesstore.co.uk,06/10/2015
Nottinghamshire County Council,Activities & Support,"Children, Families & Cultural Services",Debit,41.99,game retail ltd basing,06/10/2015
Nottinghamshire County Council,Medical Equipment,"Children, Families & Cultural Services",Debit,110.40,payatrader,06/10/2015
Nottinghamshire County Council,Activities & Support,"Children, Families & Cultural Services",Debit,100.00,paypal  ,06/10/2015
Nottinghamshire County Council,Personal Needs,"Children, Families & Cultural Services",Debit,5.95,manor pharmacy,06/10/2015
Nottinghamshire County Council,Medical Equipment,"Children, Families & Cultural Services",Debit,82.06,surescreen diagnostics,05/10/2015
Nottinghamshire County Council,Activities & Support,"Children, Families & Cultural Services",Debit,44.57,www.yellowmoon.org.uk,05/10/2015
Nottinghamshire County Council,Building Maintenance,"Children, Families & Cultural Services",Debit,269.99,paypal  ,05/10/2015
Nottinghamshire County Council,Medical Equipment,"Children, Families & Cultural Services",Debit,79.69,amazon uk marketplace,05/10/2015
Nottinghamshire County Council,Postages,"Children, Families & Cultural Services",Debit,9.25,post office counter,05/10/2015
Nottinghamshire County Council,Rights Of Way,Environment & Resources,Debit,6.80,east midlands trai,22/10/2015
Nottinghamshire County Council,Rights Of Way,Environment & Resources,Debit,13.49,staples uk,09/10/2015
Nottinghamshire County Council,Other Public Transport,"Children, Families & Cultural Services",Debit,13.10,east midlands trai,24/10/2015
Nottinghamshire County Council,Personal Needs,"Children, Families & Cultural Services",Debit,15.00,asda superstore 04261,15/10/2015
Nottinghamshire County Council,Personal Needs,"Children, Families & Cultural Services",Debit,0.99,aldi,02/10/2015
Nottinghamshire County Council,Provisions,"Children, Families & Cultural Services",Debit,32.29,aldi,02/10/2015
Nottinghamshire County Council,Provisions,"Children, Families & Cultural Services",Debit,9.17,the range,02/10/2015
Nottinghamshire County Council,Activities & Support,"Children, Families & Cultural Services",Debit,6.33,tesco stores 5437,30/10/2015
Nottinghamshire County Council,Activities & Support,"Children, Families & Cultural Services",Debit,11.71,tesco stores 5437,28/10/2015
Nottinghamshire County Council,Activities & Support,"Children, Families & Cultural Services",Debit,31.89,jtf wholesale ltd,26/10/2015
Nottinghamshire County Council,Activities & Support,"Children, Families & Cultural Services",Debit,23.96,the range,26/10/2015
Nottinghamshire County Council,Activities & Support,"Children, Families & Cultural Services",Debit,8.21,asda superstore 04261,23/10/2015
Nottinghamshire County Council,Activities & Support,"Children, Families & Cultural Services",Debit,11.28,tesco stores 5437,20/10/2015
Nottinghamshire County Council,Activities & Support,"Children, Families & Cultural Services",Debit,28.24,tesco stores 5437,19/10/2015
Nottinghamshire County Council,Activities & Support,"Children, Families & Cultural Services",Debit,29.00,the works,15/10/2015
Nottinghamshire County Council,Activities & Support,"Children, Families & Cultural Services",Debit,15.09,tesco stores 5437,12/10/2015
Nottinghamshire County Council,Activities & Support,"Children, Families & Cultural Services",Debit,2.50,asda superstore 04261,09/10/2015
Nottinghamshire County Council,Activities & Support,"Children, Families & Cultural Services",Debit,5.95,tesco stores 5437,07/10/2015
Nottinghamshire County Council,Activities & Support,"Children, Families & Cultural Services",Debit,19.96,bm retail ltd,07/10/2015
Nottinghamshire County Council,Activities & Support,"Children, Families & Cultural Services",Debit,14.50,tesco stores 5437,05/10/2015
Nottinghamshire County Council,Activities & Support,"Children, Families & Cultural Services",Debit,5.00,tesco stores 5437,05/10/2015
Nottinghamshire County Council,Activities & Support,"Children, Families & Cultural Services",Debit,13.74,wm morrisons,02/10/2015
Nottinghamshire County Council,Other Fee's & Services,Environment & Resources,Debit,19.50,vue ncs citb hse test,13/10/2015
Nottinghamshire County Council,Fixtures & Fittings,"Children, Families & Cultural Services",Credit,-13.00,b  q,29/10/2015
Nottinghamshire County Council,Office / General Equipment,"Children, Families & Cultural Services",Debit,18.72,wsale office supp,29/10/2015
Nottinghamshire County Council,Cleaning Materials,"Children, Families & Cultural Services",Debit,43.59,booker limited mansfield,29/10/2015
Nottinghamshire County Council,Provisions,"Children, Families & Cultural Services",Debit,49.16,booker limited mansfield,29/10/2015
Nottinghamshire County Council,Personal Needs,"Children, Families & Cultural Services",Debit,10.46,the range,29/10/2015
Nottinghamshire County Council,Fixtures & Fittings,"Children, Families & Cultural Services",Debit,6.65,the range,29/10/2015
Nottinghamshire County Council,Minor Works,"Children, Families & Cultural Services",Debit,22.05,key building supplies,29/10/2015
Nottinghamshire County Council,Minor Works,"Children, Families & Cultural Services",Debit,138.55,www.chainsawbars.co.uk,27/10/2015
Nottinghamshire County Council,Minor Works,"Children, Families & Cultural Services",Debit,4.52,co-op food,21/10/2015
Nottinghamshire County Council,Minor Works,"Children, Families & Cultural Services",Debit,72.00,marvellous memories,13/10/2015
Nottinghamshire County Council,Minor Works,"Children, Families & Cultural Services",Debit,98.33,strauss direct ltd,13/10/2015
Nottinghamshire County Council,Minor Works,"Children, Families & Cultural Services",Debit,95.26,key building supplies,12/10/2015
Nottinghamshire County Council,Minor Works,"Children, Families & Cultural Services",Debit,54.00,post office counter,12/10/2015
Nottinghamshire County Council,Minor Works,"Children, Families & Cultural Services",Debit,125.00,nottingham audio vsl svs,08/10/2015
Nottinghamshire County Council,Minor Works,"Children, Families & Cultural Services",Debit,126.08,nottingham audio vsl svs,08/10/2015
Nottinghamshire County Council,Activities & Support,"Children, Families & Cultural Services",Debit,2.20,sainsburys local,03/11/2015
Nottinghamshire County Council,Activities & Support,"Children, Families & Cultural Services",Debit,25.17,tesco stores 2702,29/10/2015
Nottinghamshire County Council,Activities & Support,"Children, Families & Cultural Services",Debit,2.60,tesco stores 2702,28/10/2015
Nottinghamshire County Council,Activities & Support,"Children, Families & Cultural Services",Debit,1.98,card factory,27/10/2015
Nottinghamshire County Council,Activities & Support,"Children, Families & Cultural Services",Debit,14.97,bm retail,26/10/2015
Nottinghamshire County Council,Activities & Support,"Children, Families & Cultural Services",Debit,2.99,poundstretcher 518,26/10/2015
Nottinghamshire County Council,Activities & Support,"Children, Families & Cultural Services",Debit,9.62,tesco stores 5877,23/10/2015
Nottinghamshire County Council,Activities & Support,"Children, Families & Cultural Services",Debit,6.23,home bargains,22/10/2015
Nottinghamshire County Council,Activities & Support,"Children, Families & Cultural Services",Debit,26.11,tesco stores 2702,20/10/2015
Nottinghamshire County Council,Activities & Support,"Children, Families & Cultural Services",Debit,8.45,home bargains swadlinc,10/10/2015
Nottinghamshire County Council,Activities & Support,"Children, Families & Cultural Services",Debit,10.68,electronic temperature,09/10/2015
Nottinghamshire County Council,Materials - External,Place,Debit,91.20,intellipower ltd,02/11/2015
Nottinghamshire County Council,Materials - External,Place,Debit,48.00,harold potter ltd,28/10/2015
Nottinghamshire County Council,Materials - External,Place,Debit,111.70,intellipower ltd,22/10/2015
Nottinghamshire County Council,Materials - External,Place,Debit,0.00,intellipower ltd,22/10/2015
Nottinghamshire County Council,Staff Training,"Children, Families & Cultural Services",Debit,166.00,the imperial hotels lond,09/10/2015
Nottinghamshire County Council,Rent / Hire Premises,"Children, Families & Cultural Services",Debit,40.00,bassetlaw d.c.,07/10/2015
Nottinghamshire County Council,Provisions,"Children, Families & Cultural Services",Debit,25.50,tesco stores 2995,31/10/2015
Nottinghamshire County Council,Provisions,"Children, Families & Cultural Services",Debit,4.29,lakeland limited,30/10/2015
Nottinghamshire County Council,Provisions,"Children, Families & Cultural Services",Debit,77.00,tesco stores 2995,16/10/2015
Nottinghamshire County Council,Provisions,"Children, Families & Cultural Services",Debit,2.37,w boyes  co ltd,16/10/2015
Nottinghamshire County Council,Provisions,"Children, Families & Cultural Services",Debit,11.46,tesco stores 2995,06/10/2015
Nottinghamshire County Council,Activities & Support,"Children, Families & Cultural Services",Debit,62.50,www.butterflyhouse.co.,28/10/2015
Nottinghamshire County Council,Activities & Support,"Children, Families & Cultural Services",Debit,36.00,www.butterflyhouse.co.,26/10/2015
Nottinghamshire County Council,Other Fee's & Services,"Children, Families & Cultural Services",Credit,-10.00,http://www.derbyshire.,15/10/2015
Nottinghamshire County Council,Section 17,"Children, Families & Cultural Services",Debit,42.00,nottingham workwear,14/10/2015
Nottinghamshire County Council,Other Fee's & Services,"Children, Families & Cultural Services",Debit,87.00,hm passport office,07/10/2015
Nottinghamshire County Council,Activities & Support,"Children, Families & Cultural Services",Debit,95.00,megazone,27/10/2015
Nottinghamshire County Council,Activities & Support,"Children, Families & Cultural Services",Debit,17.70,home bargains,16/10/2015
